Workbook

Sheet Main
B10: 2018-12-06
B12: Sheet No. | C12: Template Name | D12: Summary
B13: 1 | C13: Future Intra | D13: For Intraday trading in F&O segment
B14: 2 | C14: Cash Intra | D14: For Intraday trading in cash market segment
B15: 3 | C15: Mid-cap Intra | D15: For Intraday trading in Mid-cap stocks
B16: 4 | C16: Bulk Deals | D16: Reveals Bulk Deals carried on NSE & BSE
B17: 5 | C17: Call Tracker

Sheet Future Intra
M5: Back to Main Page
A6: FOR INTRA DAY TRADING | L6: =Main!B10 -> 2018-12-06
A9: Sr.no | B9: Sector | C9: Scrip | D9: CLOSE RATE | E9: Pivot Point | F9: Supports | I9: Resistances
B10: Sector | D10: Point | E10: Point | F10: S1 | G10: S2 | H10: S3 | I10: R1 | J10: R2 | K10: R3 | L10: HIGH | M10: LOW | N10: OI | O10: % Change in OI
A11: 1 | B11: Index | C11: BANKNIFTY | D11: 26643.80 | E11: 26650.03 | F11: 26555.07 | G11: 26466.33 | H11: 26371.37 | I11: 26738.77 | J11: 26833.73 | K11: 26922.47 | L11: 26745 | M11: 26561.3 | N11: 1712160 | O11: 5.08%
A12: 2 | B12: Index | C12: NIFTY | D12: 10827.65 | E12: 10827.47 | F12: 10786.93 | G12: 10746.22 | H12: 10705.68 | I12: 10868.18 | J12: 10908.72 | K12: 10949.43 | L12: 10868 | M12: 10786.75 | N12: 20899500 | O12: 1.65%
A13: 3 | B13: Index | C13: NIFTYIT | D13: 15070.00 | E13: 15011.33 | F13: 14899.67 | G13: 14729.33 | H13: 14617.67 | I13: 15181.67 | J13: 15293.33 | K13: 15463.67 | L13: 15123 | M13: 14841 | N13: 17100 | O13: 14.38%
A14: 4 | B14: Index | C14: NIFTYMID50 | D14: 4848.00 | E14: 4820.33 | F14: 4792.67 | G14: 4737.33 | H14: 4709.67 | I14: 4875.67 | J14: 4903.33 | K14: 4958.67 | L14: 4848 | M14: 4765 | N14: 591690 | O14: 0.00%
A15: 5 | B15: Cement | C15: ACC | D15: 1477.70 | E15: 1486.60 | F15: 1463.20 | G15: 1448.70 | H15: 1425.30 | I15: 1501.10 | J15: 1524.50 | K15: 1539.00 | L15: 1510 | M15: 1472.1 | N15: 1390400 | O15: -0.49%
A16: 6 | B16: Others | C16: ADANIENT | D16: 157.90 | E16: 159.85 | F16: 154.35 | G16: 150.80 | H16: 145.30 | I16: 163.40 | J16: 168.90 | K16: 172.45 | L16: 165.35 | M16: 156.3 | N16: 44468000 | O16: 12.75%
A17: 7 | B17: Others | C17: ADANIPORTS | D17: 375.90 | E17: 375.95 | F17: 373.95 | G17: 372.00 | H17: 370.00 | I17: 377.90 | J17: 379.90 | K17: 381.85 | L17: 377.95 | M17: 374 | N17: 18677500 | O17: 0.35%
A18: 8 | B18: Power | C18: ADANIPOWER | D18: 54.35 | E18: 54.23 | F18: 53.17 | G18: 51.98 | H18: 50.92 | I18: 55.42 | J18: 56.48 | K18: 57.67 | L18: 55.3 | M18: 53.05 | N18: 166520000 | O18: 1.39%
A19: 9 | B19: Pharma | C19: AJANTPHARM | D19: 1098.55 | E19: 1107.02 | F19: 1069.03 | G19: 1039.52 | H19: 1001.53 | I19: 1136.53 | J19: 1174.52 | K19: 1204.03 | L19: 1145 | M19: 1077.5 | N19: 561500 | O19: 1.45%
A20: 10 | B20: Banking | C20: ALBK | D20: 45.90 | E20: 46.30 | F20: 45.10 | G20: 44.30 | H20: 43.10 | I20: 47.10 | J20: 48.30 | K20: 49.10 | L20: 47.5 | M20: 45.5 | N20: 16166000 | O20: -0.34%
A21: 11 | B21: Automobile | C21: AMARAJABAT | D21: 712.40 | E21: 712.43 | F21: 708.27 | G21: 704.13 | H21: 699.97 | I21: 716.57 | J21: 720.73 | K21: 724.87 | L21: 716.6 | M21: 708.3 | N21: 1614900 | O21: 0.26%
A22: 12 | B22: Cement | C22: AMBUJACEM | D22: 217.40 | E22: 217.87 | F22: 215.73 | G22: 214.07 | H22: 211.93 | I22: 219.53 | J22: 221.67 | K22: 223.33 | L22: 220 | M22: 216.2 | N22: 15167500 | O22: -1.30%
A23: 13 | B23: Others | C23: APOLLOHOSP | D23: 1237.55 | E23: 1242.52 | F23: 1215.03 | G23: 1192.52 | H23: 1165.03 | I23: 1265.03 | J23: 1292.52 | K23: 1315.03 | L23: 1270 | M23: 1220 | N23: 1033000 | O23: -2.46%
A24: 14 | B24: Automobile | C24: APOLLOTYRE | D24: 229.05 | E24: 230.50 | F24: 225.30 | G24: 221.55 | H24: 216.35 | I24: 234.25 | J24: 239.45 | K24: 243.20 | L24: 235.7 | M24: 226.75 | N24: 9252000 | O24: -0.03%
A25: 15 | B25: Textile | C25: ARVIND | D25: 104.10 | E25: 104.23 | F25: 100.72 | G25: 97.33 | H25: 93.82 | I25: 107.62 | J25: 111.13 | K25: 114.52 | L25: 107.75 | M25: 100.85 | N25: 5394000 | O25: -6.84%
A26: 16 | B26: Automobile | C26: ASHOKLEY | D26: 103.85 | E26: 104.83 | F26: 101.77 | G26: 99.68 | H26: 96.62 | I26: 106.92 | J26: 109.98 | K26: 112.07 | L26: 107.9 | M26: 102.75 | N26: 63948000 | O26: 4.59%
A27: 17 | B27: FMCG | C27: ASIANPAINT | D27: 1335.70 | E27: 1336.03 | F27: 1325.07 | G27: 1314.43 | H27: 1303.47 | I27: 1346.67 | J27: 1357.63 | K27: 1368.27 | L27: 1347 | M27: 1325.4 | N27: 4273200 | O27: 0.17%
A28: 18 | B28: Pharma | C28: AUROPHARMA | D28: 800.20 | E28: 808.13 | F28: 786.87 | G28: 773.53 | H28: 752.27 | I28: 821.47 | J28: 842.73 | K28: 856.07 | L28: 829.4 | M28: 794.8 | N28: 18152000 | O28: 2.56%
A29: 19 | B29: Banking | C29: AXISBANK | D29: 617.90 | E29: 620.32 | F29: 614.08 | G29: 610.27 | H29: 604.03 | I29: 624.13 | J29: 630.37 | K29: 634.18 | L29: 626.55 | M29: 616.5 | N29: 36104400 | O29: -0.88%
A30: 20 | B30: Automobile | C30: BAJAJ-AUTO | D30: 2770.90 | E30: 2764.30 | F30: 2746.60 | G30: 2722.30 | H30: 2704.60 | I30: 2788.60 | J30: 2806.30 | K30: 2830.60 | L30: 2782 | M30: 2740 | N30: 2153000 | O30: -0.83%
A31: 21 | B31: Others | C31: BAJAJFINSV | D31: 5933.30 | E31: 5959.43 | F31: 5848.87 | G31: 5764.43 | H31: 5653.87 | I31: 6043.87 | J31: 6154.43 | K31: 6238.87 | L31: 6070 | M31: 5875 | N31: 619500 | O31: 0.98%
A32: 22 | B32: Finance | C32: BAJFINANCE | D32: 2506.15 | E32: 2511.60 | F32: 2477.40 | G32: 2448.65 | H32: 2414.45 | I32: 2540.35 | J32: 2574.55 | K32: 2603.30 | L32: 2545.8 | M32: 2482.85 | N32: 6014750 | O32: -0.95%
A33: 23 | B33: Others | C33: BALKRISIND | D33: 937.25 | E33: 944.38 | F33: 923.67 | G33: 910.08 | H33: 889.37 | I33: 957.97 | J33: 978.68 | K33: 992.27 | L33: 965.1 | M33: 930.8 | N33: 2675200 | O33: 7.28%
A34: 24 | B34: Banking | C34: BANKBARODA | D34: 107.60 | E34: 107.32 | F34: 106.38 | G34: 105.17 | H34: 104.23 | I34: 108.53 | J34: 109.47 | K34: 110.68 | L34: 108.25 | M34: 106.1 | N34: 67092000 | O34: -0.34%
A35: 25 | B35: Banking | C35: BANKINDIA | D35: 83.70 | E35: 84.17 | F35: 82.18 | G35: 80.67 | H35: 78.68 | I35: 85.68 | J35: 87.67 | K35: 89.18 | L35: 86.15 | M35: 82.65 | N35: 24402000 | O35: 4.66%
A36: 26 | B36: FMCG | C36: BATAINDIA | D36: 1049.35 | E36: 1047.60 | F36: 1038.00 | G36: 1026.65 | H36: 1017.05 | I36: 1058.95 | J36: 1068.55 | K36: 1079.90 | L36: 1057.2 | M36: 1036.25 | N36: 1774300 | O36: -2.06%
A37: 27 | B37: Capital_Goods | C37: BEL | D37: 81.85 | E37: 81.73 | F37: 79.87 | G37: 77.88 | H37: 76.02 | I37: 83.72 | J37: 85.58 | K37: 87.57 | L37: 83.6 | M37: 79.75 | N37: 44840700 | O37: 2.84%
A38: 28 | B38: Infrastructure | C38: BEML | D38: 734.15 | E38: 740.58 | F38: 721.07 | G38: 707.98 | H38: 688.47 | I38: 753.67 | J38: 773.18 | K38: 786.27 | L38: 760.1 | M38: 727.5 | N38: 1174100 | O38: -1.98%
A39: 29 | B39: Others | C39: BERGEPAINT | D39: 316.35 | E39: 316.23 | F39: 312.62 | G39: 308.88 | H39: 305.27 | I39: 319.97 | J39: 323.58 | K39: 327.32 | L39: 319.85 | M39: 312.5 | N39: 2063600 | O39: 4.34%
A40: 30 | B40: Finance | C40: BHARATFIN | D40: 1014.65 | E40: 1015.92 | F40: 1006.38 | G40: 998.12 | H40: 988.58 | I40: 1024.18 | J40: 1033.72 | K40: 1041.98 | L40: 1025.45 | M40: 1007.65 | N40: 5563500 | O40: -6.75%
A41: 31 | B41: Automobile | C41: BHARATFORG | D41: 533.00 | E41: 543.92 | F41: 515.43 | G41: 497.87 | H41: 469.38 | I41: 561.48 | J41: 589.97 | K41: 607.53 | L41: 572.4 | M41: 526.35 | N41: 9778800 | O41: 6.47%
A42: 32 | B42: Telecom | C42: BHARTIARTL | D42: 313.75 | E42: 315.88 | F42: 309.87 | G42: 305.98 | H42: 299.97 | I42: 319.77 | J42: 325.78 | K42: 329.67 | L42: 321.9 | M42: 312 | N42: 39822500 | O42: 0.12%
A43: 33 | B43: Capital_Goods | C43: BHEL | D43: 66.85 | E43: 67.98 | F43: 65.37 | G43: 63.88 | H43: 61.27 | I43: 69.47 | J43: 72.08 | K43: 73.57 | L43: 70.6 | M43: 66.5 | N43: 56385000 | O43: 4.63%
A44: 34 | B44: Pharma | C44: BIOCON | D44: 626.00 | E44: 625.97 | F44: 621.03 | G44: 616.07 | H44: 611.13 | I44: 630.93 | J44: 635.87 | K44: 640.83 | L44: 630.9 | M44: 621 | N44: 5984100 | O44: -0.37%
A45: 35 | B45: Automobile | C45: BOSCHLTD | D45: 18451.25 | E45: 18581.32 | F45: 18241.68 | G45: 18032.12 | H45: 17692.48 | I45: 18790.88 | J45: 19130.52 | K45: 19340.08 | L45: 18920.95 | M45: 18371.75 | N45: 183990 | O45: 8.90%
A46: 36 | B46: Oil_Gas | C46: BPCL | D46: 329.75 | E46: 331.63 | F46: 325.37 | G46: 320.98 | H46: 314.72 | I46: 336.02 | J46: 342.28 | K46: 346.67 | L46: 337.9 | M46: 327.25 | N46: 12533400 | O46: 4.75%
A47: 37 | B47: FMCG | C47: BRITANNIA | D47: 3098.65 | E47: 3094.73 | F47: 3075.72 | G47: 3052.78 | H47: 3033.77 | I47: 3117.67 | J47: 3136.68 | K47: 3159.62 | L47: 3113.75 | M47: 3071.8 | N47: 2837800 | O47: 0.68%
A48: 38 | B48: Pharma | C48: CADILAHC | D48: 360.00 | E48: 359.97 | F48: 354.83 | G48: 349.67 | H48: 344.53 | I48: 365.13 | J48: 370.27 | K48: 375.43 | L48: 365.1 | M48: 354.8 | N48: 8131200 | O48: -1.34%
A49: 39 | B49: Banking | C49: CANBK | D49: 253.60 | E49: 253.92 | F49: 250.63 | G49: 247.67 | H49: 244.38 | I49: 256.88 | J49: 260.17 | K49: 263.13 | L49: 257.2 | M49: 250.95 | N49: 11264000 | O49: -1.78%
A50: 40 | B50: Others | C50: CANFINHOME | D50: 249.95 | E50: 254.23 | F50: 242.22 | G50: 234.48 | H50: 222.47 | I50: 261.97 | J50: 273.98 | K50: 281.72 | L50: 266.25 | M50: 246.5 | N50: 4212200 | O50: 1.53%
A51: 41 | B51: Finance | C51: CAPF | D51: 519.40 | E51: 522.08 | F51: 509.37 | G51: 499.33 | H51: 486.62 | I51: 532.12 | J51: 544.83 | K51: 554.87 | L51: 534.8 | M51: 512.05 | N51: 6595600 | O51: 0.27%
A52: 42 | B52: Oil_Gas | C52: CASTROLIND | D52: 149.10 | E52: 149.43 | F52: 147.17 | G52: 145.23 | H52: 142.97 | I52: 151.37 | J52: 153.63 | K52: 155.57 | L52: 151.7 | M52: 147.5 | N52: 6319400 | O52: -0.63%
A53: 43 | B53: Automobile | C53: CEATLTD | D53: 1264.10 | E53: 1275.83 | F53: 1245.27 | G53: 1226.43 | H53: 1195.87 | I53: 1294.67 | J53: 1325.23 | K53: 1344.07 | L53: 1306.4 | M53: 1257 | N53: 815700 | O53: 0.19%
A54: 44 | B54: Textile | C54: CENTURYTEX | D54: 906.10 | E54: 905.43 | F54: 896.07 | G54: 886.03 | H54: 876.67 | I54: 915.47 | J54: 924.83 | K54: 934.87 | L54: 914.8 | M54: 895.4 | N54: 4391700 | O54: -0.27%
A55: 45 | B55: Power | C55: CESC | D55: 704.65 | E55: 706.37 | F55: 694.78 | G55: 684.92 | H55: 673.33 | I55: 716.23 | J55: 727.82 | K55: 737.68 | L55: 717.95 | M55: 696.5 | N55: 1191850 | O55: -14.95%
A56: 46 | B56: Power | C56: CGPOWER | D56: 39.30 | E56: 39.73 | F56: 38.22 | G56: 37.13 | H56: 35.62 | I56: 40.82 | J56: 42.33 | K56: 43.42 | L56: 41.25 | M56: 38.65 | N56: 45828000 | O56: -0.57%
A57: 47 | B57: Others | C57: CHENNPETRO | D57: 272.30 | E57: 273.83 | F57: 268.52 | G57: 264.73 | H57: 259.42 | I57: 277.62 | J57: 282.93 | K57: 286.72 | L57: 279.15 | M57: 270.05 | N57: 905700 | O57: -7.79%
A58: 48 | B58: Others | C58: CHOLAFIN | D58: 1271.15 | E58: 1270.80 | F58: 1250.60 | G58: 1230.05 | H58: 1209.85 | I58: 1291.35 | J58: 1311.55 | K58: 1332.10 | L58: 1291 | M58: 1250.25 | N58: 549000 | O58: 9.80%
A59: 49 | B59: Pharma | C59: CIPLA | D59: 529.90 | E59: 535.92 | F59: 521.88 | G59: 513.87 | H59: 499.83 | I59: 543.93 | J59: 557.97 | K59: 565.98 | L59: 549.95 | M59: 527.9 | N59: 8189000 | O59: 3.86%
A60: 50 | B60: Others | C60: COALINDIA | D60: 242.65 | E60: 244.28 | F60: 238.87 | G60: 235.08 | H60: 229.67 | I60: 248.07 | J60: 253.48 | K60: 257.27 | L60: 249.7 | M60: 240.5 | N60: 50408600 | O60: 4.23%
A61: 51 | B61: FMCG | C61: COLPAL | D61: 1227.30 | E61: 1224.15 | F61: 1213.30 | G61: 1199.30 | H61: 1188.45 | I61: 1238.15 | J61: 1249.00 | K61: 1263.00 | L61: 1235 | M61: 1210.15 | N61: 1170400 | O61: -2.79%
A62: 52 | B62: Others | C62: CONCOR | D62: 674.80 | E62: 676.03 | F62: 668.87 | G62: 662.93 | H62: 655.77 | I62: 681.97 | J62: 689.13 | K62: 695.07 | L62: 683.2 | M62: 670.1 | N62: 3046250 | O62: 0.99%
A63: 53 | B63: Capital_Goods | C63: CUMMINSIND | D63: 786.00 | E63: 791.18 | F63: 772.82 | G63: 759.63 | H63: 741.27 | I63: 804.37 | J63: 822.73 | K63: 835.92 | L63: 809.55 | M63: 778 | N63: 1442000 | O63: -0.96%
A64: 54 | B64: FMCG | C64: DABUR | D64: 411.55 | E64: 409.98 | F64: 405.57 | G64: 399.58 | H64: 395.17 | I64: 415.97 | J64: 420.38 | K64: 426.37 | L64: 414.4 | M64: 404 | N64: 11018750 | O64: -5.68%
A65: 55 | B65: Banking | C65: DCBBANK | D65: 152.90 | E65: 154.42 | F65: 149.53 | G65: 146.17 | H65: 141.28 | I65: 157.78 | J65: 162.67 | K65: 166.03 | L65: 159.3 | M65: 151.05 | N65: 4698000 | O65: 11.06%
A66: 56 | B66: Finance | C66: DHFL | D66: 209.05 | E66: 211.40 | F66: 201.05 | G66: 193.05 | H66: 182.70 | I66: 219.40 | J66: 229.75 | K66: 237.75 | L66: 221.75 | M66: 203.4 | N66: 22200000 | O66: -2.73%
A67: 57 | B67: Media | C67: DISHTV | D67: 35.15 | E67: 35.38 | F67: 34.47 | G67: 33.78 | H67: 32.87 | I67: 36.07 | J67: 36.98 | K67: 37.67 | L67: 36.3 | M67: 34.7 | N67: 53520000 | O67: 13.85%
A68: 58 | B68: Pharma | C68: DIVISLAB | D68: 1482.10 | E68: 1484.57 | F68: 1461.63 | G68: 1441.17 | H68: 1418.23 | I68: 1505.03 | J68: 1527.97 | K68: 1548.43 | L68: 1507.5 | M68: 1464.1 | N68: 3933200 | O68: -4.19%
A69: 59 | B69: Realty | C69: DLF | D69: 177.10 | E69: 175.88 | F69: 173.27 | G69: 169.43 | H69: 166.82 | I69: 179.72 | J69: 182.33 | K69: 186.17 | L69: 178.5 | M69: 172.05 | N69: 25483600 | O69: 0.84%
A70: 60 | B70: Pharma | C70: DRREDDY | D70: 2679.95 | E70: 2686.35 | F70: 2648.55 | G70: 2617.15 | H70: 2579.35 | I70: 2717.75 | J70: 2755.55 | K70: 2786.95 | L70: 2724.15 | M70: 2654.95 | N70: 3325000 | O70: -0.11%
A71: 61 | B71: Automobile | C71: EICHERMOT | D71: 22912.25 | E71: 23015.18 | F71: 22650.37 | G71: 22388.48 | H71: 22023.67 | I71: 23277.07 | J71: 23641.88 | K71: 23903.77 | L71: 23380 | M71: 22753.3 | N71: 263750 | O71: -0.10%
A72: 62 | B72: Infrastructure | C72: ENGINERSIN | D72: 113.20 | E72: 113.85 | F72: 110.65 | G72: 108.10 | H72: 104.90 | I72: 116.40 | J72: 119.60 | K72: 122.15 | L72: 117.05 | M72: 111.3 | N72: 6214500 | O72: 2.22%
A73: 63 | B73: Finance | C73: EQUITAS | D73: 118.80 | E73: 120.15 | F73: 116.00 | G73: 113.20 | H73: 109.05 | I73: 122.95 | J73: 127.10 | K73: 129.90 | L73: 124.3 | M73: 117.35 | N73: 9932000 | O73: -4.90%
A74: 64 | B74: Automobile | C74: ESCORTS | D74: 660.45 | E74: 670.43 | F74: 642.57 | G74: 624.68 | H74: 596.82 | I74: 688.32 | J74: 716.18 | K74: 734.07 | L74: 698.3 | M74: 652.55 | N74: 5005000 | O74: 1.38%
A75: 65 | B75: Automobile | C75: EXIDEIND | D75: 254.80 | E75: 255.92 | F75: 252.08 | G75: 249.37 | H75: 245.53 | I75: 258.63 | J75: 262.47 | K75: 265.18 | L75: 259.75 | M75: 253.2 | N75: 5708000 | O75: 0.11%
A76: 66 | B76: Banking | C76: FEDERALBNK | D76: 84.05 | E76: 84.10 | F76: 82.70 | G76: 81.35 | H76: 79.95 | I76: 85.45 | J76: 86.85 | K76: 88.20 | L76: 85.5 | M76: 82.75 | N76: 48231000 | O76: -4.39%
A77: 67 | B77: Oil_Gas | C77: GAIL | D77: 350.80 | E77: 352.02 | F77: 347.13 | G77: 343.47 | H77: 338.58 | I77: 355.68 | J77: 360.57 | K77: 364.23 | L77: 356.9 | M77: 348.35 | N77: 18426303 | O77: -0.39%
A78: 68 | B78: Pharma | C78: GLENMARK | D78: 627.70 | E78: 624.73 | F78: 617.97 | G78: 608.23 | H78: 601.47 | I78: 634.47 | J78: 641.23 | K78: 650.97 | L78: 631.5 | M78: 615 | N78: 4685000 | O78: 0.77%
A79: 69 | B79: Infrastructure | C79: GMRINFRA | D79: 15.60 | E79: 15.73 | F79: 15.37 | G79: 15.13 | H79: 14.77 | I79: 15.97 | J79: 16.33 | K79: 16.57 | L79: 16.1 | M79: 15.5 | N79: 177930000 | O79: 0.66%
A80: 70 | B80: Others | C80: GODFRYPHLP | D80: 899.15 | E80: 904.20 | F80: 888.10 | G80: 877.05 | H80: 860.95 | I80: 915.25 | J80: 931.35 | K80: 942.40 | L80: 920.3 | M80: 893.15 | N80: 533400 | O80: 1.20%
A81: 71 | B81: FMCG | C81: GODREJCP | D81: 755.50 | E81: 754.03 | F81: 747.07 | G81: 738.63 | H81: 731.67 | I81: 762.47 | J81: 769.43 | K81: 777.87 | L81: 761 | M81: 745.6 | N81: 5482200 | O81: -0.29%
A82: 72 | B82: FMCG | C82: GODREJIND | D82: 542.50 | E82: 544.95 | F82: 536.55 | G82: 530.60 | H82: 522.20 | I82: 550.90 | J82: 559.30 | K82: 565.25 | L82: 553.35 | M82: 539 | N82: 1530000 | O82: -0.29%
A83: 73 | B83: Cement | C83: GRASIM | D83: 828.30 | E83: 830.65 | F83: 817.40 | G83: 806.50 | H83: 793.25 | I83: 841.55 | J83: 854.80 | K83: 865.70 | L83: 843.9 | M83: 819.75 | N83: 8332500 | O83: 3.36%
A84: 74 | B84: Others | C84: GSFC | D84: 104.05 | E84: 104.43 | F84: 101.62 | G84: 99.18 | H84: 96.37 | I84: 106.87 | J84: 109.68 | K84: 112.12 | L84: 107.25 | M84: 102 | N84: 16363300 | O84: 0.00%
A85: 75 | B85: Others | C85: HAVELLS | D85: 698.60 | E85: 696.12 | F85: 690.38 | G85: 682.17 | H85: 676.43 | I85: 704.33 | J85: 710.07 | K85: 718.28 | L85: 701.85 | M85: 687.9 | N85: 4945000 | O85: -2.23%
A86: 76 | B86: Technology | C86: HCLTECH | D86: 1056.35 | E86: 1048.35 | F86: 1034.40 | G86: 1012.45 | H86: 998.50 | I86: 1070.30 | J86: 1084.25 | K86: 1106.20 | L86: 1062.3 | M86: 1026.4 | N86: 8708000 | O86: 1.22%
A87: 77 | B87: Finance | C87: HDFC | D87: 1980.10 | E87: 1964.95 | F87: 1944.15 | G87: 1908.20 | H87: 1887.40 | I87: 2000.90 | J87: 2021.70 | K87: 2057.65 | L87: 1985.75 | M87: 1929 | N87: 25476000 | O87: 1.03%
A88: 78 | B88: Banking | C88: HDFCBANK | D88: 2110.50 | E88: 2103.15 | F88: 2091.55 | G88: 2072.60 | H88: 2061.00 | I88: 2122.10 | J88: 2133.70 | K88: 2152.65 | L88: 2114.75 | M88: 2084.2 | N88: 12288500 | O88: -0.42%
A89: 79 | B89: Automobile | C89: HEROMOTOCO | D89: 3062.45 | E89: 3059.48 | F89: 3035.97 | G89: 3009.48 | H89: 2985.97 | I89: 3085.97 | J89: 3109.48 | K89: 3135.97 | L89: 3083 | M89: 3033 | N89: 1214400 | O89: 0.61%
A90: 80 | B90: Technology | C90: HEXAWARE | D90: 325.55 | E90: 326.85 | F90: 319.40 | G90: 313.25 | H90: 305.80 | I90: 333.00 | J90: 340.45 | K90: 346.60 | L90: 334.3 | M90: 320.7 | N90: 4242000 | O90: -2.15%
A91: 81 | B91: Metals | C91: HINDALCO | D91: 222.30 | E91: 224.95 | F91: 218.60 | G91: 214.90 | H91: 208.55 | I91: 228.65 | J91: 235.00 | K91: 238.70 | L91: 231.3 | M91: 221.25 | N91: 31563000 | O91: -3.80%
A92: 82 | B92: Oil_Gas | C92: HINDPETRO | D92: 227.25 | E92: 228.43 | F92: 224.02 | G92: 220.78 | H92: 216.37 | I92: 231.67 | J92: 236.08 | K92: 239.32 | L92: 232.85 | M92: 225.2 | N92: 19672800 | O92: -1.72%
A93: 83 | B93: FMCG | C93: HINDUNILVR | D93: 1853.35 | E93: 1836.10 | F93: 1814.30 | G93: 1775.25 | H93: 1753.45 | I93: 1875.15 | J93: 1896.95 | K93: 1936.00 | L93: 1857.9 | M93: 1797.05 | N93: 9560400 | O93: -0.48%
A94: 84 | B94: Metals | C94: HINDZINC | D94: 270.95 | E94: 270.87 | F94: 267.73 | G94: 264.52 | H94: 261.38 | I94: 274.08 | J94: 277.22 | K94: 280.43 | L94: 274 | M94: 267.65 | N94: 5616000 | O94: -3.84%
A95: 85 | B95: Finance | C95: IBULHSGFIN | D95: 777.25 | E95: 783.22 | F95: 764.43 | G95: 751.62 | H95: 732.83 | I95: 796.03 | J95: 814.82 | K95: 827.63 | L95: 802 | M95: 770.4 | N95: 19200000 | O95: -1.39%
A96: 86 | B96: Banking | C96: ICICIBANK | D96: 353.00 | E96: 354.30 | F96: 350.70 | G96: 348.40 | H96: 344.80 | I96: 356.60 | J96: 360.20 | K96: 362.50 | L96: 357.9 | M96: 352 | N96: 87268500 | O96: -2.03%
A97: 87 | B97: Others | C97: ICICIPRULI | D97: 319.15 | E97: 319.48 | F97: 316.22 | G97: 313.28 | H97: 310.02 | I97: 322.42 | J97: 325.68 | K97: 328.62 | L97: 322.75 | M97: 316.55 | N97: 4023800 | O97: -3.36%
A98: 88 | B98: Banking | C98: IDBI | D98: 60.70 | E98: 60.50 | F98: 60.05 | G98: 59.40 | H98: 58.95 | I98: 61.15 | J98: 61.60 | K98: 62.25 | L98: 60.95 | M98: 59.85 | N98: 34770000 | O98: -6.63%
A99: 89 | B99: Telecom | C99: IDEA | D99: 34.10 | E99: 34.22 | F99: 33.38 | G99: 32.67 | H99: 31.83 | I99: 34.93 | J99: 35.77 | K99: 36.48 | L99: 35.05 | M99: 33.5 | N99: 143299000 | O99: 1.54%
A100: 90 | B100: Finance | C100: IDFC | D100: 38.95 | E100: 39.48 | F100: 38.07 | G100: 37.18 | H100: 35.77 | I100: 40.37 | J100: 41.78 | K100: 42.67 | L100: 40.9 | M100: 38.6 | N100: 105890400 | O100: 1.69%
A101: 91 | B101: Banking | C101: IDFCBANK | D101: 37.85 | E101: 38.05 | F101: 37.10 | G101: 36.35 | H101: 35.40 | I101: 38.80 | J101: 39.75 | K101: 40.50 | L101: 39 | M101: 37.3 | N101: 136692000 | O101: 2.62%
A102: 92 | B102: Finance | C102: IFCI | D102: 13.20 | E102: 13.28 | F102: 12.97 | G102: 12.73 | H102: 12.42 | I102: 13.52 | J102: 13.83 | K102: 14.07 | L102: 13.6 | M102: 13.05 | N102: 48355000 | O102: 3.18%
A103: 93 | B103: Oil_Gas | C103: IGL | D103: 259.80 | E103: 259.88 | F103: 257.62 | G103: 255.43 | H103: 253.17 | I103: 262.07 | J103: 264.33 | K103: 266.52 | L103: 262.15 | M103: 257.7 | N103: 4644750 | O103: 3.94%
A104: 94 | B104: Cement | C104: INDIACEM | D104: 90.75 | E104: 91.20 | F104: 89.15 | G104: 87.55 | H104: 85.50 | I104: 92.80 | J104: 94.85 | K104: 96.45 | L104: 93.25 | M104: 89.6 | N104: 17457000 | O104: 2.49%
A105: 95 | B105: Banking | C105: INDIANB | D105: 222.10 | E105: 222.35 | F105: 218.95 | G105: 215.80 | H105: 212.40 | I105: 225.50 | J105: 228.90 | K105: 232.05 | L105: 225.75 | M105: 219.2 | N105: 4820000 | O105: -1.43%
A106: 96 | B106: Others | C106: INDIGO | D106: 1005.25 | E106: 1004.12 | F106: 992.83 | G106: 980.42 | H106: 969.13 | I106: 1016.53 | J106: 1027.82 | K106: 1040.23 | L106: 1015.4 | M106: 991.7 | N106: 3093600 | O106: 0.00%
A107: 97 | B107: Banking | C107: INDUSINDBK | D107: 1610.50 | E107: 1622.82 | F107: 1587.63 | G107: 1564.77 | H107: 1529.58 | I107: 1645.68 | J107: 1680.87 | K107: 1703.73 | L107: 1658 | M107: 1599.95 | N107: 5009700 | O107: 4.72%
A108: 98 | B108: Technology | C108: INFIBEAM | D108: 47.40 | E108: 48.15 | F108: 45.50 | G108: 43.60 | H108: 40.95 | I108: 50.05 | J108: 52.70 | K108: 54.60 | L108: 50.8 | M108: 46.25 | N108: 12948000 | O108: -3.03%
A109: 99 | B109: Telecom | C109: INFRATEL | D109: 259.00 | E109: 257.83 | F109: 255.77 | G109: 252.53 | H109: 250.47 | I109: 261.07 | J109: 263.13 | K109: 266.37 | L109: 259.9 | M109: 254.6 | N109: 8400300 | O109: 0.23%
A110: 100 | B110: Technology | C110: INFY | D110: 684.95 | E110: 682.45 | F110: 678.10 | G110: 671.25 | H110: 666.90 | I110: 689.30 | J110: 693.65 | K110: 700.50 | L110: 686.8 | M110: 675.6 | N110: 42621600 | O110: -0.76%
A111: 101 | B111: Oil_Gas | C111: IOC | D111: 133.10 | E111: 133.77 | F111: 130.38 | G111: 127.67 | H111: 124.28 | I111: 136.48 | J111: 139.87 | K111: 142.58 | L111: 137.15 | M111: 131.05 | N111: 94530000 | O111: 3.90%
A112: 102 | B112: Infrastructure | C112: IRB | D112: 145.65 | E112: 146.42 | F112: 142.43 | G112: 139.22 | H112: 135.23 | I112: 149.63 | J112: 153.62 | K112: 156.83 | L112: 150.4 | M112: 143.2 | N112: 8793300 | O112: -3.00%
A113: 103 | B113: FMCG | C113: ITC | D113: 276.75 | E113: 279.05 | F113: 273.20 | G113: 269.65 | H113: 263.80 | I113: 282.60 | J113: 288.45 | K113: 292.00 | L113: 284.9 | M113: 275.5 | N113: 75501600 | O113: 4.28%
A114: 104 | B114: Others | C114: JETAIRWAYS | D114: 282.15 | E114: 288.97 | F114: 270.18 | G114: 258.22 | H114: 239.43 | I114: 300.93 | J114: 319.72 | K114: 331.68 | L114: 307.75 | M114: 277 | N114: 4587600 | O114: 0.57%
A115: 105 | B115: Metals | C115: JINDALSTEL | D115: 148.75 | E115: 150.00 | F115: 145.00 | G115: 141.25 | H115: 136.25 | I115: 153.75 | J115: 158.75 | K115: 162.50 | L115: 155 | M115: 146.25 | N115: 27987750 | O115: 2.29%
A116: 106 | B116: Others | C116: JISLJALEQS | D116: 63.75 | E116: 64.08 | F116: 62.07 | G116: 60.38 | H116: 58.37 | I116: 65.77 | J116: 67.78 | K116: 69.47 | L116: 66.1 | M116: 62.4 | N116: 32355000 | O116: -3.72%
A117: 107 | B117: Realty | C117: JPASSOCIAT | D117: 6.65 | E117: 6.68 | F117: 6.52 | G117: 6.38 | H117: 6.22 | I117: 6.82 | J117: 6.98 | K117: 7.12 | L117: 6.85 | M117: 6.55 | N117: 110474000 | O117: -4.52%
A118: 108 | B118: Metals | C118: JSWSTEEL | D118: 305.90 | E118: 307.85 | F118: 301.70 | G118: 297.50 | H118: 291.35 | I118: 312.05 | J118: 318.20 | K118: 322.40 | L118: 314 | M118: 303.65 | N118: 48727500 | O118: 1.53%
A119: 109 | B119: Others | C119: JUBLFOOD | D119: 1329.10 | E119: 1325.02 | F119: 1312.23 | G119: 1295.37 | H119: 1282.58 | I119: 1341.88 | J119: 1354.67 | K119: 1371.53 | L119: 1337.8 | M119: 1308.15 | N119: 2277500 | O119: -3.96%
A120: 110 | B120: Others | C120: JUSTDIAL | D120: 492.40 | E120: 490.82 | F120: 482.73 | G120: 473.07 | H120: 464.98 | I120: 500.48 | J120: 508.57 | K120: 518.23 | L120: 498.9 | M120: 481.15 | N120: 1999200 | O120: 7.53%
A121: 111 | B121: Others | C121: KAJARIACER | D121: 440.35 | E121: 436.28 | F121: 430.17 | G121: 419.98 | H121: 413.87 | I121: 446.47 | J121: 452.58 | K121: 462.77 | L121: 442.4 | M121: 426.1 | N121: 2108400 | O121: -0.44%
A122: 112 | B122: Banking | C122: KOTAKBANK | D122: 1217.70 | E122: 1219.05 | F122: 1206.25 | G122: 1194.80 | H122: 1182.00 | I122: 1230.50 | J122: 1243.30 | K122: 1254.75 | L122: 1231.85 | M122: 1207.6 | N122: 11146400 | O122: 0.08%
A123: 113 | B123: Technology | C123: KPIT | D123: 210.05 | E123: 210.20 | F123: 206.25 | G123: 202.45 | H123: 198.50 | I123: 214.00 | J123: 217.95 | K123: 221.75 | L123: 214.15 | M123: 206.4 | N123: 5964750 | O123: -1.89%
A124: 114 | B124: Others | C124: KSCL | D124: 510.15 | E124: 512.40 | F124: 503.95 | G124: 497.75 | H124: 489.30 | I124: 518.60 | J124: 527.05 | K124: 533.25 | L124: 520.85 | M124: 506.2 | N124: 1081500 | O124: 2.12%
A125: 115 | B125: Banking | C125: KTKBANK | D125: 102.35 | E125: 102.75 | F125: 101.45 | G125: 100.55 | H125: 99.25 | I125: 103.65 | J125: 104.95 | K125: 105.85 | L125: 104.05 | M125: 101.85 | N125: 15035000 | O125: -0.50%
A126: 116 | B126: Finance | C126: L&TFH | D126: 143.90 | E126: 144.13 | F126: 142.72 | G126: 141.53 | H126: 140.12 | I126: 145.32 | J126: 146.73 | K126: 147.92 | L126: 145.55 | M126: 142.95 | N126: 19026000 | O126: 2.42%
A127: 117 | B127: Finance | C127: LICHSGFIN | D127: 436.40 | E127: 438.22 | F127: 428.83 | G127: 421.27 | H127: 411.88 | I127: 445.78 | J127: 455.17 | K127: 462.73 | L127: 447.6 | M127: 430.65 | N127: 9315900 | O127: 1.00%
A128: 118 | B128: Capital_Goods | C128: LT | D128: 1402.30 | E128: 1407.60 | F128: 1391.70 | G128: 1381.10 | H128: 1365.20 | I128: 1418.20 | J128: 1434.10 | K128: 1444.70 | L128: 1423.5 | M128: 1397 | N128: 9025875 | O128: 0.49%
A129: 119 | B129: Pharma | C129: LUPIN | D129: 863.20 | E129: 867.20 | F129: 844.45 | G129: 825.70 | H129: 802.95 | I129: 885.95 | J129: 908.70 | K129: 927.45 | L129: 889.95 | M129: 848.45 | N129: 8349600 | O129: 3.24%
A130: 120 | B130: Automobile | C130: M&M | D130: 721.90 | E130: 728.18 | F130: 712.37 | G130: 702.83 | H130: 687.02 | I130: 737.72 | J130: 753.53 | K130: 763.07 | L130: 744 | M130: 718.65 | N130: 14629000 | O130: 4.85%
A131: 121 | B131: Finance | C131: M&MFIN | D131: 421.05 | E131: 425.12 | F131: 412.23 | G131: 403.42 | H131: 390.53 | I131: 433.93 | J131: 446.82 | K131: 455.63 | L131: 438 | M131: 416.3 | N131: 8990000 | O131: -2.92%
A132: 122 | B132: Others | C132: MANAPPURAM | D132: 83.10 | E132: 83.43 | F132: 82.02 | G132: 80.93 | H132: 79.52 | I132: 84.52 | J132: 85.93 | K132: 87.02 | L132: 84.85 | M132: 82.35 | N132: 11706000 | O132: 1.30%
A133: 123 | B133: FMCG | C133: MARICO | D133: 356.90 | E133: 357.15 | F133: 354.40 | G133: 351.90 | H133: 349.15 | I133: 359.65 | J133: 362.40 | K133: 364.90 | L133: 359.9 | M133: 354.65 | N133: 9071400 | O133: 0.52%
A134: 124 | B134: Automobile | C134: MARUTI | D134: 7590.80 | E134: 7634.28 | F134: 7518.57 | G134: 7446.33 | H134: 7330.62 | I134: 7706.52 | J134: 7822.23 | K134: 7894.47 | L134: 7750 | M134: 7562.05 | N134: 2076975 | O134: 2.07%
A135: 125 | B135: FMCG | C135: MCDOWELL-N | D135: 646.70 | E135: 648.52 | F135: 640.83 | G135: 634.97 | H135: 627.28 | I135: 654.38 | J135: 662.07 | K135: 667.93 | L135: 656.2 | M135: 642.65 | N135: 8776250 | O135: -1.24%
A136: 126 | B136: Others | C136: MCX | D136: 719.75 | E136: 721.72 | F136: 714.23 | G136: 708.72 | H136: 701.23 | I136: 727.23 | J136: 734.72 | K136: 740.23 | L136: 729.2 | M136: 716.2 | N136: 2483600 | O136: -3.27%
A137: 127 | B137: Finance | C137: MFSL | D137: 434.75 | E137: 433.85 | F137: 421.45 | G137: 408.15 | H137: 395.75 | I137: 447.15 | J137: 459.55 | K137: 472.85 | L137: 446.25 | M137: 420.55 | N137: 2056800 | O137: -2.39%
A138: 128 | B138: Others | C138: MGL | D138: 868.10 | E138: 863.73 | F138: 855.62 | G138: 843.13 | H138: 835.02 | I138: 876.22 | J138: 884.33 | K138: 896.82 | L138: 871.85 | M138: 851.25 | N138: 942600 | O138: -2.00%
A139: 129 | B139: Technology | C139: MINDTREE | D139: 875.90 | E139: 876.82 | F139: 866.68 | G139: 857.47 | H139: 847.33 | I139: 886.03 | J139: 896.17 | K139: 905.38 | L139: 886.95 | M139: 867.6 | N139: 2385000 | O139: -2.00%
A140: 130 | B140: Automobile | C140: MOTHERSUMI | D140: 158.15 | E140: 160.07 | F140: 155.08 | G140: 152.02 | H140: 147.03 | I140: 163.13 | J140: 168.12 | K140: 171.18 | L140: 165.05 | M140: 157 | N140: 25384800 | O140: 0.87%
A141: 131 | B141: Automobile | C141: MRF | D141: 65596.00 | E141: 65828.00 | F141: 65238.00 | G141: 64880.00 | H141: 64290.00 | I141: 66186.00 | J141: 66776.00 | K141: 67134.00 | L141: 66418 | M141: 65470 | N141: 28160 | O141: 2.74%
A142: 132 | B142: Others | C142: MRPL | D142: 71.70 | E142: 71.90 | F142: 70.05 | G142: 68.40 | H142: 66.55 | I142: 73.55 | J142: 75.40 | K142: 77.05 | L142: 73.75 | M142: 70.25 | N142: 3358000 | O142: 0.07%
A143: 133 | B143: Finance | C143: MUTHOOTFIN | D143: 446.40 | E143: 446.27 | F143: 441.28 | G143: 436.17 | H143: 431.18 | I143: 451.38 | J143: 456.37 | K143: 461.48 | L143: 451.25 | M143: 441.15 | N143: 1612500 | O143: -1.47%
A144: 134 | B144: Others | C144: NATIONALUM | D144: 65.30 | E144: 66.10 | F144: 64.30 | G144: 63.30 | H144: 61.50 | I144: 67.10 | J144: 68.90 | K144: 69.90 | L144: 67.9 | M144: 65.1 | N144: 24456000 | O144: 2.86%
A145: 135 | B145: Others | C145: NBCC | D145: 54.20 | E145: 54.78 | F145: 52.77 | G145: 51.33 | H145: 49.32 | I145: 56.22 | J145: 58.23 | K145: 59.67 | L145: 56.8 | M145: 53.35 | N145: 35444000 | O145: 2.39%
A146: 136 | B146: Infrastructure | C146: NCC | D146: 84.25 | E146: 84.97 | F146: 82.78 | G146: 81.32 | H146: 79.13 | I146: 86.43 | J146: 88.62 | K146: 90.08 | L146: 87.15 | M146: 83.5 | N146: 51112000 | O146: 1.93%
A147: 137 | B147: Others | C147: NESTLEIND | D147: 10510.70 | E147: 10536.88 | F147: 10438.82 | G147: 10366.93 | H147: 10268.87 | I147: 10608.77 | J147: 10706.83 | K147: 10778.72 | L147: 10634.95 | M147: 10465 | N147: 272650 | O147: 6.46%
A148: 138 | B148: Power | C148: NHPC | D148: 26.25 | E148: 26.27 | F148: 26.13 | G148: 26.02 | H148: 25.88 | I148: 26.38 | J148: 26.52 | K148: 26.63 | L148: 26.4 | M148: 26.15 | N148: 17253000 | O148: -0.93%
A149: 139 | B149: Technology | C149: NIITTECH | D149: 1118.10 | E149: 1119.02 | F149: 1106.18 | G149: 1094.27 | H149: 1081.43 | I149: 1130.93 | J149: 1143.77 | K149: 1155.68 | L149: 1131.85 | M149: 1107.1 | N149: 1927500 | O149: -1.38%
A150: 140 | B150: Metals | C150: NMDC | D150: 92.30 | E150: 92.93 | F150: 90.57 | G150: 88.83 | H150: 86.47 | I150: 94.67 | J150: 97.03 | K150: 98.77 | L150: 95.3 | M150: 91.2 | N150: 20556000 | O150: 2.85%
A151: 141 | B151: Power | C151: NTPC | D151: 140.40 | E151: 140.82 | F151: 137.98 | G151: 135.57 | H151: 132.73 | I151: 143.23 | J151: 146.07 | K151: 148.48 | L151: 143.65 | M151: 138.4 | N151: 80996000 | O151: 3.30%
A152: 142 | B152: Technology | C152: OFSS | D152: 3565.15 | E152: 3572.40 | F152: 3530.80 | G152: 3496.45 | H152: 3454.85 | I152: 3606.75 | J152: 3648.35 | K152: 3682.70 | L152: 3614 | M152: 3538.05 | N152: 182100 | O152: -5.01%
A153: 143 | B153: Oil_Gas | C153: OIL | D153: 179.90 | E153: 181.83 | F153: 177.27 | G153: 174.63 | H153: 170.07 | I153: 184.47 | J153: 189.03 | K153: 191.67 | L153: 186.4 | M153: 179.2 | N153: 11427438 | O153: 4.87%
A154: 144 | B154: Oil_Gas | C154: ONGC | D154: 142.40 | E154: 143.48 | F154: 139.97 | G154: 137.53 | H154: 134.02 | I154: 145.92 | J154: 149.43 | K154: 151.87 | L154: 147 | M154: 141.05 | N154: 83898750 | O154: 4.91%
A155: 145 | B155: Banking | C155: ORIENTBANK | D155: 87.20 | E155: 88.02 | F155: 85.43 | G155: 83.67 | H155: 81.08 | I155: 89.78 | J155: 92.37 | K155: 94.13 | L155: 90.6 | M155: 86.25 | N155: 11394000 | O155: -4.34%
A156: 146 | B156: Textile | C156: PAGEIND | D156: 25275.65 | E156: 25504.55 | F156: 24871.10 | G156: 24466.55 | H156: 23833.10 | I156: 25909.10 | J156: 26542.55 | K156: 26947.10 | L156: 26138 | M156: 25100 | N156: 131675 | O156: 1.27%
A157: 147 | B157: Others | C157: PCJEWELLER | D157: 67.65 | E157: 68.53 | F157: 65.42 | G157: 63.18 | H157: 60.07 | I157: 70.77 | J157: 73.88 | K157: 76.12 | L157: 71.65 | M157: 66.3 | N157: 7682500 | O157: 0.71%
A158: 148 | B158: Pharma | C158: PEL | D158: 2176.10 | E158: 2178.27 | F158: 2143.98 | G158: 2111.87 | H158: 2077.58 | I158: 2210.38 | J158: 2244.67 | K158: 2276.78 | L158: 2212.55 | M158: 2146.15 | N158: 2809506 | O158: -0.10%
A159: 149 | B159: Oil_Gas | C159: PETRONET | D159: 210.55 | E159: 211.27 | F159: 208.68 | G159: 206.82 | H159: 204.23 | I159: 213.13 | J159: 215.72 | K159: 217.58 | L159: 213.85 | M159: 209.4 | N159: 13506000 | O159: 2.46%
A160: 150 | B160: Finance | C160: PFC | D160: 91.90 | E160: 93.20 | F160: 90.00 | G160: 88.10 | H160: 84.90 | I160: 95.10 | J160: 98.30 | K160: 100.20 | L160: 96.4 | M160: 91.3 | N160: 47655400 | O160: 2.99%
A161: 151 | B161: FMCG | C161: PIDILITIND | D161: 1161.35 | E161: 1164.77 | F161: 1147.58 | G161: 1133.82 | H161: 1116.63 | I161: 1178.53 | J161: 1195.72 | K161: 1209.48 | L161: 1181.95 | M161: 1151 | N161: 3256000 | O161: -3.55%
A162: 152 | B162: Banking | C162: PNB | D162: 69.05 | E162: 69.28 | F162: 68.22 | G162: 67.38 | H162: 66.32 | I162: 70.12 | J162: 71.18 | K162: 72.02 | L162: 70.35 | M162: 68.45 | N162: 108062500 | O162: 1.33%
A163: 153 | B163: Power | C163: POWERGRID | D163: 184.25 | E163: 184.98 | F163: 182.37 | G163: 180.48 | H163: 177.87 | I163: 186.87 | J163: 189.48 | K163: 191.37 | L163: 187.6 | M163: 183.1 | N163: 36572000 | O163: 2.00%
A164: 154 | B164: Power | C164: PTC | D164: 81.05 | E164: 81.32 | F164: 79.73 | G164: 78.42 | H164: 76.83 | I164: 82.63 | J164: 84.22 | K164: 85.53 | L164: 82.9 | M164: 80 | N164: 7328000 | O164: -3.58%
A165: 155 | B165: Others | C165: PVR | D165: 1485.40 | E165: 1487.80 | F165: 1469.60 | G165: 1453.80 | H165: 1435.60 | I165: 1503.60 | J165: 1521.80 | K165: 1537.60 | L165: 1506 | M165: 1472 | N165: 1307200 | O165: -1.00%
A166: 156 | B166: Cement | C166: RAMCOCEM | D166: 598.80 | E166: 595.03 | F166: 588.67 | G166: 578.53 | H166: 572.17 | I166: 605.17 | J166: 611.53 | K166: 621.67 | L166: 601.4 | M166: 584.9 | N166: 788000 | O166: -4.55%
A167: 157 | B167: Others | C167: RAYMOND | D167: 802.55 | E167: 805.80 | F167: 790.75 | G167: 778.95 | H167: 763.90 | I167: 817.60 | J167: 832.65 | K167: 844.45 | L167: 820.85 | M167: 794 | N167: 3742400 | O167: -0.26%
A168: 158 | B168: Banking | C168: RBLBANK | D168: 554.60 | E168: 553.47 | F168: 548.93 | G168: 543.27 | H168: 538.73 | I168: 559.13 | J168: 563.67 | K168: 569.33 | L168: 558 | M168: 547.8 | N168: 7060800 | O168: 2.35%
A169: 159 | B169: Telecom | C169: RCOM | D169: 16.30 | E169: 16.65 | F169: 15.75 | G169: 15.20 | H169: 14.30 | I169: 17.20 | J169: 18.10 | K169: 18.65 | L169: 17.55 | M169: 16.1 | N169: 80206000 | O169: 4.83%
A170: 160 | B170: Power | C170: RECLTD | D170: 104.75 | E170: 105.63 | F170: 102.32 | G170: 99.88 | H170: 96.57 | I170: 108.07 | J170: 111.38 | K170: 113.82 | L170: 108.95 | M170: 103.2 | N170: 45516000 | O170: 2.20%
A171: 161 | B171: Finance | C171: RELCAPITAL | D171: 219.60 | E171: 223.78 | F171: 212.87 | G171: 206.13 | H171: 195.22 | I171: 230.52 | J171: 241.43 | K171: 248.17 | L171: 234.7 | M171: 217.05 | N171: 11952000 | O171: 4.84%
A172: 162 | B172: Oil_Gas | C172: RELIANCE | D172: 1161.25 | E172: 1156.77 | F172: 1148.53 | G172: 1135.82 | H172: 1127.58 | I172: 1169.48 | J172: 1177.72 | K172: 1190.43 | L172: 1165 | M172: 1144.05 | N172: 41480500 | O172: 0.39%
A173: 163 | B173: Power | C173: RELINFRA | D173: 308.90 | E173: 316.55 | F173: 298.40 | G173: 287.90 | H173: 269.75 | I173: 327.05 | J173: 345.20 | K173: 355.70 | L173: 334.7 | M173: 306.05 | N173: 7764900 | O173: 1.88%
A174: 164 | B174: Others | C174: REPCOHOME | D174: 355.65 | E174: 356.58 | F174: 350.17 | G174: 344.68 | H174: 338.27 | I174: 362.07 | J174: 368.48 | K174: 373.97 | L174: 363 | M174: 351.1 | N174: 1420400 | O174: 3.20%
A175: 165 | B175: Power | C175: RPOWER | D175: 29.20 | E175: 29.60 | F175: 28.50 | G175: 27.80 | H175: 26.70 | I175: 30.30 | J175: 31.40 | K175: 32.10 | L175: 30.7 | M175: 28.9 | N175: 41487000 | O175: -1.25%
A176: 166 | B176: Metals | C176: SAIL | D176: 53.15 | E176: 53.82 | F176: 52.18 | G176: 51.22 | H176: 49.58 | I176: 54.78 | J176: 56.42 | K176: 57.38 | L176: 55.45 | M176: 52.85 | N176: 82260000 | O176: 4.29%
A177: 167 | B177: Banking | C177: SBIN | D177: 281.50 | E177: 281.42 | F177: 278.63 | G177: 275.77 | H177: 272.98 | I177: 284.28 | J177: 287.07 | K177: 289.93 | L177: 284.2 | M177: 278.55 | N177: 79881000 | O177: 0.36%
A178: 168 | B178: Cement | C178: SHREECEM | D178: 16458.80 | E178: 16519.73 | F178: 16254.47 | G178: 16050.13 | H178: 15784.87 | I178: 16724.07 | J178: 16989.33 | K178: 17193.67 | L178: 16785 | M178: 16315.4 | N178: 100650 | O178: -0.30%
A179: 169 | B179: Capital_Goods | C179: SIEMENS | D179: 911.75 | E179: 922.97 | F179: 894.23 | G179: 876.72 | H179: 847.98 | I179: 940.48 | J179: 969.22 | K179: 986.73 | L179: 951.7 | M179: 905.45 | N179: 2228350 | O179: -4.64%
A180: 170 | B180: Banking | C180: SOUTHBANK | D180: 16.15 | E180: 16.22 | F180: 15.88 | G180: 15.62 | H180: 15.28 | I180: 16.48 | J180: 16.82 | K180: 17.08 | L180: 16.55 | M180: 15.95 | N180: 103134792 | O180: 1.67%
A181: 171 | B181: Others | C181: SREINFRA | D181: 32.15 | E181: 32.35 | F181: 31.55 | G181: 30.95 | H181: 30.15 | I181: 32.95 | J181: 33.75 | K181: 34.35 | L181: 33.15 | M181: 31.75 | N181: 11647000 | O181: -1.96%
A182: 172 | B182: Textile | C182: SRF | D182: 2121.10 | E182: 2130.52 | F182: 2094.03 | G182: 2066.97 | H182: 2030.48 | I182: 2157.58 | J182: 2194.07 | K182: 2221.13 | L182: 2167 | M182: 2103.45 | N182: 529000 | O182: -9.11%
A183: 173 | B183: Finance | C183: SRTRANSFIN | D183: 1125.70 | E183: 1129.80 | F183: 1109.00 | G183: 1092.30 | H183: 1071.50 | I183: 1146.50 | J183: 1167.30 | K183: 1184.00 | L183: 1150.6 | M183: 1113.1 | N183: 4110000 | O183: 0.18%
A184: 174 | B184: Pharma | C184: STAR | D184: 469.80 | E184: 463.80 | F184: 456.30 | G184: 442.80 | H184: 435.30 | I184: 477.30 | J184: 484.80 | K184: 498.30 | L184: 471.3 | M184: 450.3 | N184: 3616900 | O184: -9.26%
A185: 175 | B185: Pharma | C185: SUNPHARMA | D185: 415.05 | E185: 422.17 | F185: 396.28 | G185: 377.52 | H185: 351.63 | I185: 440.93 | J185: 466.82 | K185: 485.58 | L185: 448.05 | M185: 403.4 | N185: 59514400 | O185: 8.51%
A186: 176 | B186: Media | C186: SUNTV | D186: 575.45 | E186: 580.67 | F186: 565.43 | G186: 555.42 | H186: 540.18 | I186: 590.68 | J186: 605.92 | K186: 615.93 | L186: 595.9 | M186: 570.65 | N186: 7737000 | O186: 2.46%
A187: 177 | B187: Power | C187: SUZLON | D187: 5.30 | E187: 5.33 | F187: 5.17 | G187: 5.03 | H187: 4.87 | I187: 5.47 | J187: 5.63 | K187: 5.77 | L187: 5.5 | M187: 5.2 | N187: 297374000 | O187: -0.77%
A188: 178 | B188: Banking | C188: SYNDIBANK | D188: 33.70 | E188: 33.85 | F188: 33.30 | G188: 32.90 | H188: 32.35 | I188: 34.25 | J188: 34.80 | K188: 35.20 | L188: 34.4 | M188: 33.45 | N188: 23802000 | O188: -0.05%
A189: 179 | B189: Fertilisers | C189: TATACHEM | D189: 667.60 | E189: 673.05 | F189: 660.55 | G189: 653.50 | H189: 641.00 | I189: 680.10 | J189: 692.60 | K189: 699.65 | L189: 685.55 | M189: 666 | N189: 2842500 | O189: -0.21%
A190: 180 | B190: Telecom | C190: TATACOMM | D190: 518.95 | E190: 521.23 | F190: 514.47 | G190: 509.98 | H190: 503.22 | I190: 525.72 | J190: 532.48 | K190: 536.97 | L190: 528 | M190: 516.75 | N190: 2557000 | O190: 0.85%
A191: 181 | B191: Technology | C191: TATAELXSI | D191: 1045.85 | E191: 1042.20 | F191: 1031.20 | G191: 1016.55 | H191: 1005.55 | I191: 1056.85 | J191: 1067.85 | K191: 1082.50 | L191: 1053.2 | M191: 1027.55 | N191: 1340400 | O191: -3.26%
A192: 182 | B192: FMCG | C192: TATAGLOBAL | D192: 212.60 | E192: 210.83 | F192: 208.17 | G192: 203.73 | H192: 201.07 | I192: 215.27 | J192: 217.93 | K192: 222.37 | L192: 213.5 | M192: 206.4 | N192: 10930500 | O192: -4.63%
A193: 183 | B193: Automobile | C193: TATAMOTORS | D193: 169.60 | E193: 170.75 | F193: 167.65 | G193: 165.70 | H193: 162.60 | I193: 172.70 | J193: 175.80 | K193: 177.75 | L193: 173.85 | M193: 168.8 | N193: 60619000 | O193: 3.47%
A194: 184 | B194: Automobile | C194: TATAMTRDVR | D194: 92.60 | E194: 93.08 | F194: 91.67 | G194: 90.73 | H194: 89.32 | I194: 94.02 | J194: 95.43 | K194: 96.37 | L194: 94.5 | M194: 92.15 | N194: 26653800 | O194: -1.01%
A195: 185 | B195: Power | C195: TATAPOWER | D195: 80.85 | E195: 80.95 | F195: 80.10 | G195: 79.35 | H195: 78.50 | I195: 81.70 | J195: 82.55 | K195: 83.30 | L195: 81.8 | M195: 80.2 | N195: 46197000 | O195: -0.87%
A196: 186 | B196: Metals | C196: TATASTEEL | D196: 519.55 | E196: 523.90 | F196: 513.05 | G196: 506.55 | H196: 495.70 | I196: 530.40 | J196: 541.25 | K196: 547.75 | L196: 534.75 | M196: 517.4 | N196: 33457574 | O196: 2.18%
A197: 187 | B197: Technology | C197: TCS | D197: 2017.05 | E197: 2012.43 | F197: 1997.87 | G197: 1978.68 | H197: 1964.12 | I197: 2031.62 | J197: 2046.18 | K197: 2065.37 | L197: 2027 | M197: 1993.25 | N197: 11087000 | O197: -1.18%
A198: 188 | B198: Technology | C198: TECHM | D198: 727.20 | E198: 727.95 | F198: 715.05 | G198: 702.90 | H198: 690.00 | I198: 740.10 | J198: 753.00 | K198: 765.15 | L198: 740.85 | M198: 715.8 | N198: 12488400 | O198: 0.70%
A199: 189 | B199: FMCG | C199: TITAN | D199: 925.30 | E199: 920.47 | F199: 910.83 | G199: 896.37 | H199: 886.73 | I199: 934.93 | J199: 944.57 | K199: 959.03 | L199: 930.1 | M199: 906 | N199: 13269750 | O199: 2.09%
A200: 190 | B200: Pharma | C200: TORNTPHARM | D200: 1726.05 | E200: 1724.85 | F200: 1697.20 | G200: 1668.35 | H200: 1640.70 | I200: 1753.70 | J200: 1781.35 | K200: 1810.20 | L200: 1752.5 | M200: 1696 | N200: 367000 | O200: -3.67%
A201: 191 | B201: Power | C201: TORNTPOWER | D201: 260.70 | E201: 262.35 | F201: 257.70 | G201: 254.70 | H201: 250.05 | I201: 265.35 | J201: 270.00 | K201: 273.00 | L201: 267 | M201: 259.35 | N201: 2361000 | O201: -10.26%
A202: 192 | B202: Media | C202: TV18BRDCST | D202: 35.30 | E202: 35.47 | F202: 34.93 | G202: 34.57 | H202: 34.03 | I202: 35.83 | J202: 36.37 | K202: 36.73 | L202: 36 | M202: 35.1 | N202: 47032000 | O202: 0.09%
A203: 193 | B203: Automobile | C203: TVSMOTOR | D203: 556.20 | E203: 555.65 | F203: 551.65 | G203: 547.10 | H203: 543.10 | I203: 560.20 | J203: 564.20 | K203: 568.75 | L203: 559.65 | M203: 551.1 | N203: 5610000 | O203: -3.16%
A204: 194 | B204: FMCG | C204: UBL | D204: 1210.00 | E204: 1214.83 | F204: 1192.57 | G204: 1175.13 | H204: 1152.87 | I204: 1232.27 | J204: 1254.53 | K204: 1271.97 | L204: 1237.1 | M204: 1197.4 | N204: 2031400 | O204: -3.43%
A205: 195 | B205: Finance | C205: UJJIVAN | D205: 225.15 | E205: 225.67 | F205: 217.43 | G205: 209.72 | H205: 201.48 | I205: 233.38 | J205: 241.62 | K205: 249.33 | L205: 233.9 | M205: 217.95 | N205: 3392000 | O205: -6.73%
A206: 196 | B206: Cement | C206: ULTRACEMCO | D206: 3985.80 | E206: 3999.27 | F206: 3956.53 | G206: 3927.27 | H206: 3884.53 | I206: 4028.53 | J206: 4071.27 | K206: 4100.53 | L206: 4042 | M206: 3970 | N206: 2077600 | O206: -1.72%
... 24 more rows

Sheet Cash Intra
M5: Back to Main Page
A6: FOR INTRA DAY TRADING | K6: =Main!B10 -> 2018-12-06
A8: Sr.no | B8: Scrip | C8: CLOSE RATE | D8: Pivot Point | E8: Supports | H8: Resistances
C9: Point | E9: S1 | F9: S2 | G9: S3 | H9: R1 | I9: R2 | J9: R3 | K9: HIGH | L9: LOW | M9: Total Trade Quanity in Lakhs
A10: 1 | B10: Nifty 50 | C10: 10782.9 | D10: 10783.97 | E10: 10746.88 | F10: 10710.87 | G10: 10673.78 | H10: 10819.98 | I10: 10857.07 | J10: 10893.08 | K10: 10821.05 | L10: 10747.95
A11: 2 | B11: Nifty Bank | C11: 26519.6 | D11: 26530.20 | E11: 26433.05 | F11: 26346.50 | G11: 26249.35 | H11: 26616.75 | I11: 26713.90 | J11: 26800.45 | K11: 26627.35 | L11: 26443.65
A12: 3 | B12: Nifty CPSE | C12: 1990.65 | D12: 2002.77 | E12: 1964.78 | F12: 1938.92 | G12: 1900.93 | H12: 2028.63 | I12: 2066.62 | J12: 2092.48 | K12: 2040.75 | L12: 1976.9
A13: 4 | B13: Nifty Infra | C13: 3058.75 | D13: 3071.87 | E13: 3038.08 | F13: 3017.42 | G13: 2983.63 | H13: 3092.53 | I13: 3126.32 | J13: 3146.98 | K13: 3105.65 | L13: 3051.2
A14: 5 | B14: Nifty IT | C14: 15012.95 | D14: 14954.70 | E14: 14847.00 | F14: 14681.05 | G14: 14573.35 | H14: 15120.65 | I14: 15228.35 | J14: 15394.30 | K14: 15062.4 | L14: 14788.75
A15: 6 | B15: Nifty PSE | C15: 3231.75 | D15: 3252.35 | E15: 3203.15 | F15: 3174.55 | G15: 3125.35 | H15: 3280.95 | I15: 3330.15 | J15: 3358.75 | K15: 3301.55 | L15: 3223.75
A16: 7 | B16: Nifty Midcap 50 | C16: 4706.55 | D16: 4720.82 | E16: 4667.13 | F16: 4627.72 | G16: 4574.03 | H16: 4760.23 | I16: 4813.92 | J16: 4853.33 | K16: 4774.5 | L16: 4681.4
A17: 8 | B17: ABB | C17: 1372.7 | D17: 1372.47 | E17: 1362.78 | F17: 1352.87 | G17: 1343.18 | H17: 1382.38 | I17: 1392.07 | J17: 1401.98 | K17: 1382.15 | L17: 1362.55 | M17: 0.22409
A18: 9 | B18: ACC | C18: 1471.15 | D18: 1481.17 | E18: 1455.83 | F18: 1440.52 | G18: 1415.18 | H18: 1496.48 | I18: 1521.82 | J18: 1537.13 | K18: 1506.5 | L18: 1465.85 | M18: 5.14306
A19: 10 | B19: AIAENG | C19: 1691.15 | D19: 1703.60 | E19: 1666.70 | F19: 1642.25 | G19: 1605.35 | H19: 1728.05 | I19: 1764.95 | J19: 1789.40 | K19: 1740.5 | L19: 1679.15 | M19: 0.1466
A20: 11 | B20: AUBANK | C20: 612.05 | D20: 610.02 | E20: 602.03 | F20: 592.02 | G20: 584.03 | H20: 620.03 | I20: 628.02 | J20: 638.03 | K20: 618 | L20: 600 | M20: 3.95189
A21: 12 | B21: ADANIENT | C21: 157.4 | D21: 159.37 | E21: 153.78 | F21: 150.17 | G21: 144.58 | H21: 162.98 | I21: 168.57 | J21: 172.18 | K21: 164.95 | L21: 155.75 | M21: 86.01249
A22: 13 | B22: ADANIPORTS | C22: 374.75 | D22: 374.73 | E22: 372.72 | F22: 370.68 | G22: 368.67 | H22: 376.77 | I22: 378.78 | J22: 380.82 | K22: 376.75 | L22: 372.7 | M22: 48.47267
A23: 14 | B23: ADANIPOWER | C23: 54.05 | D23: 54.25 | E23: 53.30 | F23: 52.55 | G23: 51.60 | H23: 55.00 | I23: 55.95 | J23: 56.70 | K23: 55.2 | L23: 53.5 | M23: 179.05386
A24: 15 | B24: ABFRL | C24: 183.6 | D24: 183.68 | E24: 181.37 | F24: 179.13 | G24: 176.82 | H24: 185.92 | I24: 188.23 | J24: 190.47 | K24: 186 | L24: 181.45 | M24: 1.98192
A25: 16 | B25: AJANTPHARM | C25: 1098.2 | D25: 1107.88 | E25: 1068.32 | F25: 1038.43 | G25: 998.87 | H25: 1137.77 | I25: 1177.33 | J25: 1207.22 | K25: 1147.45 | L25: 1078 | M25: 3.53209
A26: 17 | B26: ALKEM | C26: 1916.15 | D26: 1914.07 | E26: 1893.13 | F26: 1870.12 | G26: 1849.18 | H26: 1937.08 | I26: 1958.02 | J26: 1981.03 | K26: 1935 | L26: 1891.05 | M26: 0.11232
A27: 18 | B27: AMARAJABAT | C27: 709 | D27: 709.85 | E27: 704.75 | F27: 700.50 | G27: 695.40 | H27: 714.10 | I27: 719.20 | J27: 723.45 | K27: 714.95 | L27: 705.6 | M27: 2.84802
A28: 19 | B28: AMBUJACEM | C28: 216.65 | D28: 216.93 | E28: 215.07 | F28: 213.48 | G28: 211.62 | H28: 218.52 | I28: 220.38 | J28: 221.97 | K28: 218.8 | L28: 215.35 | M28: 18.36318
A29: 20 | B29: APOLLOHOSP | C29: 1231.2 | D29: 1238.32 | E29: 1207.63 | F29: 1184.07 | G29: 1153.38 | H29: 1261.88 | I29: 1292.57 | J29: 1316.13 | K29: 1269 | L29: 1214.75 | M29: 7.49896
A30: 21 | B30: APOLLOTYRE | C30: 228.1 | D30: 229.85 | E30: 224.35 | F30: 220.60 | G30: 215.10 | H30: 233.60 | I30: 239.10 | J30: 242.85 | K30: 235.35 | L30: 226.1 | M30: 21.23955
A31: 22 | B31: ARVIND | C31: 103.7 | D31: 103.72 | E31: 100.28 | F31: 96.87 | G31: 93.43 | H31: 107.13 | I31: 110.57 | J31: 113.98 | K31: 107.15 | L31: 100.3 | M31: 206.82971
A32: 23 | B32: ASHOKLEY | C32: 103.6 | D32: 104.38 | E32: 101.87 | F32: 100.13 | G32: 97.62 | H32: 106.12 | I32: 108.63 | J32: 110.37 | K32: 106.9 | L32: 102.65 | M32: 356.63386
A33: 24 | B33: ASIANPAINT | C33: 1329.5 | D33: 1332.03 | E33: 1321.07 | F33: 1312.63 | G33: 1301.67 | H33: 1340.47 | I33: 1351.43 | J33: 1359.87 | K33: 1343 | L33: 1323.6 | M33: 8.64628
A34: 25 | B34: AUROPHARMA | C34: 796.35 | D34: 805.05 | E34: 783.30 | F34: 770.25 | G34: 748.50 | H34: 818.10 | I34: 839.85 | J34: 852.90 | K34: 826.8 | L34: 792 | M34: 33.74742
A35: 26 | B35: DMART | C35: 1502.55 | D35: 1495.53 | E35: 1482.17 | F35: 1461.78 | G35: 1448.42 | H35: 1515.92 | I35: 1529.28 | J35: 1549.67 | K35: 1508.9 | L35: 1475.15 | M35: 5.80513
A36: 27 | B36: AXISBANK | C36: 614.95 | D36: 617.43 | E36: 610.92 | F36: 606.88 | G36: 600.37 | H36: 621.47 | I36: 627.98 | J36: 632.02 | K36: 623.95 | L36: 613.4 | M36: 97.28083
A37: 28 | B37: BAJAJ-AUTO | C37: 2764.1 | D37: 2756.57 | E37: 2738.63 | F37: 2713.17 | G37: 2695.23 | H37: 2782.03 | I37: 2799.97 | J37: 2825.43 | K37: 2774.5 | L37: 2731.1 | M37: 1.78352
A38: 29 | B38: BAJFINANCE | C38: 2494.1 | D38: 2501.43 | E38: 2462.97 | F38: 2431.83 | G38: 2393.37 | H38: 2532.57 | I38: 2571.03 | J38: 2602.17 | K38: 2539.9 | L38: 2470.3 | M38: 13.27031
A39: 30 | B39: BAJAJFINSV | C39: 5902.5 | D39: 5937.08 | E39: 5804.17 | F39: 5705.83 | G39: 5572.92 | H39: 6035.42 | I39: 6168.33 | J39: 6266.67 | K39: 6070 | L39: 5838.75 | M39: 1.59561
A40: 31 | B40: BALKRISIND | C40: 932.95 | D40: 941.95 | E40: 920.30 | F40: 907.65 | G40: 886.00 | H40: 954.60 | I40: 976.25 | J40: 988.90 | K40: 963.6 | L40: 929.3 | M40: 8.58727
A41: 32 | B41: BANKBARODA | C41: 107.45 | D41: 107.23 | E41: 106.27 | F41: 105.08 | G41: 104.12 | H41: 108.42 | I41: 109.38 | J41: 110.57 | K41: 108.2 | L41: 106.05 | M41: 135.16608
A42: 33 | B42: BANKINDIA | C42: 83.45 | D42: 84.00 | E42: 82.10 | F42: 80.75 | G42: 78.85 | H42: 85.35 | I42: 87.25 | J42: 88.60 | K42: 85.9 | L42: 82.65 | M42: 80.43908
A43: 34 | B43: BATAINDIA | C43: 1051.35 | D43: 1050.62 | E43: 1042.33 | F43: 1033.32 | G43: 1025.03 | H43: 1059.63 | I43: 1067.92 | J43: 1076.93 | K43: 1058.9 | L43: 1041.6 | M43: 6.07938
A44: 35 | B44: BERGEPAINT | C44: 315.5 | D44: 316.15 | E44: 311.55 | F44: 307.60 | G44: 303.00 | H44: 320.10 | I44: 324.70 | J44: 328.65 | K44: 320.75 | L44: 312.2 | M44: 9.49861
A45: 36 | B45: BEL | C45: 82.7 | D45: 82.53 | E45: 81.17 | F45: 79.63 | G45: 78.27 | H45: 84.07 | I45: 85.43 | J45: 86.97 | K45: 83.9 | L45: 81 | M45: 55.01276
A46: 37 | B46: BHARATFIN | C46: 1013.3 | D46: 1015.92 | E46: 1003.68 | F46: 994.07 | G46: 981.83 | H46: 1025.53 | I46: 1037.77 | J46: 1047.38 | K46: 1028.15 | L46: 1006.3 | M46: 17.43294
A47: 38 | B47: BHARATFORG | C47: 531.45 | D47: 540.67 | E47: 516.33 | F47: 501.22 | G47: 476.88 | H47: 555.78 | I47: 580.12 | J47: 595.23 | K47: 565 | L47: 525.55 | M47: 102.32588
A48: 39 | B48: BHEL | C48: 66.45 | D48: 67.60 | E48: 64.95 | F48: 63.45 | G48: 60.80 | H48: 69.10 | I48: 71.75 | J48: 73.25 | K48: 70.25 | L48: 66.1 | M48: 217.03542
A49: 40 | B49: BPCL | C49: 329.45 | D49: 331.95 | E49: 325.55 | F49: 321.65 | G49: 315.25 | H49: 335.85 | I49: 342.25 | J49: 346.15 | K49: 338.35 | L49: 328.05 | M49: 47.69965
A50: 41 | B50: BHARTIARTL | C50: 312.8 | D50: 314.62 | E50: 308.38 | F50: 303.97 | G50: 297.73 | H50: 319.03 | I50: 325.27 | J50: 329.68 | K50: 320.85 | L50: 310.2 | M50: 45.30938
A51: 42 | B51: INFRATEL | C51: 258.35 | D51: 257.03 | E51: 254.67 | F51: 250.98 | G51: 248.62 | H51: 260.72 | I51: 263.08 | J51: 266.77 | K51: 259.4 | L51: 253.35 | M51: 11.94976
A52: 43 | B52: BIOCON | C52: 625.45 | D52: 624.97 | E52: 619.93 | F52: 614.42 | G52: 609.38 | H52: 630.48 | I52: 635.52 | J52: 641.03 | K52: 630 | L52: 619.45 | M52: 16.49496
A53: 44 | B53: BOSCHLTD | C53: 18352.95 | D53: 18501.95 | E53: 18143.90 | F53: 17934.85 | G53: 17576.80 | H53: 18711.00 | I53: 19069.05 | J53: 19278.10 | K53: 18860 | L53: 18292.9 | M53: 0.49108
A54: 45 | B54: BRITANNIA | C54: 3093 | D54: 3089.15 | E54: 3068.90 | F54: 3044.80 | G54: 3024.55 | H54: 3113.25 | I54: 3133.50 | J54: 3157.60 | K54: 3109.4 | L54: 3065.05 | M54: 2.05221
A55: 46 | B55: CRISIL | C55: 1542.45 | D55: 1548.07 | E55: 1529.38 | F55: 1516.32 | G55: 1497.63 | H55: 1561.13 | I55: 1579.82 | J55: 1592.88 | K55: 1566.75 | L55: 1535 | M55: 0.05058
A56: 47 | B56: CADILAHC | C56: 358.45 | D56: 358.82 | E56: 354.13 | F56: 349.82 | G56: 345.13 | H56: 363.13 | I56: 367.82 | J56: 372.13 | K56: 363.5 | L56: 354.5 | M56: 16.8742
A57: 48 | B57: CANBK | C57: 252.5 | D57: 252.90 | E57: 249.85 | F57: 247.20 | G57: 244.15 | H57: 255.55 | I57: 258.60 | J57: 261.25 | K57: 255.95 | L57: 250.25 | M57: 55.8734
A58: 49 | B58: CASTROLIND | C58: 148.7 | D58: 149.23 | E58: 146.77 | F58: 144.83 | G58: 142.37 | H58: 151.17 | I58: 153.63 | J58: 155.57 | K58: 151.7 | L58: 147.3 | M58: 9.30769
A59: 50 | B59: CENTRALBK | C59: 28.8 | D59: 28.87 | E59: 28.63 | F59: 28.47 | G59: 28.23 | H59: 29.03 | I59: 29.27 | J59: 29.43 | K59: 29.1 | L59: 28.7 | M59: 1.63223
A60: 51 | B60: CENTURYTEX | C60: 904.65 | D60: 903.75 | E60: 895.50 | F60: 886.35 | G60: 878.10 | H60: 912.90 | I60: 921.15 | J60: 930.30 | K60: 912 | L60: 894.6 | M60: 3.50509
A61: 52 | B61: CHOLAFIN | C61: 1278.05 | D61: 1274.93 | E61: 1253.12 | F61: 1228.18 | G61: 1206.37 | H61: 1299.87 | I61: 1321.68 | J61: 1346.62 | K61: 1296.75 | L61: 1250 | M61: 3.21986
A62: 53 | B62: CIPLA | C62: 528.45 | D62: 534.22 | E62: 519.53 | F62: 510.62 | G62: 495.93 | H62: 543.13 | I62: 557.82 | J62: 566.73 | K62: 548.9 | L62: 525.3 | M62: 21.92065
A63: 54 | B63: COALINDIA | C63: 245.3 | D63: 247.25 | E63: 242.05 | F63: 238.80 | G63: 233.60 | H63: 250.50 | I63: 255.70 | J63: 258.95 | K63: 252.45 | L63: 244 | M63: 35.78109
A64: 55 | B64: COLPAL | C64: 1224.75 | D64: 1222.27 | E64: 1209.53 | F64: 1194.32 | G64: 1181.58 | H64: 1237.48 | I64: 1250.22 | J64: 1265.43 | K64: 1235 | L64: 1207.05 | M64: 4.84946
A65: 56 | B65: CONCOR | C65: 673.65 | D65: 674.23 | E65: 666.87 | F65: 660.08 | G65: 652.72 | H65: 681.02 | I65: 688.38 | J65: 695.17 | K65: 681.6 | L65: 667.45 | M65: 4.63225
A66: 57 | B66: COROMANDEL | C66: 408.8 | D66: 411.78 | E66: 397.57 | F66: 386.33 | G66: 372.12 | H66: 423.02 | I66: 437.23 | J66: 448.47 | K66: 426 | L66: 400.55 | M66: 1.96075
A67: 58 | B67: CROMPTON | C67: 220.05 | D67: 220.13 | E67: 217.62 | F67: 215.18 | G67: 212.67 | H67: 222.57 | I67: 225.08 | J67: 227.52 | K67: 222.65 | L67: 217.7 | M67: 1.99899
A68: 59 | B68: CUMMINSIND | C68: 782.1 | D68: 788.07 | E68: 770.83 | F68: 759.57 | G68: 742.33 | H68: 799.33 | I68: 816.57 | J68: 827.83 | K68: 805.3 | L68: 776.8 | M68: 3.3469
A69: 60 | B69: DLF | C69: 177 | D69: 175.55 | E69: 173.10 | F69: 169.20 | G69: 166.75 | H69: 179.45 | I69: 181.90 | J69: 185.80 | K69: 178 | L69: 171.65 | M69: 65.36199
A70: 61 | B70: DABUR | C70: 409.55 | D70: 408.02 | E70: 403.33 | F70: 397.12 | G70: 392.43 | H70: 414.23 | I70: 418.92 | J70: 425.13 | K70: 412.7 | L70: 401.8 | M70: 27.10255
A71: 62 | B71: DHFL | C71: 210.9 | D71: 213.40 | E71: 203.95 | F71: 197.00 | G71: 187.55 | H71: 220.35 | I71: 229.80 | J71: 236.75 | K71: 222.85 | L71: 206.45 | M71: 125.82126
A72: 63 | B72: DISHTV | C72: 35.25 | D72: 35.55 | E72: 34.75 | F72: 34.25 | G72: 33.45 | H72: 36.05 | I72: 36.85 | J72: 37.35 | K72: 36.35 | L72: 35.05 | M72: 102.31997
A73: 64 | B73: DIVISLAB | C73: 1480.35 | D73: 1482.07 | E73: 1461.33 | F73: 1442.32 | G73: 1421.58 | H73: 1501.08 | I73: 1521.82 | J73: 1540.83 | K73: 1502.8 | L73: 1463.05 | M73: 8.38036
A74: 65 | B74: LALPATHLAB | C74: 968.65 | D74: 954.03 | E74: 933.07 | F74: 897.48 | G74: 876.52 | H74: 989.62 | I74: 1010.58 | J74: 1046.17 | K74: 975 | L74: 918.45 | M74: 1.05377
A75: 66 | B75: DRREDDY | C75: 2671.65 | D75: 2677.40 | E75: 2640.85 | F75: 2610.05 | G75: 2573.50 | H75: 2708.20 | I75: 2744.75 | J75: 2775.55 | K75: 2713.95 | L75: 2646.6 | M75: 4.47631
A76: 67 | B76: EDELWEISS | C76: 192.7 | D76: 191.90 | E76: 187.80 | F76: 182.90 | G76: 178.80 | H76: 196.80 | I76: 200.90 | J76: 205.80 | K76: 196 | L76: 187 | M76: 39.40836
A77: 68 | B77: EICHERMOT | C77: 22793.45 | D77: 22919.48 | E77: 22558.97 | F77: 22324.48 | G77: 21963.97 | H77: 23153.97 | I77: 23514.48 | J77: 23748.97 | K77: 23280 | L77: 22685 | M77: 0.88551
A78: 69 | B78: EMAMILTD | C78: 434.2 | D78: 435.02 | E78: 430.28 | F78: 426.37 | G78: 421.63 | H78: 438.93 | I78: 443.67 | J78: 447.58 | K78: 439.75 | L78: 431.1 | M78: 0.40604
A79: 70 | B79: ENDURANCE | C79: 1127.1 | D79: 1123.55 | E79: 1110.05 | F79: 1093.00 | G79: 1079.50 | H79: 1140.60 | I79: 1154.10 | J79: 1171.15 | K79: 1137.05 | L79: 1106.5 | M79: 0.22541
A80: 71 | B80: ENGINERSIN | C80: 112.95 | D80: 113.88 | E80: 110.27 | F80: 107.58 | G80: 103.97 | H80: 116.57 | I80: 120.18 | J80: 122.87 | K80: 117.5 | L80: 111.2 | M80: 21.05806
A81: 72 | B81: EXIDEIND | C81: 253.75 | D81: 255.12 | E81: 251.13 | F81: 248.52 | G81: 244.53 | H81: 257.73 | I81: 261.72 | J81: 264.33 | K81: 259.1 | L81: 252.5 | M81: 6.80923
A82: 73 | B82: FEDERALBNK | C82: 84 | D82: 84.03 | E82: 82.67 | F82: 81.33 | G82: 79.97 | H82: 85.37 | I82: 86.73 | J82: 88.07 | K82: 85.4 | L82: 82.7 | M82: 100.10681
A83: 74 | B83: GAIL | C83: 349.35 | D83: 351.00 | E83: 345.60 | F83: 341.85 | G83: 336.45 | H83: 354.75 | I83: 360.15 | J83: 363.90 | K83: 356.4 | L83: 347.25 | M83: 25.35122
A84: 75 | B84: GMRINFRA | C84: 15.55 | D84: 15.68 | E84: 15.32 | F84: 15.08 | G84: 14.72 | H84: 15.92 | I84: 16.28 | J84: 16.52 | K84: 16.05 | L84: 15.45 | M84: 157.65618
A85: 76 | B85: GSKCONS | C85: 7644.6 | D85: 7580.22 | E85: 7490.43 | F85: 7336.27 | G85: 7246.48 | H85: 7734.38 | I85: 7824.17 | J85: 7978.33 | K85: 7670 | L85: 7426.05 | M85: 1.14934
A86: 77 | B86: GLAXO | C86: 1376.4 | D86: 1378.92 | E86: 1357.83 | F86: 1339.27 | G86: 1318.18 | H86: 1397.48 | I86: 1418.57 | J86: 1437.13 | K86: 1400 | L86: 1360.35 | M86: 0.09623
A87: 78 | B87: GLENMARK | C87: 626.75 | D87: 624.33 | E87: 617.67 | F87: 608.58 | G87: 601.92 | H87: 633.42 | I87: 640.08 | J87: 649.17 | K87: 631 | L87: 615.25 | M87: 12.08374
A88: 79 | B88: GODREJCP | C88: 752.15 | D88: 751.37 | E88: 744.78 | F88: 737.42 | G88: 730.83 | H88: 758.73 | I88: 765.32 | J88: 772.68 | K88: 757.95 | L88: 744 | M88: 8.57081
A89: 80 | B89: GODREJIND | C89: 542.75 | D89: 545.50 | E89: 537.25 | F89: 531.75 | G89: 523.50 | H89: 551.00 | I89: 559.25 | J89: 564.75 | K89: 553.75 | L89: 540 | M89: 3.18205
A90: 81 | B90: GRUH | C90: 300.1 | D90: 299.72 | E90: 294.48 | F90: 288.87 | G90: 283.63 | H90: 305.33 | I90: 310.57 | J90: 316.18 | K90: 304.95 | L90: 294.1 | M90: 2.6214
A91: 82 | B91: GPPL | C91: 92.9 | D91: 93.27 | E91: 91.48 | F91: 90.07 | G91: 88.28 | H91: 94.68 | I91: 96.47 | J91: 97.88 | K91: 95.05 | L91: 91.85 | M91: 0.74609
A92: 83 | B92: GSPL | C92: 186.2 | D92: 186.37 | E92: 184.78 | F92: 183.37 | G92: 181.78 | H92: 187.78 | I92: 189.37 | J92: 190.78 | K92: 187.95 | L92: 184.95 | M92: 2.58805
A93: 84 | B93: HCLTECH | C93: 1051.05 | D93: 1043.68 | E93: 1029.37 | F93: 1007.68 | G93: 993.37 | H93: 1065.37 | I93: 1079.68 | J93: 1101.37 | K93: 1058 | L93: 1022 | M93: 19.36706
A94: 85 | B94: HDFCBANK | C94: 2099.2 | D94: 2093.48 | E94: 2081.67 | F94: 2064.13 | G94: 2052.32 | H94: 2111.02 | I94: 2122.83 | J94: 2140.37 | K94: 2105.3 | L94: 2075.95 | M94: 29.49711
A95: 86 | B95: HAVELLS | C95: 694.5 | D95: 692.58 | E95: 687.17 | F95: 679.83 | G95: 674.42 | H95: 699.92 | I95: 705.33 | J95: 712.67 | K95: 698 | L95: 685.25 | M95: 5.75468
A96: 87 | B96: HEROMOTOCO | C96: 3052.5 | D96: 3054.28 | E96: 3026.62 | F96: 3000.73 | G96: 2973.07 | H96: 3080.17 | I96: 3107.83 | J96: 3133.72 | K96: 3081.95 | L96: 3028.4 | M96: 2.11238
A97: 88 | B97: HEXAWARE | C97: 325 | D97: 326.43 | E97: 318.97 | F97: 312.93 | G97: 305.47 | H97: 332.47 | I97: 339.93 | J97: 345.97 | K97: 333.9 | L97: 320.4 | M97: 14.3974
A98: 89 | B98: HINDALCO | C98: 221.35 | D98: 224.02 | E98: 217.63 | F98: 213.92 | G98: 207.53 | H98: 227.73 | I98: 234.12 | J98: 237.83 | K98: 230.4 | L98: 220.3 | M98: 128.75627
A99: 90 | B99: HINDPETRO | C99: 226.65 | D99: 227.93 | E99: 223.87 | F99: 221.08 | G99: 217.02 | H99: 230.72 | I99: 234.78 | J99: 237.57 | K99: 232 | L99: 225.15 | M99: 49.71091
A100: 91 | B100: HINDUNILVR | C100: 1848.1 | D100: 1830.30 | E100: 1805.80 | F100: 1763.50 | G100: 1739.00 | H100: 1872.60 | I100: 1897.10 | J100: 1939.40 | K100: 1854.8 | L100: 1788 | M100: 28.47336
A101: 92 | B101: HINDZINC | C101: 271.05 | D101: 270.63 | E101: 267.77 | F101: 264.48 | G101: 261.62 | H101: 273.92 | I101: 276.78 | J101: 280.07 | K101: 273.5 | L101: 267.35 | M101: 4.97901
A102: 93 | B102: HUDCO | C102: 42 | D102: 42.33 | E102: 41.57 | F102: 41.13 | G102: 40.37 | H102: 42.77 | I102: 43.53 | J102: 43.97 | K102: 43.1 | L102: 41.9 | M102: 5.41085
A103: 94 | B103: HDFC | C103: 1973.3 | D103: 1957.90 | E103: 1936.00 | F103: 1898.70 | G103: 1876.80 | H103: 1995.20 | I103: 2017.10 | J103: 2054.40 | K103: 1979.8 | L103: 1920.6 | M103: 31.4711
A104: 95 | B104: ITC | C104: 275.35 | D104: 277.12 | E104: 272.43 | F104: 269.52 | G104: 264.83 | H104: 280.03 | I104: 284.72 | J104: 287.63 | K104: 281.8 | L104: 274.2 | M104: 114.53283
A105: 96 | B105: ICICIBANK | C105: 351.4 | D105: 352.73 | E105: 349.12 | F105: 346.83 | G105: 343.22 | H105: 355.02 | I105: 358.63 | J105: 360.92 | K105: 356.35 | L105: 350.45 | M105: 120.68267
A106: 97 | B106: ICICIPRULI | C106: 318.2 | D106: 318.92 | E106: 315.53 | F106: 312.87 | G106: 309.48 | H106: 321.58 | I106: 324.97 | J106: 327.63 | K106: 322.3 | L106: 316.25 | M106: 7.5599
A107: 98 | B107: IDBI | C107: 60.7 | D107: 60.43 | E107: 60.07 | F107: 59.43 | G107: 59.07 | H107: 61.07 | I107: 61.43 | J107: 62.07 | K107: 60.8 | L107: 59.8 | M107: 85.02494
A108: 99 | B108: IDFCBANK | C108: 37.75 | D108: 38.00 | E108: 37.05 | F108: 36.35 | G108: 35.40 | H108: 38.70 | I108: 39.65 | J108: 40.35 | K108: 38.95 | L108: 37.3 | M108: 79.28559
A109: 100 | B109: IDFC | C109: 38.8 | D109: 39.45 | E109: 37.90 | F109: 37.00 | G109: 35.45 | H109: 40.35 | I109: 41.90 | J109: 42.80 | K109: 41 | L109: 38.55 | M109: 30.93525
A110: 101 | B110: IRB | C110: 145.4 | D110: 146.43 | E110: 142.32 | F110: 139.23 | G110: 135.12 | H110: 149.52 | I110: 153.63 | J110: 156.72 | K110: 150.55 | L110: 143.35 | M110: 17.24682
A111: 102 | B111: IDEA | C111: 34.05 | D111: 34.27 | E111: 33.58 | F111: 33.12 | G111: 32.43 | H111: 34.73 | I111: 35.42 | J111: 35.88 | K111: 34.95 | L111: 33.8 | M111: 258.442
A112: 103 | B112: IBULHSGFIN | C112: 776.35 | D112: 781.77 | E112: 763.58 | F112: 750.82 | G112: 732.63 | H112: 794.53 | I112: 812.72 | J112: 825.48 | K112: 799.95 | L112: 769 | M112: 61.38936
A113: 104 | B113: INDIANB | C113: 222.2 | D113: 222.38 | E113: 219.07 | F113: 215.93 | G113: 212.62 | H113: 225.52 | I113: 228.83 | J113: 231.97 | K113: 225.7 | L113: 219.25 | M113: 13.19887
A114: 105 | B114: INDHOTEL | C114: 146.7 | D114: 145.35 | E114: 142.35 | F114: 138.00 | G114: 135.00 | H114: 149.70 | I114: 152.70 | J114: 157.05 | K114: 148.35 | L114: 141 | M114: 8.25925
A115: 106 | B115: IOC | C115: 134.3 | D115: 135.02 | E115: 131.83 | F115: 129.37 | G115: 126.18 | H115: 137.48 | I115: 140.67 | J115: 143.13 | K115: 138.2 | L115: 132.55 | M115: 109.88473
A116: 107 | B116: IGL | C116: 259.1 | D116: 259.03 | E116: 256.37 | F116: 253.63 | G116: 250.97 | H116: 261.77 | I116: 264.43 | J116: 267.17 | K116: 261.7 | L116: 256.3 | M116: 9.62148
A117: 108 | B117: INDUSINDBK | C117: 1603.6 | D117: 1608.47 | E117: 1586.93 | F117: 1570.27 | G117: 1548.73 | H117: 1625.13 | I117: 1646.67 | J117: 1663.33 | K117: 1630 | L117: 1591.8 | M117: 16.69427
A118: 109 | B118: NAUKRI | C118: 1579.35 | D118: 1586.12 | E118: 1543.18 | F118: 1507.02 | G118: 1464.08 | H118: 1622.28 | I118: 1665.22 | J118: 1701.38 | K118: 1629.05 | L118: 1549.95 | M118: 1.27512
A119: 110 | B119: INFY | C119: 681.4 | D119: 679.18 | E119: 674.72 | F119: 668.03 | G119: 663.57 | H119: 685.87 | I119: 690.33 | J119: 697.02 | K119: 683.65 | L119: 672.5 | M119: 51.77288
A120: 111 | B120: INDIGO | C120: 1000.8 | D120: 999.43 | E120: 986.87 | F120: 972.93 | G120: 960.37 | H120: 1013.37 | I120: 1025.93 | J120: 1039.87 | K120: 1012 | L120: 985.5 | M120: 7.53396
A121: 112 | B121: IPCALAB | C121: 795.8 | D121: 794.02 | E121: 786.08 | F121: 776.37 | G121: 768.43 | H121: 803.73 | I121: 811.67 | J121: 821.38 | K121: 801.95 | L121: 784.3 | M121: 0.9356
A122: 113 | B122: JSWENERGY | C122: 69.15 | D122: 68.98 | E122: 68.02 | F122: 66.88 | G122: 65.92 | H122: 70.12 | I122: 71.08 | J122: 72.22 | K122: 69.95 | L122: 67.85 | M122: 5.84533
A123: 114 | B123: JSWSTEEL | C123: 304.35 | D123: 305.87 | E123: 300.73 | F123: 297.12 | G123: 291.98 | H123: 309.48 | I123: 314.62 | J123: 318.23 | K123: 311 | L123: 302.25 | M123: 42.91892
A124: 115 | B124: JINDALSTEL | C124: 148.85 | D124: 149.97 | E124: 145.33 | F124: 141.82 | G124: 137.18 | H124: 153.48 | I124: 158.12 | J124: 161.63 | K124: 154.6 | L124: 146.45 | M124: 173.9794
A125: 116 | B125: JUBLFOOD | C125: 1323.95 | D125: 1320.50 | E125: 1308.50 | F125: 1293.05 | G125: 1281.05 | H125: 1335.95 | I125: 1347.95 | J125: 1363.40 | K125: 1332.5 | L125: 1305.05 | M125: 10.55417
A126: 117 | B126: JUBILANT | C126: 823.2 | D126: 822.17 | E126: 808.28 | F126: 793.37 | G126: 779.48 | H126: 837.08 | I126: 850.97 | J126: 865.88 | K126: 836.05 | L126: 807.25 | M126: 5.97651
A127: 118 | B127: KARURVYSYA | C127: 78.7 | D127: 78.85 | E127: 78.25 | F127: 77.80 | G127: 77.20 | H127: 79.30 | I127: 79.90 | J127: 80.35 | K127: 79.45 | L127: 78.4 | M127: 6.08136
A128: 119 | B128: KOTAKBANK | C128: 1211.5 | D128: 1214.30 | E128: 1200.20 | F128: 1188.90 | G128: 1174.80 | H128: 1225.60 | I128: 1239.70 | J128: 1251.00 | K128: 1228.4 | L128: 1203 | M128: 28.56527
A129: 120 | B129: L&TFH | C129: 144.2 | D129: 144.45 | E129: 142.75 | F129: 141.30 | G129: 139.60 | H129: 145.90 | I129: 147.60 | J129: 149.05 | K129: 146.15 | L129: 143 | M129: 53.1815
A130: 121 | B130: LICHSGFIN | C130: 433.8 | D130: 436.30 | E130: 426.00 | F130: 418.20 | G130: 407.90 | H130: 444.10 | I130: 454.40 | J130: 462.20 | K130: 446.6 | L130: 428.5 | M130: 37.86499
A131: 122 | B131: LT | C131: 1394.8 | D131: 1400.98 | E131: 1382.97 | F131: 1371.13 | G131: 1353.12 | H131: 1412.82 | I131: 1430.83 | J131: 1442.67 | K131: 1419 | L131: 1389.15 | M131: 15.82751
A132: 123 | B132: LUPIN | C132: 859.35 | D132: 865.72 | E132: 841.63 | F132: 823.92 | G132: 799.83 | H132: 883.43 | I132: 907.52 | J132: 925.23 | K132: 889.8 | L132: 848 | M132: 32.55984
A133: 124 | B133: MRF | C133: 65284 | D133: 65538.88 | E133: 64881.12 | F133: 64478.23 | G133: 63820.47 | H133: 65941.77 | I133: 66599.53 | J133: 67002.42 | K133: 66196.65 | L133: 65136 | M133: 0.0369
A134: 125 | B134: MGL | C134: 866.5 | D134: 862.85 | E134: 856.70 | F134: 846.90 | G134: 840.75 | H134: 872.65 | I134: 878.80 | J134: 888.60 | K134: 869 | L134: 853.05 | M134: 3.43225
A135: 126 | B135: M&MFIN | C135: 420.7 | D135: 424.57 | E135: 412.13 | F135: 403.57 | G135: 391.13 | H135: 433.13 | I135: 445.57 | J135: 454.13 | K135: 437 | L135: 416 | M135: 21.79096
A136: 127 | B136: M&M | C136: 718.05 | D136: 724.48 | E136: 708.67 | F136: 699.28 | G136: 683.47 | H136: 733.87 | I136: 749.68 | J136: 759.07 | K136: 740.3 | L136: 715.1 | M136: 48.37874
A137: 128 | B137: MANAPPURAM | C137: 82.7 | D137: 83.22 | E137: 81.48 | F137: 80.27 | G137: 78.53 | H137: 84.43 | I137: 86.17 | J137: 87.38 | K137: 84.95 | L137: 82 | M137: 12.04822
A138: 129 | B138: MRPL | C138: 71.45 | D138: 71.82 | E138: 69.98 | F138: 68.52 | G138: 66.68 | H138: 73.28 | I138: 75.12 | J138: 76.58 | K138: 73.65 | L138: 70.35 | M138: 11.31233
A139: 130 | B139: MARICO | C139: 355.55 | D139: 355.72 | E139: 352.53 | F139: 349.52 | G139: 346.33 | H139: 358.73 | I139: 361.92 | J139: 364.93 | K139: 358.9 | L139: 352.7 | M139: 12.11028
A140: 131 | B140: MARUTI | C140: 7554.05 | D140: 7604.65 | E140: 7469.40 | F140: 7384.75 | G140: 7249.50 | H140: 7689.30 | I140: 7824.55 | J140: 7909.20 | K140: 7739.9 | L140: 7520 | M140: 7.04296
A141: 132 | B141: MFSL | C141: 432.95 | D141: 432.53 | E141: 420.07 | F141: 407.18 | G141: 394.72 | H141: 445.42 | I141: 457.88 | J141: 470.77 | K141: 445 | L141: 419.65 | M141: 8.73603
A142: 133 | B142: MINDTREE | C142: 871.15 | D142: 873.22 | E142: 862.53 | F142: 853.92 | G142: 843.23 | H142: 881.83 | I142: 892.52 | J142: 901.13 | K142: 883.9 | L142: 864.6 | M142: 7.01305
A143: 134 | B143: MOTHERSUMI | C143: 157.55 | D143: 159.67 | E143: 154.33 | F143: 151.12 | G143: 145.78 | H143: 162.88 | I143: 168.22 | J143: 171.43 | K143: 165 | L143: 156.45 | M143: 74.99206
A144: 135 | B144: MPHASIS | C144: 985.95 | D144: 992.33 | E144: 976.67 | F144: 967.38 | G144: 951.72 | H144: 1001.62 | I144: 1017.28 | J144: 1026.57 | K144: 1008 | L144: 983.05 | M144: 1.80454
A145: 136 | B145: MUTHOOTFIN | C145: 447.35 | D145: 446.30 | E145: 441.05 | F145: 434.75 | G145: 429.50 | H145: 452.60 | I145: 457.85 | J145: 464.15 | K145: 451.55 | L145: 440 | M145: 4.74259
A146: 137 | B146: NATCOPHARM | C146: 719.35 | D146: 721.22 | E146: 713.63 | F146: 707.92 | G146: 700.33 | H146: 726.93 | I146: 734.52 | J146: 740.23 | K146: 728.8 | L146: 715.5 | M146: 2.25752
A147: 138 | B147: NBCC | C147: 54.8 | D147: 55.18 | E147: 53.57 | F147: 52.33 | G147: 50.72 | H147: 56.42 | I147: 58.03 | J147: 59.27 | K147: 56.8 | L147: 53.95 | M147: 65.9448
A148: 139 | B148: NHPC | C148: 26.1 | D148: 26.17 | E148: 25.98 | F148: 25.87 | G148: 25.68 | H148: 26.28 | I148: 26.47 | J148: 26.58 | K148: 26.35 | L148: 26.05 | M148: 14.42355
A149: 140 | B149: NMDC | C149: 91.8 | D149: 92.55 | E149: 90.10 | F149: 88.40 | G149: 85.95 | H149: 94.25 | I149: 96.70 | J149: 98.40 | K149: 95 | L149: 90.85 | M149: 31.50461
A150: 141 | B150: NTPC | C150: 141.05 | D150: 141.72 | E150: 138.53 | F150: 136.02 | G150: 132.83 | H150: 144.23 | I150: 147.42 | J150: 149.93 | K150: 144.9 | L150: 139.2 | M150: 73.61638
A151: 142 | B151: NATIONALUM | C151: 65 | D151: 65.85 | E151: 64.00 | F151: 63.00 | G151: 61.15 | H151: 66.85 | I151: 68.70 | J151: 69.70 | K151: 67.7 | L151: 64.85 | M151: 53.72509
A152: 143 | B152: OBEROIRLTY | C152: 466.85 | D152: 469.27 | E152: 459.63 | F152: 452.42 | G152: 442.78 | H152: 476.48 | I152: 486.12 | J152: 493.33 | K152: 478.9 | L152: 462.05 | M152: 2.828
A153: 144 | B153: ONGC | C153: 143.7 | D153: 144.73 | E153: 141.37 | F153: 139.03 | G153: 135.67 | H153: 147.07 | I153: 150.43 | J153: 152.77 | K153: 148.1 | L153: 142.4 | M153: 97.74733
A154: 145 | B154: OIL | C154: 183.3 | D154: 185.15 | E154: 180.90 | F154: 178.50 | G154: 174.25 | H154: 187.55 | I154: 191.80 | J154: 194.20 | K154: 189.4 | L154: 182.75 | M154: 14.43482
A155: 146 | B155: OFSS | C155: 3563.45 | D155: 3565.67 | E155: 3526.33 | F155: 3489.22 | G155: 3449.88 | H155: 3602.78 | I155: 3642.12 | J155: 3679.23 | K155: 3605 | L155: 3528.55 | M155: 0.80453
A156: 147 | B156: PCJEWELLER | C156: 67.9 | D156: 68.52 | E156: 66.03 | F156: 64.17 | G156: 61.68 | H156: 70.38 | I156: 72.87 | J156: 74.73 | K156: 71 | L156: 66.65 | M156: 127.58492
A157: 148 | B157: PIIND | C157: 794.55 | D157: 796.50 | E157: 789.05 | F157: 783.55 | G157: 776.10 | H157: 802.00 | I157: 809.45 | J157: 814.95 | K157: 803.95 | L157: 791 | M157: 0.6599
A158: 149 | B158: PNBHOUSING | C158: 933.45 | D158: 936.78 | E158: 918.67 | F158: 903.88 | G158: 885.77 | H158: 951.57 | I158: 969.68 | J158: 984.47 | K158: 954.9 | L158: 922 | M158: 4.62112
A159: 150 | B159: PAGEIND | C159: 25136.75 | D159: 25398.92 | E159: 24697.83 | F159: 24258.92 | G159: 23557.83 | H159: 25837.83 | I159: 26538.92 | J159: 26977.83 | K159: 26100 | L159: 24960 | M159: 0.44493
A160: 151 | B160: PETRONET | C160: 209.95 | D160: 210.72 | E160: 208.23 | F160: 206.52 | G160: 204.03 | H160: 212.43 | I160: 214.92 | J160: 216.63 | K160: 213.2 | L160: 209 | M160: 18.43302
A161: 152 | B161: PIDILITIND | C161: 1157.05 | D161: 1160.75 | E161: 1143.50 | F161: 1129.95 | G161: 1112.70 | H161: 1174.30 | I161: 1191.55 | J161: 1205.10 | K161: 1178 | L161: 1147.2 | M161: 6.77201
A162: 153 | B162: PEL | C162: 2165.35 | D162: 2167.60 | E162: 2134.05 | F162: 2102.75 | G162: 2069.20 | H162: 2198.90 | I162: 2232.45 | J162: 2263.75 | K162: 2201.15 | L162: 2136.3 | M162: 3.30276
A163: 154 | B163: PFC | C163: 92.3 | D163: 93.65 | E163: 90.20 | F163: 88.10 | G163: 84.65 | H163: 95.75 | I163: 99.20 | J163: 101.30 | K163: 97.1 | L163: 91.55 | M163: 131.24871
A164: 155 | B164: POWERGRID | C164: 183.5 | D164: 184.57 | E164: 181.43 | F164: 179.37 | G164: 176.23 | H164: 186.63 | I164: 189.77 | J164: 191.83 | K164: 187.7 | L164: 182.5 | M164: 32.48308
A165: 156 | B165: PRESTIGE | C165: 207.85 | D165: 209.62 | E165: 204.23 | F165: 200.62 | G165: 195.23 | H165: 213.23 | I165: 218.62 | J165: 222.23 | K165: 215 | L165: 206 | M165: 0.90465
A166: 157 | B166: PGHH | C166: 9606.75 | D166: 9660.02 | E166: 9500.03 | F166: 9393.32 | G166: 9233.33 | H166: 9766.73 | I166: 9926.72 | J166: 10033.43 | K166: 9820 | L166: 9553.3 | M166: 0.03888
A167: 158 | B167: PNB | C167: 68.95 | D167: 69.15 | E167: 68.20 | F167: 67.45 | G167: 66.50 | H167: 69.90 | I167: 70.85 | J167: 71.60 | K167: 70.1 | L167: 68.4 | M167: 153.70028
A168: 159 | B168: RBLBANK | C168: 559.05 | D168: 556.52 | E168: 552.03 | F168: 545.02 | G168: 540.53 | H168: 563.53 | I168: 568.02 | J168: 575.03 | K168: 561 | L168: 549.5 | M168: 11.97565
A169: 160 | B169: RAJESHEXPO | C169: 570.75 | D169: 570.80 | E169: 569.95 | F169: 569.15 | G169: 568.30 | H169: 571.60 | I169: 572.45 | J169: 573.25 | K169: 571.65 | L169: 570 | M169: 3.70237
A170: 161 | B170: RELCAPITAL | C170: 219.45 | D170: 223.33 | E170: 213.02 | F170: 206.58 | G170: 196.27 | H170: 229.77 | I170: 240.08 | J170: 246.52 | K170: 233.65 | L170: 216.9 | M170: 98.48709
A171: 162 | B171: RCOM | C171: 16.25 | D171: 16.62 | E171: 15.73 | F171: 15.22 | G171: 14.33 | H171: 17.13 | I171: 18.02 | J171: 18.53 | K171: 17.5 | L171: 16.1 | M171: 1748.62607
A172: 163 | B172: RELIANCE | C172: 1155.15 | D172: 1151.08 | E172: 1143.37 | F172: 1131.58 | G172: 1123.87 | H172: 1162.87 | I172: 1170.58 | J172: 1182.37 | K172: 1158.8 | L172: 1139.3 | M172: 58.19618
A173: 164 | B173: RELINFRA | C173: 307.35 | D173: 315.33 | E173: 297.27 | F173: 287.18 | G173: 269.12 | H173: 325.42 | I173: 343.48 | J173: 353.57 | K173: 333.4 | L173: 305.25 | M173: 73.77924
A174: 165 | B174: RPOWER | C174: 29.15 | D174: 29.57 | E174: 28.48 | F174: 27.82 | G174: 26.73 | H174: 30.23 | I174: 31.32 | J174: 31.98 | K174: 30.65 | L174: 28.9 | M174: 118.17082
A175: 166 | B175: RECLTD | C175: 105.05 | D175: 105.77 | E175: 102.78 | F175: 100.52 | G175: 97.53 | H175: 108.03 | I175: 111.02 | J175: 113.28 | K175: 108.75 | L175: 103.5 | M175: 154.96939
A176: 167 | B176: SRF | C176: 2114.45 | D176: 2128.08 | E176: 2093.17 | F176: 2071.88 | G176: 2036.97 | H176: 2149.37 | I176: 2184.28 | J176: 2205.57 | K176: 2163 | L176: 2106.8 | M176: 2.72774
A177: 168 | B177: SHREECEM | C177: 16416.4 | D177: 16467.15 | E177: 16201.85 | F177: 15987.30 | G177: 15722.00 | H177: 16681.70 | I177: 16947.00 | J177: 17161.55 | K177: 16732.45 | L177: 16252.6 | M177: 0.16437
A178: 169 | B178: SRTRANSFIN | C178: 1123.25 | D178: 1127.47 | E178: 1105.93 | F178: 1088.62 | G178: 1067.08 | H178: 1144.78 | I178: 1166.32 | J178: 1183.63 | K178: 1149 | L178: 1110.15 | M178: 11.50683
A179: 170 | B179: SIEMENS | C179: 906.35 | D179: 916.05 | E179: 892.15 | F179: 877.95 | G179: 854.05 | H179: 930.25 | I179: 954.15 | J179: 968.35 | K179: 939.95 | L179: 901.85 | M179: 11.71008
A180: 171 | B180: SBIN | C180: 280.15 | D180: 280.13 | E180: 277.07 | F180: 273.98 | G180: 270.92 | H180: 283.22 | I180: 286.28 | J180: 289.37 | K180: 283.2 | L180: 277.05 | M180: 148.93748
A181: 172 | B181: SAIL | C181: 53.05 | D181: 53.70 | E181: 52.15 | F181: 51.25 | G181: 49.70 | H181: 54.60 | I181: 56.15 | J181: 57.05 | K181: 55.25 | L181: 52.8 | M181: 122.52439
A182: 173 | B182: SPARC | C182: 222.9 | D182: 227.82 | E182: 213.18 | F182: 203.47 | G182: 188.83 | H182: 237.53 | I182: 252.17 | J182: 261.88 | K182: 242.45 | L182: 218.1 | M182: 8.11114
A183: 174 | B183: SUNPHARMA | C183: 412.95 | D183: 419.90 | E183: 394.55 | F183: 376.15 | G183: 350.80 | H183: 438.30 | I183: 463.65 | J183: 482.05 | K183: 445.25 | L183: 401.5 | M183: 488.91969
A184: 175 | B184: SUNTV | C184: 573.85 | D184: 578.53 | E184: 563.52 | F184: 553.18 | G184: 538.17 | H184: 588.87 | I184: 603.88 | J184: 614.22 | K184: 593.55 | L184: 568.2 | M184: 20.56326
A185: 176 | B185: SUZLON | C185: 5.25 | D185: 5.30 | E185: 5.15 | F185: 5.05 | G185: 4.90 | H185: 5.40 | I185: 5.55 | J185: 5.65 | K185: 5.45 | L185: 5.2 | M185: 232.21901
A186: 177 | B186: SYNDIBANK | C186: 33.65 | D186: 33.85 | E186: 33.30 | F186: 32.95 | G186: 32.40 | H186: 34.20 | I186: 34.75 | J186: 35.10 | K186: 34.4 | L186: 33.5 | M186: 37.2535
A187: 178 | B187: SYNGENE | C187: 546.05 | D187: 550.42 | E187: 540.73 | F187: 535.42 | G187: 525.73 | H187: 555.73 | I187: 565.42 | J187: 570.73 | K187: 560.1 | L187: 545.1 | M187: 1.13222
A188: 179 | B188: TV18BRDCST | C188: 35.1 | D188: 35.30 | E188: 34.70 | F188: 34.30 | G188: 33.70 | H188: 35.70 | I188: 36.30 | J188: 36.70 | K188: 35.9 | L188: 34.9 | M188: 15.23407
A189: 180 | B189: TVSMOTOR | C189: 553.7 | D189: 552.92 | E189: 549.33 | F189: 544.97 | G189: 541.38 | H189: 557.28 | I189: 560.87 | J189: 565.23 | K189: 556.5 | L189: 548.55 | M189: 10.01174
A190: 181 | B190: TATACHEM | C190: 666.5 | D190: 671.72 | E190: 659.78 | F190: 653.07 | G190: 641.13 | H190: 678.43 | I190: 690.37 | J190: 697.08 | K190: 683.65 | L190: 665 | M190: 7.21646
A191: 182 | B191: TATACOMM | C191: 517.25 | D191: 518.57 | E191: 512.13 | F191: 507.02 | G191: 500.58 | H191: 523.68 | I191: 530.12 | J191: 535.23 | K191: 525 | L191: 513.45 | M191: 1.09185
A192: 183 | B192: TCS | C192: 2006.75 | D192: 2003.25 | E192: 1988.50 | F192: 1970.25 | G192: 1955.50 | H192: 2021.50 | I192: 2036.25 | J192: 2054.50 | K192: 2018 | L192: 1985 | M192: 25.01539
A193: 184 | B193: TATAGLOBAL | C193: 211.7 | D193: 209.87 | E193: 207.23 | F193: 202.77 | G193: 200.13 | H193: 214.33 | I193: 216.97 | J193: 221.43 | K193: 212.5 | L193: 205.4 | M193: 30.55629
A194: 185 | B194: TATAMTRDVR | C194: 92.45 | D194: 92.92 | E194: 91.63 | F194: 90.82 | G194: 89.53 | H194: 93.73 | I194: 95.02 | J194: 95.83 | K194: 94.2 | L194: 92.1 | M194: 34.73638
A195: 186 | B195: TATAMOTORS | C195: 169.2 | D195: 170.27 | E195: 167.53 | F195: 165.87 | G195: 163.13 | H195: 171.93 | I195: 174.67 | J195: 176.33 | K195: 173 | L195: 168.6 | M195: 149.60527
A196: 187 | B196: TATAPOWER | C196: 80.45 | D196: 80.62 | E196: 79.73 | F196: 79.02 | G196: 78.13 | H196: 81.33 | I196: 82.22 | J196: 82.93 | K196: 81.5 | L196: 79.9 | M196: 48.17088
A197: 188 | B197: TATASTEEL | C197: 517.7 | D197: 521.90 | E197: 510.80 | F197: 503.90 | G197: 492.80 | H197: 528.80 | I197: 539.90 | J197: 546.80 | K197: 533 | L197: 515 | M197: 70.78082
A198: 189 | B198: TECHM | C198: 726.85 | D198: 725.93 | E198: 711.97 | F198: 697.08 | G198: 683.12 | H198: 740.82 | I198: 754.78 | J198: 769.67 | K198: 739.9 | L198: 711.05 | M198: 48.64922
A199: 190 | B199: RAMCOCEM | C199: 597.5 | D199: 591.63 | E199: 583.87 | F199: 570.23 | G199: 562.47 | H199: 605.27 | I199: 613.03 | J199: 626.67 | K199: 599.4 | L199: 578 | M199: 2.13833
A200: 191 | B200: TITAN | C200: 920.25 | D200: 915.82 | E200: 905.98 | F200: 891.72 | G200: 881.88 | H200: 930.08 | I200: 939.92 | J200: 954.18 | K200: 925.65 | L200: 901.55 | M200: 30.20688
A201: 192 | B201: TORNTPHARM | C201: 1722.3 | D201: 1721.73 | E201: 1693.47 | F201: 1664.63 | G201: 1636.37 | H201: 1750.57 | I201: 1778.83 | J201: 1807.67 | K201: 1750 | L201: 1692.9 | M201: 1.20151
A202: 193 | B202: TORNTPOWER | C202: 260.15 | D202: 262.13 | E202: 256.47 | F202: 252.78 | G202: 247.12 | H202: 265.82 | I202: 271.48 | J202: 275.17 | K202: 267.8 | L202: 258.45 | M202: 7.48936
A203: 194 | B203: UPL | C203: 749.4 | D203: 746.87 | E203: 739.73 | F203: 730.07 | G203: 722.93 | H203: 756.53 | I203: 763.67 | J203: 773.33 | K203: 754 | L203: 737.2 | M203: 12.70524
A204: 195 | B204: ULTRACEMCO | C204: 3969.05 | D204: 3984.20 | E204: 3939.00 | F204: 3908.95 | G204: 3863.75 | H204: 4014.25 | I204: 4059.45 | J204: 4089.50 | K204: 4029.4 | L204: 3954.15 | M204: 1.7567
A205: 196 | B205: UNIONBANK | C205: 76.15 | D205: 77.12 | E205: 74.83 | F205: 73.52 | G205: 71.23 | H205: 78.43 | I205: 80.72 | J205: 82.03 | K205: 79.4 | L205: 75.8 | M205: 78.8126
... 29 more rows

Sheet MidCap Intra
L5: Back To Main Page
A6: FOR INTRA DAY TRADING | K6: =Main!B10 -> 2018-12-06
A9: Sr.no | B9: Scrip | C9: CLOSE RATE | D9: Pivot Point | E9: Supports | H9: Resistances
C10: Point | E10: S1 | F10: S2 | G10: S3 | H10: R1 | I10: R2 | J10: R3 | K10: HIGH | L10: LOW | M10: Total Trade Quanity in Lakhs
A11: 1 | B11: 3MINDIA | C11: 22167.05 | D11: 22272.35 | E11: 21994.70 | F11: 21822.35 | G11: 21544.70 | H11: 22444.70 | I11: 22722.35 | J11: 22894.70 | K11: 22550 | L11: 22100 | M11: 0.01359
A12: 2 | B12: 8KMILES | C12: 192.55 | D12: 197.03 | E12: 188.07 | F12: 183.58 | G12: 174.62 | H12: 201.52 | I12: 210.48 | J12: 214.97 | K12: 206 | L12: 192.55 | M12: 5.35995
A13: 3 | B13: AARTIIND | C13: 1466 | D13: 1463.27 | E13: 1453.63 | F13: 1441.27 | G13: 1431.63 | H13: 1475.63 | I13: 1485.27 | J13: 1497.63 | K13: 1472.9 | L13: 1450.9 | M13: 1.0873
A14: 4 | B14: ABAN | C14: 73.6 | D14: 74.30 | E14: 71.90 | F14: 70.20 | G14: 67.80 | H14: 76.00 | I14: 78.40 | J14: 80.10 | K14: 76.7 | L14: 72.6 | M14: 2.95586
A15: 5 | B15: ABB | C15: 1372.7 | D15: 1372.47 | E15: 1362.78 | F15: 1352.87 | G15: 1343.18 | H15: 1382.38 | I15: 1392.07 | J15: 1401.98 | K15: 1382.15 | L15: 1362.55 | M15: 0.22409
A16: 6 | B16: ABCAPITAL | C16: 99.85 | D16: 100.53 | E16: 98.67 | F16: 97.48 | G16: 95.62 | H16: 101.72 | I16: 103.58 | J16: 104.77 | K16: 102.4 | L16: 99.35 | M16: 12.33831
A17: 7 | B17: ABFRL | C17: 183.6 | D17: 183.68 | E17: 181.37 | F17: 179.13 | G17: 176.82 | H17: 185.92 | I17: 188.23 | J17: 190.47 | K17: 186 | L17: 181.45 | M17: 1.98192
A18: 8 | B18: ACC | C18: 1471.15 | D18: 1481.17 | E18: 1455.83 | F18: 1440.52 | G18: 1415.18 | H18: 1496.48 | I18: 1521.82 | J18: 1537.13 | K18: 1506.5 | L18: 1465.85 | M18: 5.14306
A19: 9 | B19: ADANIPORTS | C19: 374.75 | D19: 374.73 | E19: 372.72 | F19: 370.68 | G19: 368.67 | H19: 376.77 | I19: 378.78 | J19: 380.82 | K19: 376.75 | L19: 372.7 | M19: 48.47267
A20: 10 | B20: ADANIPOWER | C20: 54.05 | D20: 54.25 | E20: 53.30 | F20: 52.55 | G20: 51.60 | H20: 55.00 | I20: 55.95 | J20: 56.70 | K20: 55.2 | L20: 53.5 | M20: 179.05386
A21: 11 | B21: ADANITRANS | C21: 218 | D21: 219.78 | E21: 213.02 | F21: 208.03 | G21: 201.27 | H21: 224.77 | I21: 231.53 | J21: 236.52 | K21: 226.55 | L21: 214.8 | M21: 4.63235
A22: 12 | B22: ADVENZYMES | C22: 178.3 | D22: 179.42 | E22: 176.38 | F22: 174.47 | G22: 171.43 | H22: 181.33 | I22: 184.37 | J22: 186.28 | K22: 182.45 | L22: 177.5 | M22: 0.26824
A23: 13 | B23: AEGISCHEM | C23: 212.2 | D23: 211.65 | E23: 209.55 | F23: 206.90 | G23: 204.80 | H23: 214.30 | I23: 216.40 | J23: 219.05 | K23: 213.75 | L23: 209 | M23: 0.60042
A24: 14 | B24: AIAENG | C24: 1691.15 | D24: 1703.60 | E24: 1666.70 | F24: 1642.25 | G24: 1605.35 | H24: 1728.05 | I24: 1764.95 | J24: 1789.40 | K24: 1740.5 | L24: 1679.15 | M24: 0.1466
A25: 15 | B25: AJANTPHARM | C25: 1098.2 | D25: 1107.88 | E25: 1068.32 | F25: 1038.43 | G25: 998.87 | H25: 1137.77 | I25: 1177.33 | J25: 1207.22 | K25: 1147.45 | L25: 1078 | M25: 3.53209
A26: 16 | B26: AKZOINDIA | C26: 1572.35 | D26: 1575.47 | E26: 1561.93 | F26: 1551.52 | G26: 1537.98 | H26: 1585.88 | I26: 1599.42 | J26: 1609.83 | K26: 1589 | L26: 1565.05 | M26: 0.0342
A27: 17 | B27: ALBK | C27: 45.7 | D27: 46.17 | E27: 44.88 | F27: 44.07 | G27: 42.78 | H27: 46.98 | I27: 48.27 | J27: 49.08 | K27: 47.45 | L27: 45.35 | M27: 33.82975
A28: 18 | B28: ALKEM | C28: 1916.15 | D28: 1914.07 | E28: 1893.13 | F28: 1870.12 | G28: 1849.18 | H28: 1937.08 | I28: 1958.02 | J28: 1981.03 | K28: 1935 | L28: 1891.05 | M28: 0.11232
A29: 19 | B29: ALLCARGO | C29: 106.55 | D29: 106.22 | E29: 104.93 | F29: 103.32 | G29: 102.03 | H29: 107.83 | I29: 109.12 | J29: 110.73 | K29: 107.5 | L29: 104.6 | M29: 7.9919
A30: 20 | B30: AMARAJABAT | C30: 709 | D30: 709.85 | E30: 704.75 | F30: 700.50 | G30: 695.40 | H30: 714.10 | I30: 719.20 | J30: 723.45 | K30: 714.95 | L30: 705.6 | M30: 2.84802
A31: 21 | B31: AMBUJACEM | C31: 216.65 | D31: 216.93 | E31: 215.07 | F31: 213.48 | G31: 211.62 | H31: 218.52 | I31: 220.38 | J31: 221.97 | K31: 218.8 | L31: 215.35 | M31: 18.36318
A32: 22 | B32: ANDHRABANK | C32: 27.95 | D32: 28.08 | E32: 27.72 | F32: 27.48 | G32: 27.12 | H32: 28.32 | I32: 28.68 | J32: 28.92 | K32: 28.45 | L32: 27.85 | M32: 4.84069
A33: 23 | B33: APLAPOLLO | C33: 1309.25 | D33: 1318.42 | E33: 1295.83 | F33: 1282.42 | G33: 1259.83 | H33: 1331.83 | I33: 1354.42 | J33: 1367.83 | K33: 1341 | L33: 1305 | M33: 0.10773
A34: 24 | B34: APLLTD | C34: 621.1 | D34: 622.03 | E34: 609.07 | F34: 597.03 | G34: 584.07 | H34: 634.07 | I34: 647.03 | J34: 659.07 | K34: 635 | L34: 610 | M34: 0.81337
A35: 25 | B35: APOLLOHOSP | C35: 1231.2 | D35: 1238.32 | E35: 1207.63 | F35: 1184.07 | G35: 1153.38 | H35: 1261.88 | I35: 1292.57 | J35: 1316.13 | K35: 1269 | L35: 1214.75 | M35: 7.49896
A36: 26 | B36: APOLLOTYRE | C36: 228.1 | D36: 229.85 | E36: 224.35 | F36: 220.60 | G36: 215.10 | H36: 233.60 | I36: 239.10 | J36: 242.85 | K36: 235.35 | L36: 226.1 | M36: 21.23955
A37: 27 | B37: ARVIND | C37: 103.7 | D37: 103.72 | E37: 100.28 | F37: 96.87 | G37: 93.43 | H37: 107.13 | I37: 110.57 | J37: 113.98 | K37: 107.15 | L37: 100.3 | M37: 206.82971
A38: 28 | B38: ASAHIINDIA | C38: 256.05 | D38: 258.20 | E38: 251.00 | F38: 245.95 | G38: 238.75 | H38: 263.25 | I38: 270.45 | J38: 275.50 | K38: 265.4 | L38: 253.15 | M38: 0.103
A39: 29 | B39: ASHOKA | C39: 124.85 | D39: 126.30 | E39: 121.85 | F39: 118.85 | G39: 114.40 | H39: 129.30 | I39: 133.75 | J39: 136.75 | K39: 130.75 | L39: 123.3 | M39: 1.00447
A40: 30 | B40: ASHOKLEY | C40: 103.6 | D40: 104.38 | E40: 101.87 | F40: 100.13 | G40: 97.62 | H40: 106.12 | I40: 108.63 | J40: 110.37 | K40: 106.9 | L40: 102.65 | M40: 356.63386
A41: 31 | B41: ASIANPAINT | C41: 1329.5 | D41: 1332.03 | E41: 1321.07 | F41: 1312.63 | G41: 1301.67 | H41: 1340.47 | I41: 1351.43 | J41: 1359.87 | K41: 1343 | L41: 1323.6 | M41: 8.64628
A42: 32 | B42: ASTRAL | C42: 1051.5 | D42: 1050.65 | E42: 1036.30 | F42: 1021.10 | G42: 1006.75 | H42: 1065.85 | I42: 1080.20 | J42: 1095.40 | K42: 1065 | L42: 1035.45 | M42: 1.06011
A43: 33 | B43: ATUL | C43: 3465 | D43: 3479.67 | E43: 3435.33 | F43: 3405.67 | G43: 3361.33 | H43: 3509.33 | I43: 3553.67 | J43: 3583.33 | K43: 3524 | L43: 3450 | M43: 0.16529
A44: 34 | B44: AUBANK | C44: 612.05 | D44: 610.02 | E44: 602.03 | F44: 592.02 | G44: 584.03 | H44: 620.03 | I44: 628.02 | J44: 638.03 | K44: 618 | L44: 600 | M44: 3.95189
A45: 35 | B45: AUROPHARMA | C45: 796.35 | D45: 805.05 | E45: 783.30 | F45: 770.25 | G45: 748.50 | H45: 818.10 | I45: 839.85 | J45: 852.90 | K45: 826.8 | L45: 792 | M45: 33.74742
A46: 36 | B46: AVANTIFEED | C46: 349.35 | D46: 348.42 | E46: 342.43 | F46: 335.52 | G46: 329.53 | H46: 355.33 | I46: 361.32 | J46: 368.23 | K46: 354.4 | L46: 341.5 | M46: 4.71509
A47: 37 | B47: AXISBANK | C47: 614.95 | D47: 617.43 | E47: 610.92 | F47: 606.88 | G47: 600.37 | H47: 621.47 | I47: 627.98 | J47: 632.02 | K47: 623.95 | L47: 613.4 | M47: 97.28083
A48: 38 | B48: BAJAJ-AUTO | C48: 2764.1 | D48: 2756.57 | E48: 2738.63 | F48: 2713.17 | G48: 2695.23 | H48: 2782.03 | I48: 2799.97 | J48: 2825.43 | K48: 2774.5 | L48: 2731.1 | M48: 1.78352
A49: 39 | B49: BAJAJCORP | C49: 348.8 | D49: 349.72 | E49: 347.18 | F49: 345.57 | G49: 343.03 | H49: 351.33 | I49: 353.87 | J49: 355.48 | K49: 352.25 | L49: 348.1 | M49: 0.10354
A50: 40 | B50: BAJAJELEC | C50: 472.8 | D50: 472.62 | E50: 470.23 | F50: 467.67 | G50: 465.28 | H50: 475.18 | I50: 477.57 | J50: 480.13 | K50: 475 | L50: 470.05 | M50: 1.05575
A51: 41 | B51: BAJAJFINSV | C51: 5902.5 | D51: 5937.08 | E51: 5804.17 | F51: 5705.83 | G51: 5572.92 | H51: 6035.42 | I51: 6168.33 | J51: 6266.67 | K51: 6070 | L51: 5838.75 | M51: 1.59561
A52: 42 | B52: BAJAJHIND | C52: 9.6 | D52: 9.67 | E52: 9.48 | F52: 9.37 | G52: 9.18 | H52: 9.78 | I52: 9.97 | J52: 10.08 | K52: 9.85 | L52: 9.55 | M52: 12.84584
A53: 43 | B53: BAJAJHLDNG | C53: 2969.45 | D53: 2981.18 | E53: 2924.37 | F53: 2879.28 | G53: 2822.47 | H53: 3026.27 | I53: 3083.08 | J53: 3128.17 | K53: 3038 | L53: 2936.1 | M53: 0.07823
A54: 44 | B54: BAJFINANCE | C54: 2494.1 | D54: 2501.43 | E54: 2462.97 | F54: 2431.83 | G54: 2393.37 | H54: 2532.57 | I54: 2571.03 | J54: 2602.17 | K54: 2539.9 | L54: 2470.3 | M54: 13.27031
A55: 45 | B55: BALKRISIND | C55: 932.95 | D55: 941.95 | E55: 920.30 | F55: 907.65 | G55: 886.00 | H55: 954.60 | I55: 976.25 | J55: 988.90 | K55: 963.6 | L55: 929.3 | M55: 8.58727
A56: 46 | B56: BALLARPUR | C56: 5.7 | D56: 5.82 | E56: 5.48 | F56: 5.27 | G56: 4.93 | H56: 6.03 | I56: 6.37 | J56: 6.58 | K56: 6.15 | L56: 5.6 | M56: 27.36625
A57: 47 | B57: BALMLAWRIE | C57: 181.9 | D57: 184.00 | E57: 179.00 | F57: 176.10 | G57: 171.10 | H57: 186.90 | I57: 191.90 | J57: 194.80 | K57: 189 | L57: 181.1 | M57: 0.61354
A58: 48 | B58: BALRAMCHIN | C58: 101.65 | D58: 101.98 | E58: 100.47 | F58: 99.28 | G58: 97.77 | H58: 103.17 | I58: 104.68 | J58: 105.87 | K58: 103.5 | L58: 100.8 | M58: 14.31964
A59: 49 | B59: BANKBARODA | C59: 107.45 | D59: 107.23 | E59: 106.27 | F59: 105.08 | G59: 104.12 | H59: 108.42 | I59: 109.38 | J59: 110.57 | K59: 108.2 | L59: 106.05 | M59: 135.16608
A60: 50 | B60: BANKINDIA | C60: 83.45 | D60: 84.00 | E60: 82.10 | F60: 80.75 | G60: 78.85 | H60: 85.35 | I60: 87.25 | J60: 88.60 | K60: 85.9 | L60: 82.65 | M60: 80.43908
A61: 51 | B61: BASF | C61: 1523.35 | D61: 1527.22 | E61: 1506.43 | F61: 1489.52 | G61: 1468.73 | H61: 1544.13 | I61: 1564.92 | J61: 1581.83 | K61: 1548 | L61: 1510.3 | M61: 0.04926
A62: 52 | B62: BATAINDIA | C62: 1051.35 | D62: 1050.62 | E62: 1042.33 | F62: 1033.32 | G62: 1025.03 | H62: 1059.63 | I62: 1067.92 | J62: 1076.93 | K62: 1058.9 | L62: 1041.6 | M62: 6.07938
A63: 53 | B63: BBTC | C63: 1327.3 | D63: 1331.77 | E63: 1317.53 | F63: 1307.77 | G63: 1293.53 | H63: 1341.53 | I63: 1355.77 | J63: 1365.53 | K63: 1346 | L63: 1322 | M63: 0.43111
A64: 54 | B64: BEL | C64: 82.7 | D64: 82.53 | E64: 81.17 | F64: 79.63 | G64: 78.27 | H64: 84.07 | I64: 85.43 | J64: 86.97 | K64: 83.9 | L64: 81 | M64: 55.01276
A65: 55 | B65: BEML | C65: 731.7 | D65: 738.40 | E65: 719.80 | F65: 707.90 | G65: 689.30 | H65: 750.30 | I65: 768.90 | J65: 780.80 | K65: 757 | L65: 726.5 | M65: 7.32635
A66: 56 | B66: BERGEPAINT | C66: 315.5 | D66: 316.15 | E66: 311.55 | F66: 307.60 | G66: 303.00 | H66: 320.10 | I66: 324.70 | J66: 328.65 | K66: 320.75 | L66: 312.2 | M66: 9.49861
A67: 57 | B67: BFUTILITIE | C67: 209.5 | D67: 210.18 | E67: 206.07 | F67: 202.63 | G67: 198.52 | H67: 213.62 | I67: 217.73 | J67: 221.17 | K67: 214.3 | L67: 206.75 | M67: 2.01037
A68: 58 | B68: BGRENERGY | C68: 60.1 | D68: 60.32 | E68: 59.43 | F68: 58.77 | G68: 57.88 | H68: 60.98 | I68: 61.87 | J68: 62.53 | K68: 61.2 | L68: 59.65 | M68: 0.43734
A69: 59 | B69: BHARATFIN | C69: 1013.3 | D69: 1015.92 | E69: 1003.68 | F69: 994.07 | G69: 981.83 | H69: 1025.53 | I69: 1037.77 | J69: 1047.38 | K69: 1028.15 | L69: 1006.3 | M69: 17.43294
A70: 60 | B70: BHARATFORG | C70: 531.45 | D70: 540.67 | E70: 516.33 | F70: 501.22 | G70: 476.88 | H70: 555.78 | I70: 580.12 | J70: 595.23 | K70: 565 | L70: 525.55 | M70: 102.32588
A71: 61 | B71: BHARTIARTL | C71: 312.8 | D71: 314.62 | E71: 308.38 | F71: 303.97 | G71: 297.73 | H71: 319.03 | I71: 325.27 | J71: 329.68 | K71: 320.85 | L71: 310.2 | M71: 45.30938
A72: 62 | B72: BHEL | C72: 66.45 | D72: 67.60 | E72: 64.95 | F72: 63.45 | G72: 60.80 | H72: 69.10 | I72: 71.75 | J72: 73.25 | K72: 70.25 | L72: 66.1 | M72: 217.03542
A73: 63 | B73: BHUSANSTL | C73: 27.05 | D73: 27.05 | E73: 26.60 | F73: 26.15 | G73: 25.70 | H73: 27.50 | I73: 27.95 | J73: 28.40 | K73: 27.5 | L73: 26.6 | M73: 4.55211
A74: 64 | B74: BIOCON | C74: 625.45 | D74: 624.97 | E74: 619.93 | F74: 614.42 | G74: 609.38 | H74: 630.48 | I74: 635.52 | J74: 641.03 | K74: 630 | L74: 619.45 | M74: 16.49496
A75: 65 | B75: BIRLACORPN | C75: 611 | D75: 610.67 | E75: 600.33 | F75: 589.67 | G75: 579.33 | H75: 621.33 | I75: 631.67 | J75: 642.33 | K75: 621 | L75: 600 | M75: 0.23198
A76: 66 | B76: BLISSGVS | C76: 140.65 | D76: 142.05 | E76: 138.25 | F76: 135.85 | G76: 132.05 | H76: 144.45 | I76: 148.25 | J76: 150.65 | K76: 145.85 | L76: 139.65 | M76: 3.28114
A77: 67 | B77: BLUEDART | C77: 3145.35 | D77: 3151.58 | E77: 3113.22 | F77: 3081.08 | G77: 3042.72 | H77: 3183.72 | I77: 3222.08 | J77: 3254.22 | K77: 3189.95 | L77: 3119.45 | M77: 0.02137
A78: 68 | B78: BLUESTARCO | C78: 662.75 | D78: 664.22 | E78: 653.58 | F78: 644.42 | G78: 633.78 | H78: 673.38 | I78: 684.02 | J78: 693.18 | K78: 674.85 | L78: 655.05 | M78: 0.58645
A79: 69 | B79: BOMDYEING | C79: 95.55 | D79: 96.48 | E79: 93.67 | F79: 91.78 | G79: 88.97 | H79: 98.37 | I79: 101.18 | J79: 103.07 | K79: 99.3 | L79: 94.6 | M79: 10.57277
A80: 70 | B80: BOSCHLTD | C80: 18352.95 | D80: 18501.95 | E80: 18143.90 | F80: 17934.85 | G80: 17576.80 | H80: 18711.00 | I80: 19069.05 | J80: 19278.10 | K80: 18860 | L80: 18292.9 | M80: 0.49108
A81: 71 | B81: BPCL | C81: 329.45 | D81: 331.95 | E81: 325.55 | F81: 321.65 | G81: 315.25 | H81: 335.85 | I81: 342.25 | J81: 346.15 | K81: 338.35 | L81: 328.05 | M81: 47.69965
A82: 72 | B82: BRFL | C82: 9.15 | D82: 9.30 | E82: 9.00 | F82: 8.85 | G82: 8.55 | H82: 9.45 | I82: 9.75 | J82: 9.90 | K82: 9.6 | L82: 9.15 | M82: 4.72533
A83: 73 | B83: BRIGADE | C83: 199.85 | D83: 202.02 | E83: 194.63 | F83: 189.42 | G83: 182.03 | H83: 207.23 | I83: 214.62 | J83: 219.83 | K83: 209.4 | L83: 196.8 | M83: 0.32881
A84: 74 | B84: BRITANNIA | C84: 3093 | D84: 3089.15 | E84: 3068.90 | F84: 3044.80 | G84: 3024.55 | H84: 3113.25 | I84: 3133.50 | J84: 3157.60 | K84: 3109.4 | L84: 3065.05 | M84: 2.05221
A85: 75 | B85: BSE | C85: 596.5 | D85: 597.42 | E85: 595.08 | F85: 593.67 | G85: 591.33 | H85: 598.83 | I85: 601.17 | J85: 602.58 | K85: 599.75 | L85: 596 | M85: 0.4433
A86: 77 | B86: CADILAHC | C86: 358.45 | D86: 358.82 | E86: 354.13 | F86: 349.82 | G86: 345.13 | H86: 363.13 | I86: 367.82 | J86: 372.13 | K86: 363.5 | L86: 354.5 | M86: 16.8742
A87: 78 | B87: CANBK | C87: 252.5 | D87: 252.90 | E87: 249.85 | F87: 247.20 | G87: 244.15 | H87: 255.55 | I87: 258.60 | J87: 261.25 | K87: 255.95 | L87: 250.25 | M87: 55.8734
A88: 79 | B88: CANFINHOME | C88: 249.6 | D88: 253.98 | E88: 242.02 | F88: 234.43 | G88: 222.47 | H88: 261.57 | I88: 273.53 | J88: 281.12 | K88: 265.95 | L88: 246.4 | M88: 12.69752
A89: 80 | B89: CAPF | C89: 517.5 | D89: 521.20 | E89: 507.45 | F89: 497.40 | G89: 483.65 | H89: 531.25 | I89: 545.00 | J89: 555.05 | K89: 534.95 | L89: 511.15 | M89: 5.44082
A90: 81 | B90: CAPLIPOINT | C90: 398.7 | D90: 399.90 | E90: 395.85 | F90: 393.00 | G90: 388.95 | H90: 402.75 | I90: 406.80 | J90: 409.65 | K90: 403.95 | L90: 397.05 | M90: 0.15208
A91: 82 | B91: CARBORUNIV | C91: 348.55 | D91: 349.02 | E91: 346.53 | F91: 344.52 | G91: 342.03 | H91: 351.03 | I91: 353.52 | J91: 355.53 | K91: 351.5 | L91: 347 | M91: 0.30552
A92: 83 | B92: CARERATING | C92: 997.75 | D92: 997.08 | E92: 987.17 | F92: 976.58 | G92: 966.67 | H92: 1007.67 | I92: 1017.58 | J92: 1028.17 | K92: 1007 | L92: 986.5 | M92: 2.11374
A93: 84 | B93: CASTROLIND | C93: 148.7 | D93: 149.23 | E93: 146.77 | F93: 144.83 | G93: 142.37 | H93: 151.17 | I93: 153.63 | J93: 155.57 | K93: 151.7 | L93: 147.3 | M93: 9.30769
A94: 85 | B94: CCL | C94: 264.55 | D94: 265.37 | E94: 261.18 | F94: 257.82 | G94: 253.63 | H94: 268.73 | I94: 272.92 | J94: 276.28 | K94: 269.55 | L94: 262 | M94: 0.36169
A95: 86 | B95: CDSL | C95: 230.8 | D95: 231.73 | E95: 229.07 | F95: 227.33 | G95: 224.67 | H95: 233.47 | I95: 236.13 | J95: 237.87 | K95: 234.4 | L95: 230 | M95: 0.89267
A96: 87 | B96: CEATLTD | C96: 1261.95 | D96: 1272.67 | E96: 1241.33 | F96: 1220.72 | G96: 1189.38 | H96: 1293.28 | I96: 1324.62 | J96: 1345.23 | K96: 1304 | L96: 1252.05 | M96: 13.76867
A97: 88 | B97: CENTRALBK | C97: 28.8 | D97: 28.87 | E97: 28.63 | F97: 28.47 | G97: 28.23 | H97: 29.03 | I97: 29.27 | J97: 29.43 | K97: 29.1 | L97: 28.7 | M97: 1.63223
A98: 89 | B98: CENTURYPLY | C98: 177.6 | D98: 179.37 | E98: 174.28 | F98: 170.97 | G98: 165.88 | H98: 182.68 | I98: 187.77 | J98: 191.08 | K98: 184.45 | L98: 176.05 | M98: 3.63303
A99: 90 | B99: CENTURYTEX | C99: 904.65 | D99: 903.75 | E99: 895.50 | F99: 886.35 | G99: 878.10 | H99: 912.90 | I99: 921.15 | J99: 930.30 | K99: 912 | L99: 894.6 | M99: 3.50509
A100: 91 | B100: CERA | C100: 2353.65 | D100: 2361.27 | E100: 2334.98 | F100: 2316.32 | G100: 2290.03 | H100: 2379.93 | I100: 2406.22 | J100: 2424.88 | K100: 2387.55 | L100: 2342.6 | M100: 0.04152
A101: 92 | B101: CGPOWER | C101: 39.15 | D101: 39.60 | E101: 38.00 | F101: 36.85 | G101: 35.25 | H101: 40.75 | I101: 42.35 | J101: 43.50 | K101: 41.2 | L101: 38.45 | M101: 68.23363
A102: 93 | B102: CHAMBLFERT | C102: 151.05 | D102: 151.88 | E102: 149.32 | F102: 147.58 | G102: 145.02 | H102: 153.62 | I102: 156.18 | J102: 157.92 | K102: 154.45 | L102: 150.15 | M102: 2.3135
A103: 94 | B103: CHENNPETRO | C103: 271.6 | D103: 273.50 | E103: 268.10 | F103: 264.60 | G103: 259.20 | H103: 277.00 | I103: 282.40 | J103: 285.90 | K103: 278.9 | L103: 270 | M103: 3.53162
A104: 95 | B104: CHOLAFIN | C104: 1278.05 | D104: 1274.93 | E104: 1253.12 | F104: 1228.18 | G104: 1206.37 | H104: 1299.87 | I104: 1321.68 | J104: 1346.62 | K104: 1296.75 | L104: 1250 | M104: 3.21986
A105: 96 | B105: CIPLA | C105: 528.45 | D105: 534.22 | E105: 519.53 | F105: 510.62 | G105: 495.93 | H105: 543.13 | I105: 557.82 | J105: 566.73 | K105: 548.9 | L105: 525.3 | M105: 21.92065
A106: 97 | B106: COALINDIA | C106: 245.3 | D106: 247.25 | E106: 242.05 | F106: 238.80 | G106: 233.60 | H106: 250.50 | I106: 255.70 | J106: 258.95 | K106: 252.45 | L106: 244 | M106: 35.78109
A107: 98 | B107: COCHINSHIP | C107: 375.25 | D107: 374.85 | E107: 371.40 | F107: 367.55 | G107: 364.10 | H107: 378.70 | I107: 382.15 | J107: 386.00 | K107: 378.3 | L107: 371 | M107: 0.5349
A108: 99 | B108: COFFEEDAY | C108: 264.1 | D108: 264.93 | E108: 261.97 | F108: 259.83 | G108: 256.87 | H108: 267.07 | I108: 270.03 | J108: 272.17 | K108: 267.9 | L108: 262.8 | M108: 0.27825
A109: 100 | B109: COLPAL | C109: 1224.75 | D109: 1222.27 | E109: 1209.53 | F109: 1194.32 | G109: 1181.58 | H109: 1237.48 | I109: 1250.22 | J109: 1265.43 | K109: 1235 | L109: 1207.05 | M109: 4.84946
A110: 101 | B110: CONCOR | C110: 673.65 | D110: 674.23 | E110: 666.87 | F110: 660.08 | G110: 652.72 | H110: 681.02 | I110: 688.38 | J110: 695.17 | K110: 681.6 | L110: 667.45 | M110: 4.63225
A111: 102 | B111: COROMANDEL | C111: 408.8 | D111: 411.78 | E111: 397.57 | F111: 386.33 | G111: 372.12 | H111: 423.02 | I111: 437.23 | J111: 448.47 | K111: 426 | L111: 400.55 | M111: 1.96075
A112: 103 | B112: COX&KINGS | C112: 169.55 | D112: 168.73 | E112: 166.47 | F112: 163.38 | G112: 161.12 | H112: 171.82 | I112: 174.08 | J112: 177.17 | K112: 171 | L112: 165.65 | M112: 0.73205
A113: 104 | B113: CRISIL | C113: 1542.45 | D113: 1548.07 | E113: 1529.38 | F113: 1516.32 | G113: 1497.63 | H113: 1561.13 | I113: 1579.82 | J113: 1592.88 | K113: 1566.75 | L113: 1535 | M113: 0.05058
A114: 105 | B114: CROMPTON | C114: 220.05 | D114: 220.13 | E114: 217.62 | F114: 215.18 | G114: 212.67 | H114: 222.57 | I114: 225.08 | J114: 227.52 | K114: 222.65 | L114: 217.7 | M114: 1.99899
A115: 106 | B115: CUB | C115: 176.3 | D115: 175.22 | E115: 172.63 | F115: 168.97 | G115: 166.38 | H115: 178.88 | I115: 181.47 | J115: 185.13 | K115: 177.8 | L115: 171.55 | M115: 29.53521
A116: 107 | B116: CUMMINSIND | C116: 782.1 | D116: 788.07 | E116: 770.83 | F116: 759.57 | G116: 742.33 | H116: 799.33 | I116: 816.57 | J116: 827.83 | K116: 805.3 | L116: 776.8 | M116: 3.3469
A117: 108 | B117: CYIENT | C117: 608.9 | D117: 609.67 | E117: 603.33 | F117: 597.77 | G117: 591.43 | H117: 615.23 | I117: 621.57 | J117: 627.13 | K117: 616 | L117: 604.1 | M117: 2.42114
A118: 109 | B118: DABUR | C118: 409.55 | D118: 408.02 | E118: 403.33 | F118: 397.12 | G118: 392.43 | H118: 414.23 | I118: 418.92 | J118: 425.13 | K118: 412.7 | L118: 401.8 | M118: 27.10255
A119: 110 | B119: DBCORP | C119: 173 | D119: 173.65 | E119: 170.05 | F119: 167.10 | G119: 163.50 | H119: 176.60 | I119: 180.20 | J119: 183.15 | K119: 177.25 | L119: 170.7 | M119: 0.13876
A120: 111 | B120: DBL | C120: 446.65 | D120: 449.95 | E120: 440.95 | F120: 435.25 | G120: 426.25 | H120: 455.65 | I120: 464.65 | J120: 470.35 | K120: 458.95 | L120: 444.25 | M120: 1.18748
A121: 112 | B121: DBREALTY | C121: 24.45 | D121: 25.27 | E121: 23.33 | F121: 22.22 | G121: 20.28 | H121: 26.38 | I121: 28.32 | J121: 29.43 | K121: 27.2 | L121: 24.15 | M121: 8.93535
A122: 113 | B122: DCAL | C122: 249.2 | D122: 249.73 | E122: 245.62 | F122: 242.03 | G122: 237.92 | H122: 253.32 | I122: 257.43 | J122: 261.02 | K122: 253.85 | L122: 246.15 | M122: 0.76999
A123: 114 | B123: DCBBANK | C123: 152.7 | D123: 154.02 | E123: 149.68 | F123: 146.67 | G123: 142.33 | H123: 157.03 | I123: 161.37 | J123: 164.38 | K123: 158.35 | L123: 151 | M123: 10.95659
A124: 115 | B124: DCMSHRIRAM | C124: 345.95 | D124: 347.48 | E124: 335.47 | F124: 324.98 | G124: 312.97 | H124: 357.97 | I124: 369.98 | J124: 380.47 | K124: 359.5 | L124: 337 | M124: 1.00347
A125: 116 | B125: DEEPAKFERT | C125: 155.7 | D125: 157.10 | E125: 153.85 | F125: 152.00 | G125: 148.75 | H125: 158.95 | I125: 162.20 | J125: 164.05 | K125: 160.35 | L125: 155.25 | M125: 3.17986
A126: 117 | B126: DELTACORP | C126: 235.95 | D126: 235.47 | E126: 233.08 | F126: 230.22 | G126: 227.83 | H126: 238.33 | I126: 240.72 | J126: 243.58 | K126: 237.85 | L126: 232.6 | M126: 6.73145
A127: 118 | B127: DEN | C127: 69.2 | D127: 69.33 | E127: 69.02 | F127: 68.83 | G127: 68.52 | H127: 69.52 | I127: 69.83 | J127: 70.02 | K127: 69.65 | L127: 69.15 | M127: 1.61267
A128: 119 | B128: DENABANK | C128: 15.6 | D128: 15.63 | E128: 15.47 | F128: 15.33 | G128: 15.17 | H128: 15.77 | I128: 15.93 | J128: 16.07 | K128: 15.8 | L128: 15.5 | M128: 6.52215
A129: 120 | B129: DHFL | C129: 210.9 | D129: 213.40 | E129: 203.95 | F129: 197.00 | G129: 187.55 | H129: 220.35 | I129: 229.80 | J129: 236.75 | K129: 222.85 | L129: 206.45 | M129: 125.82126
A130: 121 | B130: DISHTV | C130: 35.25 | D130: 35.55 | E130: 34.75 | F130: 34.25 | G130: 33.45 | H130: 36.05 | I130: 36.85 | J130: 37.35 | K130: 36.35 | L130: 35.05 | M130: 102.31997
A131: 122 | B131: DIVISLAB | C131: 1480.35 | D131: 1482.07 | E131: 1461.33 | F131: 1442.32 | G131: 1421.58 | H131: 1501.08 | I131: 1521.82 | J131: 1540.83 | K131: 1502.8 | L131: 1463.05 | M131: 8.38036
A132: 123 | B132: DIXON | C132: 2027.1 | D132: 2034.85 | E132: 2012.25 | F132: 1997.40 | G132: 1974.80 | H132: 2049.70 | I132: 2072.30 | J132: 2087.15 | K132: 2057.45 | L132: 2020 | M132: 0.02194
A133: 124 | B133: DLF | C133: 177 | D133: 175.55 | E133: 173.10 | F133: 169.20 | G133: 166.75 | H133: 179.45 | I133: 181.90 | J133: 185.80 | K133: 178 | L133: 171.65 | M133: 65.36199
A134: 125 | B134: DMART | C134: 1502.55 | D134: 1495.53 | E134: 1482.17 | F134: 1461.78 | G134: 1448.42 | H134: 1515.92 | I134: 1529.28 | J134: 1549.67 | K134: 1508.9 | L134: 1475.15 | M134: 5.80513
A135: 126 | B135: DREDGECORP | C135: 350 | D135: 351.65 | E135: 344.35 | F135: 338.70 | G135: 331.40 | H135: 357.30 | I135: 364.60 | J135: 370.25 | K135: 358.95 | L135: 346 | M135: 1.51502
A136: 127 | B136: DRREDDY | C136: 2671.65 | D136: 2677.40 | E136: 2640.85 | F136: 2610.05 | G136: 2573.50 | H136: 2708.20 | I136: 2744.75 | J136: 2775.55 | K136: 2713.95 | L136: 2646.6 | M136: 4.47631
A137: 128 | B137: ECLERX | C137: 1072.25 | D137: 1077.40 | E137: 1044.85 | F137: 1017.45 | G137: 984.90 | H137: 1104.80 | I137: 1137.35 | J137: 1164.75 | K137: 1109.95 | L137: 1050 | M137: 0.19659
A138: 129 | B138: EDELWEISS | C138: 192.7 | D138: 191.90 | E138: 187.80 | F138: 182.90 | G138: 178.80 | H138: 196.80 | I138: 200.90 | J138: 205.80 | K138: 196 | L138: 187 | M138: 39.40836
A139: 130 | B139: EICHERMOT | C139: 22793.45 | D139: 22919.48 | E139: 22558.97 | F139: 22324.48 | G139: 21963.97 | H139: 23153.97 | I139: 23514.48 | J139: 23748.97 | K139: 23280 | L139: 22685 | M139: 0.88551
A140: 131 | B140: EIDPARRY | C140: 208 | D140: 210.55 | E140: 204.55 | F140: 201.10 | G140: 195.10 | H140: 214.00 | I140: 220.00 | J140: 223.45 | K140: 216.55 | L140: 207.1 | M140: 0.80117
A141: 132 | B141: EIHOTEL | C141: 185.35 | D141: 186.30 | E141: 183.65 | F141: 181.95 | G141: 179.30 | H141: 188.00 | I141: 190.65 | J141: 192.35 | K141: 188.95 | L141: 184.6 | M141: 0.69863
A142: 133 | B142: EMAMILTD | C142: 434.2 | D142: 435.02 | E142: 430.28 | F142: 426.37 | G142: 421.63 | H142: 438.93 | I142: 443.67 | J142: 447.58 | K142: 439.75 | L142: 431.1 | M142: 0.40604
A143: 134 | B143: ENDURANCE | C143: 1127.1 | D143: 1123.55 | E143: 1110.05 | F143: 1093.00 | G143: 1079.50 | H143: 1140.60 | I143: 1154.10 | J143: 1171.15 | K143: 1137.05 | L143: 1106.5 | M143: 0.22541
A144: 135 | B144: ENGINERSIN | C144: 112.95 | D144: 113.88 | E144: 110.27 | F144: 107.58 | G144: 103.97 | H144: 116.57 | I144: 120.18 | J144: 122.87 | K144: 117.5 | L144: 111.2 | M144: 21.05806
A145: 136 | B145: EQUITAS | C145: 118.5 | D145: 119.87 | E145: 115.88 | F145: 113.27 | G145: 109.28 | H145: 122.48 | I145: 126.47 | J145: 129.08 | K145: 123.85 | L145: 117.25 | M145: 45.90786
A146: 137 | B146: ERIS | C146: 628.45 | D146: 627.15 | E146: 616.30 | F146: 604.15 | G146: 593.30 | H146: 639.30 | I146: 650.15 | J146: 662.30 | K146: 638 | L146: 615 | M146: 0.10109
A147: 138 | B147: EROSMEDIA | C147: 87.1 | D147: 87.07 | E147: 85.83 | F147: 84.57 | G147: 83.33 | H147: 88.33 | I147: 89.57 | J147: 90.83 | K147: 88.3 | L147: 85.8 | M147: 1.40589
A148: 139 | B148: ESCORTS | C148: 659.25 | D148: 669.18 | E148: 642.57 | F148: 625.88 | G148: 599.27 | H148: 685.87 | I148: 712.48 | J148: 729.17 | K148: 695.8 | L148: 652.5 | M148: 20.49023
A149: 140 | B149: EVEREADY | C149: 203.9 | D149: 203.02 | E149: 200.93 | F149: 197.97 | G149: 195.88 | H149: 205.98 | I149: 208.07 | J149: 211.03 | K149: 205.1 | L149: 200.05 | M149: 0.83997
A150: 141 | B150: EXIDEIND | C150: 253.75 | D150: 255.12 | E150: 251.13 | F150: 248.52 | G150: 244.53 | H150: 257.73 | I150: 261.72 | J150: 264.33 | K150: 259.1 | L150: 252.5 | M150: 6.80923
A151: 142 | B151: FCONSUMER | C151: 45.3 | D151: 45.17 | E151: 44.83 | F151: 44.37 | G151: 44.03 | H151: 45.63 | I151: 45.97 | J151: 46.43 | K151: 45.5 | L151: 44.7 | M151: 17.7031
A152: 143 | B152: FEDERALBNK | C152: 84 | D152: 84.03 | E152: 82.67 | F152: 81.33 | G152: 79.97 | H152: 85.37 | I152: 86.73 | J152: 88.07 | K152: 85.4 | L152: 82.7 | M152: 100.10681
A153: 144 | B153: FINCABLES | C153: 469.75 | D153: 469.58 | E153: 464.17 | F153: 458.58 | G153: 453.17 | H153: 475.17 | I153: 480.58 | J153: 486.17 | K153: 475 | L153: 464 | M153: 0.20745
A154: 145 | B154: FINPIPE | C154: 541.9 | D154: 543.65 | E154: 537.25 | F154: 532.60 | G154: 526.20 | H154: 548.30 | I154: 554.70 | J154: 559.35 | K154: 550.05 | L154: 539 | M154: 0.39042
A155: 146 | B155: FLFL | C155: 397.5 | D155: 396.40 | E155: 393.10 | F155: 388.70 | G155: 385.40 | H155: 400.80 | I155: 404.10 | J155: 408.50 | K155: 399.7 | L155: 392 | M155: 0.10702
A156: 147 | B156: FSL | C156: 53.95 | D156: 53.40 | E156: 52.45 | F156: 50.95 | G156: 50.00 | H156: 54.90 | I156: 55.85 | J156: 57.35 | K156: 54.35 | L156: 51.9 | M156: 19.29345
A157: 148 | B157: GAIL | C157: 349.35 | D157: 351.00 | E157: 345.60 | F157: 341.85 | G157: 336.45 | H157: 354.75 | I157: 360.15 | J157: 363.90 | K157: 356.4 | L157: 347.25 | M157: 25.35122
A158: 149 | B158: GATI | C158: 83.35 | D158: 83.98 | E158: 81.87 | F158: 80.38 | G158: 78.27 | H158: 85.47 | I158: 87.58 | J158: 89.07 | K158: 86.1 | L158: 82.5 | M158: 4.13276
A159: 150 | B159: GDL | C159: 137.2 | D159: 137.90 | E159: 136.30 | F159: 135.40 | G159: 133.80 | H159: 138.80 | I159: 140.40 | J159: 141.30 | K159: 139.5 | L159: 137 | M159: 0.458
A160: 151 | B160: GEPIL | C160: 826.4 | D160: 821.30 | E160: 812.65 | F160: 798.90 | G160: 790.25 | H160: 835.05 | I160: 843.70 | J160: 857.45 | K160: 829.95 | L160: 807.55 | M160: 0.11993
A161: 152 | B161: GESHIP | C161: 291.65 | D161: 292.83 | E161: 286.82 | F161: 281.98 | G161: 275.97 | H161: 297.67 | I161: 303.68 | J161: 308.52 | K161: 298.85 | L161: 288 | M161: 1.26443
A162: 153 | B162: GET&D | C162: 227.55 | D162: 228.63 | E162: 225.42 | F162: 223.28 | G162: 220.07 | H162: 230.77 | I162: 233.98 | J162: 236.12 | K162: 231.85 | L162: 226.5 | M162: 0.10961
A163: 154 | B163: GHCL | C163: 229.55 | D163: 228.85 | E163: 224.70 | F163: 219.85 | G163: 215.70 | H163: 233.70 | I163: 237.85 | J163: 242.70 | K163: 233 | L163: 224 | M163: 1.02092
A164: 155 | B164: GICRE | C164: 275.75 | D164: 276.90 | E164: 273.85 | F164: 271.95 | G164: 268.90 | H164: 278.80 | I164: 281.85 | J164: 283.75 | K164: 279.95 | L164: 275 | M164: 0.37559
A165: 156 | B165: GILLETTE | C165: 6493 | D165: 6496.67 | E165: 6446.33 | F165: 6399.67 | G165: 6349.33 | H165: 6543.33 | I165: 6593.67 | J165: 6640.33 | K165: 6547 | L165: 6450 | M165: 0.04681
A166: 157 | B166: GLAXO | C166: 1376.4 | D166: 1378.92 | E166: 1357.83 | F166: 1339.27 | G166: 1318.18 | H166: 1397.48 | I166: 1418.57 | J166: 1437.13 | K166: 1400 | L166: 1360.35 | M166: 0.09623
A167: 158 | B167: GLENMARK | C167: 626.75 | D167: 624.33 | E167: 617.67 | F167: 608.58 | G167: 601.92 | H167: 633.42 | I167: 640.08 | J167: 649.17 | K167: 631 | L167: 615.25 | M167: 12.08374
A168: 159 | B168: GMDCLTD | C168: 86 | D168: 85.90 | E168: 85.40 | F168: 84.80 | G168: 84.30 | H168: 86.50 | I168: 87.00 | J168: 87.60 | K168: 86.4 | L168: 85.3 | M168: 4.08222
A169: 160 | B169: GMRINFRA | C169: 15.55 | D169: 15.68 | E169: 15.32 | F169: 15.08 | G169: 14.72 | H169: 15.92 | I169: 16.28 | J169: 16.52 | K169: 16.05 | L169: 15.45 | M169: 157.65618
A170: 161 | B170: GNFC | C170: 338.9 | D170: 339.27 | E170: 335.63 | F170: 332.37 | G170: 328.73 | H170: 342.53 | I170: 346.17 | J170: 349.43 | K170: 342.9 | L170: 336 | M170: 2.35635
A171: 162 | B171: GODFRYPHLP | C171: 894.7 | D171: 901.22 | E171: 882.53 | F171: 870.37 | G171: 851.68 | H171: 913.38 | I171: 932.07 | J171: 944.23 | K171: 919.9 | L171: 889.05 | M171: 2.81949
A172: 163 | B172: GODREJAGRO | C172: 513.9 | D172: 512.72 | E172: 506.53 | F172: 499.17 | G172: 492.98 | H172: 520.08 | I172: 526.27 | J172: 533.63 | K172: 518.9 | L172: 505.35 | M172: 1.41888
A173: 164 | B173: GODREJCP | C173: 752.15 | D173: 751.37 | E173: 744.78 | F173: 737.42 | G173: 730.83 | H173: 758.73 | I173: 765.32 | J173: 772.68 | K173: 757.95 | L173: 744 | M173: 8.57081
A174: 165 | B174: GODREJIND | C174: 542.75 | D174: 545.50 | E174: 537.25 | F174: 531.75 | G174: 523.50 | H174: 551.00 | I174: 559.25 | J174: 564.75 | K174: 553.75 | L174: 540 | M174: 3.18205
A175: 166 | B175: GODREJPROP | C175: 690.8 | D175: 691.22 | E175: 682.43 | F175: 674.07 | G175: 665.28 | H175: 699.58 | I175: 708.37 | J175: 716.73 | K175: 700 | L175: 682.85 | M175: 7.3406
A176: 167 | B176: GPPL | C176: 92.9 | D176: 93.27 | E176: 91.48 | F176: 90.07 | G176: 88.28 | H176: 94.68 | I176: 96.47 | J176: 97.88 | K176: 95.05 | L176: 91.85 | M176: 0.74609
A177: 168 | B177: GRANULES | C177: 86.65 | D177: 86.42 | E177: 85.03 | F177: 83.42 | G177: 82.03 | H177: 88.03 | I177: 89.42 | J177: 91.03 | K177: 87.8 | L177: 84.8 | M177: 13.95345
A178: 169 | B178: GRAPHITE | C178: 884.65 | D178: 891.90 | E178: 873.85 | F178: 863.05 | G178: 845.00 | H178: 902.70 | I178: 920.75 | J178: 931.55 | K178: 909.95 | L178: 881.1 | M178: 3.72953
A179: 170 | B179: GRASIM | C179: 826 | D179: 828.48 | E179: 813.77 | F179: 801.53 | G179: 786.82 | H179: 840.72 | I179: 855.43 | J179: 867.67 | K179: 843.2 | L179: 816.25 | M179: 12.06275
A180: 171 | B180: GREAVESCOT | C180: 122.75 | D180: 123.23 | E180: 121.62 | F180: 120.48 | G180: 118.87 | H180: 124.37 | I180: 125.98 | J180: 127.12 | K180: 124.85 | L180: 122.1 | M180: 1.00953
A181: 172 | B181: GREENPLY | C181: 134.45 | D181: 133.95 | E181: 132.50 | F181: 130.55 | G181: 129.10 | H181: 135.90 | I181: 137.35 | J181: 139.30 | K181: 135.4 | L181: 132 | M181: 0.86095
A182: 173 | B182: GRUH | C182: 300.1 | D182: 299.72 | E182: 294.48 | F182: 288.87 | G182: 283.63 | H182: 305.33 | I182: 310.57 | J182: 316.18 | K182: 304.95 | L182: 294.1 | M182: 2.6214
A183: 174 | B183: GSFC | C183: 104.15 | D183: 104.35 | E183: 101.80 | F183: 99.45 | G183: 96.90 | H183: 106.70 | I183: 109.25 | J183: 111.60 | K183: 106.9 | L183: 102 | M183: 21.58674
A184: 175 | B184: GSKCONS | C184: 7644.6 | D184: 7580.22 | E184: 7490.43 | F184: 7336.27 | G184: 7246.48 | H184: 7734.38 | I184: 7824.17 | J184: 7978.33 | K184: 7670 | L184: 7426.05 | M184: 1.14934
A185: 176 | B185: GSPL | C185: 186.2 | D185: 186.37 | E185: 184.78 | F185: 183.37 | G185: 181.78 | H185: 187.78 | I185: 189.37 | J185: 190.78 | K185: 187.95 | L185: 184.95 | M185: 2.58805
A186: 177 | B186: GUJALKALI | C186: 544 | D186: 544.72 | E186: 539.43 | F186: 534.87 | G186: 529.58 | H186: 549.28 | I186: 554.57 | J186: 559.13 | K186: 550 | L186: 540.15 | M186: 0.54082
A187: 178 | B187: GUJFLUORO | C187: 899.95 | D187: 893.70 | E187: 880.40 | F187: 860.85 | G187: 847.55 | H187: 913.25 | I187: 926.55 | J187: 946.10 | K187: 907 | L187: 874.15 | M187: 0.73345
A188: 179 | B188: GUJGASLTD | C188: 636.1 | D188: 638.03 | E188: 632.32 | F188: 628.53 | G188: 622.82 | H188: 641.82 | I188: 647.53 | J188: 651.32 | K188: 643.75 | L188: 634.25 | M188: 0.95531
A189: 180 | B189: GULFOILLUB | C189: 768.8 | D189: 769.77 | E189: 763.33 | F189: 757.87 | G189: 751.43 | H189: 775.23 | I189: 781.67 | J189: 787.13 | K189: 776.2 | L189: 764.3 | M189: 0.05589
A190: 181 | B190: GVKPIL | C190: 7.3 | D190: 7.37 | E190: 7.23 | F190: 7.17 | G190: 7.03 | H190: 7.43 | I190: 7.57 | J190: 7.63 | K190: 7.5 | L190: 7.3 | M190: 8.31685
A191: 182 | B191: HATHWAY | C191: 30.55 | D191: 30.57 | E191: 30.53 | F191: 30.52 | G191: 30.48 | H191: 30.58 | I191: 30.62 | J191: 30.63 | K191: 30.6 | L191: 30.55 | M191: 4.62722
A192: 183 | B192: HATSUN | C192: 623.3 | D192: 618.42 | E192: 609.83 | F192: 596.37 | G192: 587.78 | H192: 631.88 | I192: 640.47 | J192: 653.93 | K192: 627 | L192: 604.95 | M192: 0.16372
A193: 184 | B193: HAVELLS | C193: 694.5 | D193: 692.58 | E193: 687.17 | F193: 679.83 | G193: 674.42 | H193: 699.92 | I193: 705.33 | J193: 712.67 | K193: 698 | L193: 685.25 | M193: 5.75468
A194: 185 | B194: HCC | C194: 11.25 | D194: 11.35 | E194: 11.10 | F194: 10.95 | G194: 10.70 | H194: 11.50 | I194: 11.75 | J194: 11.90 | K194: 11.6 | L194: 11.2 | M194: 55.47548
A195: 186 | B195: HCL-INSYS | C195: 25.1 | D195: 25.45 | E195: 24.55 | F195: 24.00 | G195: 23.10 | H195: 26.00 | I195: 26.90 | J195: 27.45 | K195: 26.35 | L195: 24.9 | M195: 15.00609
A196: 187 | B196: HCLTECH | C196: 1051.05 | D196: 1043.68 | E196: 1029.37 | F196: 1007.68 | G196: 993.37 | H196: 1065.37 | I196: 1079.68 | J196: 1101.37 | K196: 1058 | L196: 1022 | M196: 19.36706
A197: 188 | B197: HDFC | C197: 1973.3 | D197: 1957.90 | E197: 1936.00 | F197: 1898.70 | G197: 1876.80 | H197: 1995.20 | I197: 2017.10 | J197: 2054.40 | K197: 1979.8 | L197: 1920.6 | M197: 31.4711
A198: 189 | B198: HDFCBANK | C198: 2099.2 | D198: 2093.48 | E198: 2081.67 | F198: 2064.13 | G198: 2052.32 | H198: 2111.02 | I198: 2122.83 | J198: 2140.37 | K198: 2105.3 | L198: 2075.95 | M198: 29.49711
A199: 190 | B199: HDIL | C199: 21.55 | D199: 21.75 | E199: 21.00 | F199: 20.45 | G199: 19.70 | H199: 22.30 | I199: 23.05 | J199: 23.60 | K199: 22.5 | L199: 21.2 | M199: 46.48501
A200: 191 | B200: HEG | C200: 4030.25 | D200: 4058.82 | E200: 3987.63 | F200: 3945.02 | G200: 3873.83 | H200: 4101.43 | I200: 4172.62 | J200: 4215.23 | K200: 4130 | L200: 4016.2 | M200: 1.25449
A201: 192 | B201: HEIDELBERG | C201: 150.9 | D201: 150.63 | E201: 150.22 | F201: 149.53 | G201: 149.12 | H201: 151.32 | I201: 151.73 | J201: 152.42 | K201: 151.05 | L201: 149.95 | M201: 0.33795
A202: 193 | B202: HERITGFOOD | C202: 484.7 | D202: 491.83 | E202: 473.87 | F202: 463.03 | G202: 445.07 | H202: 502.67 | I202: 520.63 | J202: 531.47 | K202: 509.8 | L202: 481 | M202: 0.30842
A203: 194 | B203: HEROMOTOCO | C203: 3052.5 | D203: 3054.28 | E203: 3026.62 | F203: 3000.73 | G203: 2973.07 | H203: 3080.17 | I203: 3107.83 | J203: 3133.72 | K203: 3081.95 | L203: 3028.4 | M203: 2.11238
A204: 195 | B204: HEXAWARE | C204: 325 | D204: 326.43 | E204: 318.97 | F204: 312.93 | G204: 305.47 | H204: 332.47 | I204: 339.93 | J204: 345.97 | K204: 333.9 | L204: 320.4 | M204: 14.3974
A205: 196 | B205: HFCL | C205: 18.2 | D205: 18.32 | E205: 17.98 | F205: 17.77 | G205: 17.43 | H205: 18.53 | I205: 18.87 | J205: 19.08 | K205: 18.65 | L205: 18.1 | M205: 13.29408
A206: 197 | B206: HIMATSEIDE | C206: 214.4 | D206: 215.68 | E206: 211.37 | F206: 208.33 | G206: 204.02 | H206: 218.72 | I206: 223.03 | J206: 226.07 | K206: 220 | L206: 212.65 | M206: 0.55803
... 304 more rows

Sheet Bulk Deals
E6: Back To Main Page
A7: Subject : | B7: BULK DEAL | D7: =Main!B10 -> 2018-12-06
A9: Date | B9: Scrip code | C9: Scrip Name | D9: Client Name | E9: Buy / Sell | F9: Quantity Traded | G9: Trade Price / Wt.Avg.trade price | H9: Exchange
A10: 2018-12-05 | B10: 539009 | C10: GBLIL | D10: ARPAN DAS | E10: BUY | F10: 30,000 | G10: 64.09 | H10: BSE
A11: 2018-12-05 | B11: 539009 | C11: GBLIL | D11: BUDDHADEB LAHA | E11: BUY | F11: 46,500 | G11: 64.09 | H11: BSE
A12: 2018-12-05 | B12: 539009 | C12: GBLIL | D12: KEVAL SAVANT | E12: SELL | F12: 54,221 | G12: 64.09 | H12: BSE
A13: 2018-12-05 | B13: 530663 | C13: GOYALASS | D13: YOGESH DHARNIDHARKA | E13: BUY | F13: 425,000 | G13: 2.89 | H13: BSE
A14: 2018-12-05 | B14: 530663 | C14: GOYALASS | D14: RITESH PRAFUL SHAH . | E14: SELL | F14: 235,000 | G14: 2.89 | H14: BSE
A15: 2018-12-05 | B15: 540938 | C15: GUJHYSPIN | D15: DHANSUKHBHAI CHAMPAKLAL JADAV | E15: SELL | F15: 120,000 | G15: 6.04 | H15: BSE
A16: 2018-12-05 | B16: 536709 | C16: INDRENEW | D16: JITENDRA KANTILAL VAKHARIA | E16: SELL | F16: 122,769 | G16: 18.01 | H16: BSE
A17: 2018-12-05 | B17: 536709 | C17: INDRENEW | D17: HARSHADA MANOHAR BAING | E17: BUY | F17: 122,358 | G17: 18 | H17: BSE
A18: 2018-12-05 | B18: 536709 | C18: INDRENEW | D18: SHALAKA SANTOSH GURAV | E18: SELL | F18: 20,000 | G18: 18 | H18: BSE
A19: 2018-12-05 | B19: 536709 | C19: INDRENEW | D19: GANGARAM GOVIND WAINGANKAR | E19: SELL | F19: 46,000 | G19: 18.09 | H19: BSE
A20: 2018-12-05 | B20: 536709 | C20: INDRENEW | D20: HARIT SHAH | E20: BUY | F20: 20,499 | G20: 18 | H20: BSE
A21: 2018-12-05 | B21: 536709 | C21: INDRENEW | D21: RAMESH RAO THANGADA | E21: BUY | F21: 44,450 | G21: 18.1 | H21: BSE
A22: 2018-12-05 | B22: 539083 | C22: INOXWIND | D22: PRIME INDIA OPPORTUNITY FUND | E22: BUY | F22: 2,375,000 | G22: 80.29 | H22: BSE
A23: 2018-12-05 | B23: 539083 | C23: INOXWIND | D23: NOMURA SINGAPORE LIMITED | E23: SELL | F23: 2,375,000 | G23: 80.3 | H23: BSE
A24: 2018-12-05 | B24: 540756 | C24: KAARYAFSL | D24: VIKRMABAHI JAMNADAS SHAH | E24: BUY | F24: 30,000 | G24: 34.9 | H24: BSE
A25: 2018-12-05 | B25: 540756 | C25: KAARYAFSL | D25: NISHIL SURENDRABHAI MARFATIA | E25: SELL | F25: 30,000 | G25: 34.9 | H25: BSE
A26: 2018-12-05 | B26: 530357 | C26: KBSINDIA | D26: JEET KETAN SHAH | E26: BUY | F26: 432,150 | G26: 4.56 | H26: BSE
A27: 2018-12-05 | B27: 530357 | C27: KBSINDIA | D27: BHAVANAMUKESHMOTASHA | E27: SELL | F27: 432,144 | G27: 4.56 | H27: BSE
A28: 2018-12-05 | B28: 531288 | C28: LEADFIN | D28: LODHA SUBHASH HASTIMAL | E28: SELL | F28: 71,522 | G28: 3.62 | H28: BSE
A29: 2018-12-05 | B29: 531288 | C29: LEADFIN | D29: PRITTYDEVI SARAWAGI | E29: BUY | F29: 31,000 | G29: 3.62 | H29: BSE
A30: 2018-12-05 | B30: 531288 | C30: LEADFIN | D30: SANJAY H SARAWAGI | E30: BUY | F30: 40,522 | G30: 3.62 | H30: BSE
A31: 2018-12-05 | B31: 537800 | C31: MANGIND | D31: ALERT COMMDEAL PRIVATE LIMITED | E31: SELL | F31: 5,000,000 | G31: 0.5 | H31: BSE
A32: 2018-12-05 | B32: 537800 | C32: MANGIND | D32: SARVOTTAM SECURITIES PRIVATE LIMITED | E32: BUY | F32: 10,743,447 | G32: 0.5 | H32: BSE
A33: 2018-12-05 | B33: 531512 | C33: ORIENTTR | D33: DAVINDER SINGH BEDI | E33: BUY | F33: 60,000 | G33: 12.44 | H33: BSE
A34: 2018-12-05 | B34: 517258 | C34: PRECISIO | D34: ASHOK KUMAR KANODIA | E34: SELL | F34: 960,000 | G34: 38.65 | H34: BSE
A35: 2018-12-05 | B35: 517258 | C35: PRECISIO | D35: HARDEEP SINGH BANGA | E35: BUY | F35: 970,000 | G35: 38.64 | H35: BSE
A36: 2018-12-05 | B36: 542145 | C36: RONI | D36: BABULAL VADILAL SHAH | E36: BUY | F36: 48,000 | G36: 20.25 | H36: BSE
A37: 2018-12-05 | B37: 542145 | C37: RONI | D37: SHAH BABULAL VADILAL HUF | E37: BUY | F37: 180,000 | G37: 20.25 | H37: BSE
A38: 2018-12-05 | B38: 542145 | C38: RONI | D38: SHAH MUKESHKUMAR BABULAL | E38: BUY | F38: 72,000 | G38: 20.25 | H38: BSE
A39: 2018-12-05 | B39: 542145 | C39: RONI | D39: FESTINO VINCOM LIMITED | E39: BUY | F39: 96,000 | G39: 20.25 | H39: BSE
A40: 2018-12-05 | B40: 542145 | C40: RONI | D40: VAISHALI DINKAR PATIL | E40: BUY | F40: 36,000 | G40: 20.25 | H40: BSE
A41: 2018-12-05 | B41: 542145 | C41: RONI | D41: RAVINDRANATH JAGANNATH WARADKAR | E41: BUY | F41: 48,000 | G41: 20.25 | H41: BSE
A42: 2018-12-05 | B42: 506906 | C42: SCBL | D42: MANISHA N KOTHARI | E42: BUY | F42: 69,528 | G42: 9.19 | H42: BSE
A43: 2018-12-05 | B43: 506906 | C43: SCBL | D43: MANISHA N KOTHARI | E43: SELL | F43: 16,044 | G43: 9.38 | H43: BSE
A44: 2018-12-05 | B44: 542146 | C44: SKIFL | D44: NAMRA TRADERS AND DISTRIBUTORS LLP | E44: BUY | F44: 80,000 | G44: 11.74 | H44: BSE
A45: 2018-12-05 | B45: 542146 | C45: SKIFL | D45: ZAKEERHUSEN YUSUFBHAI MALEK | E45: BUY | F45: 30,000 | G45: 11.74 | H45: BSE
A46: 2018-12-05 | B46: 542146 | C46: SKIFL | D46: PRANAVKUMAR KANCHANLAL PATEL | E46: BUY | F46: 30,000 | G46: 11.74 | H46: BSE
A47: 2018-12-05 | B47: 542146 | C47: SKIFL | D47: DAKSHABEN PRANAVBHAI PATEL | E47: BUY | F47: 30,000 | G47: 11.74 | H47: BSE
A48: 2018-12-05 | B48: 542146 | C48: SKIFL | D48: DHRUV PATEL | E48: BUY | F48: 30,000 | G48: 11.74 | H48: BSE
A49: 2018-12-05 | B49: 541701 | C49: SUPERSHAKT | D49: BIJAL MUKESH SHAH-HUF | E49: SELL | F49: 41,400 | G49: 407 | H49: BSE
A50: 2018-12-05 | B50: 541701 | C50: SUPERSHAKT | D50: JIGNESH AMRITLAL PATEL | E50: SELL | F50: 36,600 | G50: 407 | H50: BSE
A51: 2018-12-05 | B51: 541701 | C51: SUPERSHAKT | D51: VIPUL HARIDAS THAKKAR | E51: SELL | F51: 31,500 | G51: 407 | H51: BSE
A52: 2018-12-05 | B52: 541701 | C52: SUPERSHAKT | D52: ASIA INVESTMENT CORPORATION MAURITIUS LIMITED | E52: BUY | F52: 189,000 | G52: 407 | H52: BSE
A53: 2018-12-05 | B53: 539798 | C53: UMIYA | D53: SAKAR GIRISHBHAI PATEL | E53: BUY | F53: 51,335 | G53: 26.67 | H53: BSE
A54: 2018-12-05 | B54: 531574 | C54: VASINFRA | D54: VISHWA PRANAVKUMAR VORA | E54: BUY | F54: 191,000 | G54: 4.17 | H54: BSE
A55: 2018-12-05 | B55: 531574 | C55: VASINFRA | D55: SUNDEEP RAJPAL CHHABRA | E55: SELL | F55: 200,000 | G55: 4.17 | H55: BSE
A56: 2018-12-05 | B56: 503657 | C56: VEERENRGY | D56: ASPIRE EMERGING FUND | E56: SELL | F56: 97,000 | G56: 11.68 | H56: BSE
A57: 2018-12-05 | B57: 503657 | C57: VEERENRGY | D57: RAISONNEUR CAPITAL LTD | E57: BUY | F57: 97,000 | G57: 11.68 | H57: BSE
A58: 2018-12-05 | B58: ARVIND | C58: Arvind Limited | D58: SHAASTRA SECURITIES TRADING PRIVATE LIMITED | E58: BUY | F58: 2,061,343 | G58: 105.04 | H58: NSE
A59: 2018-12-05 | B59: GSS | C59: GSS Infotech Limited | D59: ASHWIN KAMDAR HUF | E59: BUY | F59: 110,000 | G59: 127 | H59: NSE
A60: 2018-12-05 | B60: GSS | C60: GSS Infotech Limited | D60: RITESH SPINNING MILLS LIMITED | E60: BUY | F60: 126,000 | G60: 127 | H60: NSE
A61: 2018-12-05 | B61: INOXWIND | C61: Inox Wind Limited | D61: PRIME INDIA OPPORTUNITY LIMITED | E61: BUY | F61: 2,375,000 | G61: 79.3 | H61: NSE
A62: 2018-12-05 | B62: JETAIRWAYS | C62: Jet Airways (India) Ltd. | D62: CROSSLAND TRADING CO | E62: BUY | F62: 802,431 | G62: 295.29 | H62: NSE
A63: 2018-12-05 | B63: JETAIRWAYS | C63: Jet Airways (India) Ltd. | D63: SHAASTRA SECURITIES TRADING PRIVATE LIMITED | E63: BUY | F63: 920,665 | G63: 300.64 | H63: NSE
A64: 2018-12-05 | B64: OMKARCHEM | C64: Omkar Spl Chem Ltd | D64: ALPHA LEON ENTERPRISES LLP | E64: BUY | F64: 55,002 | G64: 15.5 | H64: NSE
A65: 2018-12-05 | B65: RCOM | C65: Reliance Comm. Ltd. | D65: SHAASTRA SECURITIES TRADING PRIVATE LIMITED | E65: BUY | F65: 21,658,864 | G65: 16.6 | H65: NSE
A66: 2018-12-05 | B66: RCOM | C66: Reliance Comm. Ltd. | D66: SKYVEIL TRADE SOLUTIONS LLP | E66: BUY | F66: 25,841,364 | G66: 16.44 | H66: NSE
A67: 2018-12-05 | B67: SHUBHLAXMI | C67: Shubhlaxmi Jewel Art Ltd | D67: CHIRAG D LANGALIYA HUF | E67: BUY | F67: 60,000 | G67: 27.3 | H67: NSE
A68: 2018-12-05 | B68: SHUBHLAXMI | C68: Shubhlaxmi Jewel Art Ltd | D68: SHREE GAJANAN CONSTRUCTION | E68: BUY | F68: 84,000 | G68: 27.4 | H68: NSE
A69: 2018-12-05 | B69: AGROPHOS | C69: Agro Phos India Limited | D69: MUKTA NARANG | E69: SELL | F69: 108,000 | G69: 47.25 | H69: NSE
A70: 2018-12-05 | B70: ARVIND | C70: Arvind Limited | D70: SHAASTRA SECURITIES TRADING PRIVATE LIMITED | E70: SELL | F70: 2061343 | G70: 105.1 | H70: NSE
A71: 2018-12-05 | B71: GSS | C71: GSS Infotech Limited | D71: REAL MARKETING PVT LTD | E71: SELL | F71: 205010 | G71: 127 | H71: NSE
A72: 2018-12-05 | B72: INOXWIND | C72: Inox Wind Limited | D72: NOMURA SINGAPORE LIMITED | E72: SELL | F72: 2375000 | G72: 79.3 | H72: NSE
A73: 2018-12-05 | B73: JETAIRWAYS | C73: Jet Airways (India) Ltd. | D73: CROSSLAND TRADING CO | E73: SELL | F73: 802431 | G73: 295.72 | H73: NSE
A74: 2018-12-05 | B74: JETAIRWAYS | C74: Jet Airways (India) Ltd. | D74: SHAASTRA SECURITIES TRADING PRIVATE LIMITED | E74: SELL | F74: 920665 | G74: 300.74 | H74: NSE
A75: 2018-12-05 | B75: OMKARCHEM | C75: Omkar Spl Chem Ltd | D75: ALPHA LEON ENTERPRISES LLP | E75: SELL | F75: 121601 | G75: 15.5 | H75: NSE
A76: 2018-12-05 | B76: RCOM | C76: Reliance Comm. Ltd. | D76: SHAASTRA SECURITIES TRADING PRIVATE LIMITED | E76: SELL | F76: 21658864 | G76: 16.63 | H76: NSE
A77: 2018-12-05 | B77: RCOM | C77: Reliance Comm. Ltd. | D77: SKYVEIL TRADE SOLUTIONS LLP | E77: SELL | F77: 25841364 | G77: 16.45 | H77: NSE

Sheet Call Tracker (Equity & F&O)
M5: Back To Main Page
A6: Retail Research Technical Calls & Fundamental Performance Report for the month of December -2018
M7: =Main!B10 -> 2018-12-06
B8: Positional Call
A9: Sr.no | B9: Date | D9: Company | E9: Rec | F9: Rec Price | G9: Stop Loss*** | H9: Call Closed At | I9: Target | J9: Remark | K9: Profit / Loss per Share | L9: Gain / Loss % | M9: Status | N9: Closed Date | O9: NSE Closed Price
A10: 1 | B10: 2018-11-14 | D10: ASHOKLEY | E10: Buy | F10: 108 | G10: 100.7 | H10: 111.25 | I10: 122-125 | J10: Part Profit of Rs.3.25/- | K10: =H10-F10 -> 3.25 | L10: =K10/F10 -> 3.01% | M10: Successful | N10: 2018-11-30 | R10: R
A11: 2 | B11: 2018-11-21 | D11: ADANIPORTS | E11: Sell | F11: 358-361 | G11: 377.7 | I11: 322-326 | J11: Open | O11: =VLOOKUP(D11,Sheet2!A11:M1647,6,0) -> 374.75 | R11: R
A12: 3 | B12: 2018-11-29 | D12: JSWSTEEL | E12: Buy | F12: 312 | G12: 297.7 | H12: 322 | I12: 344-350 | J12: Part Profit of Rs.10/- | K12: =H12-F12 -> 10 | L12: =K12/F12 -> 3.21% | M12: Successful | N12: 2018-11-30 | R12: R
A13: 4 | B13: 2018-11-30 | D13: RAYMOND | E13: Sell | F13: 820 | G13: 861.6 | H13: 793.5 | I13: 745-735 | J13: Part Profit of Rs.26.5/- | K13: =F13-H13 -> 26.5 | L13: 3.23% | M13: Successful | N13: 2018-12-03 | R13: R
A14: 5 | B14: 2018-11-30 | D14: INFY | E14: Buy | F14: 665 | G14: 628 | H14: 685 | I14: 725 | J14: Part Profit of Rs.20/- | K14: 20 | L14: =K14/F14 -> 3.01% | M14: Successful | N14: 2018-12-04 | R14: H
A34: CLBS = Closing Basis *** | F34: Reinitiated $
A35: Dividend adjusted <> | F35: Revised stoploss #
A36: Part book {}
A37: Master Trade High Risk
A38: Sr.no | B38: Date | D38: Company | E38: Rec | F38: Rec Price | G38: Stop Loss | H38: Call Closed At | I38: Target | J38: Remark | K38: Profit / Loss per share | L38: Gain / Loss per Lot | M38: Lot | N38: Status | O38: Closed Date
A39: 1 | B39: 2018-11-30 | D39: KOTAKBANK DEC FUT | E39: Buy | F39: 1228-1231 | G39: 1195 | I39: 1270-1290 | J39: Open | R39: H
D40: KOTAKBANK DEC 1260 CE | E40: Sell | F40: 23-24 | R40: H
A41: 2 | B41: 2018-12-03 | D41: ADANIPORTS DEC FUT | E41: Sell | F41: 372.50-373.50 | G41: 382.5 | I41: 360 | J41: Open | R41: H
D42: ADANIPORTS DEC 360 PE | E42: Sell | F42: 8.5-9.50 | R42: H
A50: Master Trade Medium Risk
A51: Sr.no | B51: Date | D51: Company | E51: Rec | F51: Rec Price | G51: Stop Loss | H51: Call Closed At | I51: Target | J51: Remark | K51: Profit/ Loss per lot | L51: Gain / Loss per Lot | M51: Lot | N51: Status | O51: Closed Date
A52: 1 | B52: 2018-12-03 | D52: Nifty DEC 10900 PE | E52: Buy | F52: 180 | H52: 222.5 | J52: Profit of Rs 18.5/- | K52: =H52-F52 -> 42.5 | L52: =75*20 -> 1500 | M52: 75 | N52: Successful | O52: 2018-12-05 | R52: H
D53: Nifty DEC 10700 PE | E53: Sell | F53: 115 | H53: 139 | K53: =F53-H53 -> -24 | R53: H
A54: 2 | B54: 2018-12-04 | D54: ITC DEC 285 CE | E54: Buy | F54: 5.5-6 | J54: Open | R54: H
D55: ITC DEC 290 CE | E55: Sell | F55: 4-4.5 | R55: H
B68: Smart Delivery Trade
A69: Sr.no | B69: Date | D69: Company | E69: Rec | F69: Rec Price | G69: Stop Loss*** | H69: Call Closed At | I69: Target | J69: Remark | K69: Profit / Loss per Share | L69: Gain / Loss % | M69: Status | N69: Closed Date | O69: NSE Closed Price
A70: 1 | B70: 2018-11-27 | D70: MGL | E70: Buy | F70: 818.5 | G70: 793.7 | H70: 847.5 | I70: 860-870 | J70: Profit of Rs.29/- | K70: =H70-F70 -> 29 | L70: =K70/F70 -> 3.54% | M70: Successful | N70: 2018-12-03 | R70: R
A71: 2 | B71: 2018-11-28 | D71: ESCORTS | E71: Buy | F71: 691 | G71: 669 | H71: 716.5 | I71: 725-735 | J71: Profit of Rs.25.5/- | K71: =H71-F71 -> 25.5 | L71: =K71/F71 -> 3.69% | M71: Successful | N71: 2018-12-03 | R71: R
A72: 3 | B72: 2018-11-28 | D72: RELIANCE | E72: Sell | F72: 1152.5 | G72: 1186 | H72: 1152.5 | I72: 1100-1090 | J72: Neutral | K72: =F72-H72 -> 0 | L72: 0.00% | M72: Neautral | N72: 2018-12-05 | R72: H
A73: 4 | B73: 2018-11-30 | D73: BAJAJ-AUTO | E73: Buy | F73: 2755-2765 | G73: 2680 | I73: 2870-2900 | J73: Open | O73: =VLOOKUP(D73,Sheet2!A64:M1700,6,0) -> 2764.1 | R73: H
A74: 5 | B74: 2018-12-03 | D74: PVR | E74: Sell | F74: 1454 | G74: 1505 | H74: 1505 | I74: 1370-1350 | J74: Loss of Rs.51/- | K74: =F74-H74 -> -51 | L74: =K74/F74 -> -3.51% | M74: Unsuccessful | N74: 2018-12-03 | R74: H
A89: CLBS = Closing Basis *** | F89: Reinitiated $
A90: Dividend adjusted <> | F90: Revised stoploss #
B93: Momentum Call
A94: Sr.no | B94: Date | D94: Company | E94: Rec | F94: Rec Price | G94: Stop Loss | H94: Call Closed At | I94: Target | J94: Remark | K94: Profit / Loss per Share/Lot | L94: Gain / Loss % | M94: Gain / Loss per Lot | N94: Lot | O94: Status | P94: Closed Date
A95: 1 | B95: 2018-11-29 | D95: AMARAJABAT DEC FUT | E95: Buy | F95: 722-725 | G95: 705 | I95: 750 | J95: Open | R95: N
A96: 2 | B96: 2018-11-30 | D96: TATASTEEL | E96: Buy | F96: 534 | G96: 517 | H96: 549.5 | I96: 555-560 | J96: Profit of Rs.15.5/- | K96: =H96-F96 -> 15.5 | L96: =K96/F96 -> 2.90% | O96: Successful | P96: 2018-12-03 | R96: H
A97: 3 | B97: 2018-11-30 | D97: PIDILITIND DEC FUT | E97: Sell | F97: 1171 | G97: 1195 | H97: 1156.5 | I97: 1140-1130 | J97: Profit of Rs.14.5/- | K97: =F97-H97 -> 14.5 | M97: =N97*K97 -> 7250 | N97: 500 | O97: Successful | P97: 2018-12-03 | R97: H
A98: 4 | B98: 2018-12-03 | D98: UPL | E98: Buy | F98: 749 | G98: 737 | H98: 739.5 | I98: 774 | J98: Loss of Rs.9.5/- | K98: =H98-F98 -> -9.5 | M98: -11400 | N98: 1200 | O98: Unsuccessful | P98: 2018-12-03 | R98: N
A99: 5 | B99: 2018-12-03 | D99: ICICIBANK DEC FUT | E99: Sell | F99: 357.25 | G99: 362 | H99: 356 | I99: 348-346 | J99: Profit of Rs.1.25/- | K99: =F99-H99 -> 1.25 | M99: 3437.5 | N99: 2750 | O99: Successful | P99: 2018-12-05 | R99: H
A100: 6 | B100: 2018-12-04 | D100: DRREDDY DEC FUT | E100: Sell | F100: 2721 | G100: 2760 | H100: 2692 | I100: 2650 | J100: Profit of Rs.29/- | K100: =F100-H100 -> 29 | M100: =N100*K100 -> 7250 | N100: 250 | O100: Successful | P100: 2018-12-05 | R100: R
A101: 7 | B101: 2018-12-04 | D101: TCS DEC FUT | E101: Buy | F101: 2000-2010 | G101: 1945 | I101: 2080-2100 | J101: Open | R101: H
A102: 8 | B102: 2018-12-04 | D102: TATACHEM DEC FUT | E102: Buy | F102: 688 | G102: 673 | H102: 673 | I102: 710 | J102: Loss of Rs.15/- | K102: =H102-F102 -> -15 | M102: =N102*K102 -> -11250 | N102: 750 | O102: Unsuccessful | P102: 2018-12-05 | R102: N
A103: 9 | B103: 2018-12-04 | D103: AUROPHARMA DEC FUT | E103: Buy | F103: 824.5 | G103: 813 | H103: 813 | I103: 845-850 | J103: Loss of Rs.11.5/- | K103: =H103-F103 -> -11.5 | M103: =N103*K103 -> -11500 | N103: 1000 | O103: Unsuccessful | P103: 2018-12-05 | R103: H
A104: 10 | B104: 2018-12-05 | D104: DIVISLAB DEC FUT | E104: Sell | F104: 1507.5 | G104: 1532 | H104: 1486.5 | I104: 1460 | J104: Profit of Rs.21/- | K104: =F104-H104 -> 21 | M104: =N104*K104 -> 8400 | N104: 400 | O104: Successful | P104: 2018-12-05 | R104: R
A105: 11 | B105: 2018-12-05 | D105: PIDILITIND DEC FUT | E105: Sell | F105: 1170-1173 | G105: 1192 | I105: 1130 | J105: Open | R105: R
A121: CLBS = Closing Basis ***
A122: Dividend adjusted <> | F122: Reinitiated $
F123: Revised stoploss #
B124: Quick Pick Intraday
A125: Sr.no | B125: Date | D125: Company | E125: Rec | F125: Rec Price | G125: Stop Loss*** | H125: Call Closed At | I125: Target | J125: Remark | K125: Profit / Loss per Share | L125: Status | M125: Closed Date
A139: Techno -Funda (positional)
A140: Sr.no | B140: Date | D140: Company | E140: Rec | F140: Rec Price | G140: Stop Loss*** | H140: Call Closed At | I140: Target | J140: Remark | K140: Profit / Loss per Share | L140: Gain / Loss % | M140: Status | N140: Closed Date | O140: NSE Closed Price
A143: CLBS = Closing Basis *** | F143: Reinitiated $
A144: Dividend adjusted <> | F144: Revised stoploss #
B149: Investment Idea
A150: Sr.no | B150: Date | D150: Company | E150: Rec | F150: Rec Price | G150: Point of Review | H150: Close Rate | I150: Target | J150: Remark | K150: Profit / Loss per Share | L150: Gain / Loss % | M150: Status | N150: Closed Date
A151: 1 | B151: 2013-11-01 | D151: L&T Finance Holding | E151: Accu | F151: 82.00 | G151: - | H151: 100 | I151: 100.00 | J151: Target Achieved | K151: =H151-F151 -> 18.00 | L151: =K151/F151 -> 21.95% | M151: Successful | N151: 2016-10-14
A152: 2 | B152: 2014-06-04 | D152: Finolex Inds | E152: Buy | F152: 257.00 | G152: - | H152: 300 | I152: 300.00 | J152: Target Achieved | K152: =H152-F152 -> 43.00 | L152: 16.73% | M152: Successful | N152: 2014-07-02
A153: =1+A152 -> 3 | B153: 2014-07-08 | D153: JK Cement | E153: Buy | F153: 393.00 | G153: - | H153: 468 | I153: 468.00 | J153: Target Achieved | K153: =H153-F153 -> 75.00 | L153: 19.08% | M153: Successful | N153: 2014-08-12
A154: 4 | B154: 2014-08-06 | D154: Finolex Cables | E154: Buy | F154: 205.00 | G154: - | H154: 275 | I154: 250.00 | J154: Target Achieved | K154: 70.00 | L154: 34.15% | M154: Successful | N154: 2014-11-19
A155: 5 | B155: 2014-09-04 | D155: Exide Inds | E155: Buy | F155: 162.00 | G155: - | H155: 190 | I155: 190.00 | J155: Target Achieved | K155: 28.00 | L155: 17.28% | M155: Successful | N155: 2015-01-02
A156: 6 | B156: 2014-09-04 | D156: Deepak Nitrite | E156: Buy | F156: 75.00 | G156: - | H156: 91.5 | I156: 95-100 | J156: Profit of Rs.16.50/- | K156: 16.50 | L156: 22.00% | M156: Successful | N156: 2014-11-11
A157: 7 | B157: 2014-10-01 | D157: Mercks | E157: Buy | F157: 850.00 | G157: - | H157: 982.5 | I157: 1050.00 | J157: Profit of Rs.132.50/- | K157: 132.50 | L157: 15.59% | M157: Successful | N157: 2015-02-04
A158: 8 | B158: 2014-10-01 | D158: Grindwell Norton | E158: Buy | F158: 475.00 | G158: - | H158: 515 | I158: 600.00 | J158: Profit of Rs.40/- | K158: 40.00 | L158: 8.42% | M158: Successful | N158: 2014-10-27
A159: 9 | B159: 2014-10-01 | D159: Snowman Logistics | E159: Buy | F159: 86.00 | G159: - | H159: 99 | I159: 140.00 | J159: Profit of Rs.13.00/- | K159: 13.00 | L159: 15.12% | M159: Successful | N159: 2014-10-27
A160: 10 | B160: 2014-10-14 | D160: Birla Corp | E160: Buy | F160: 496.60 | G160: - | H160: 621 | I160: 580.00 | J160: Target Achieved | K160: 124.40 | L160: 25.05% | M160: Successful | N160: 2016-08-23
A161: 11 | B161: 2014-10-14 | D161: Ultratech Cem | E161: Buy | F161: 2481.90 | G161: - | H161: 2840 | I161: 2870.00 | J161: Profit of Rs.358.10/- | K161: 358.10 | L161: 14.43% | M161: Successful | N161: 2015-01-13
A162: =1+A159 -> 10 | B162: 2014-10-16 | D162: Sintex Inds | E162: Buy | F162: 84.50 | G162: - | H162: 93 | I162: 110.00 | J162: Profit of Rs.8.50/- | K162: 8.50 | L162: 10.06% | M162: Successful | N162: 2014-10-27
A163: =1+A162 -> 11 | B163: 2014-10-16 | D163: HSIL | E163: Buy | F163: 401.00 | G163: - | H163: 428 | I163: 450.00 | J163: Profit of Rs.27.00/- | K163: 27.00 | L163: 6.73% | M163: Successful | N163: 2015-01-16
A164: 12 | B164: 2014-10-16 | D164: Eveready Inds | E164: Buy | F164: 101.00 | G164: - | H164: 112 | I164: 120.00 | J164: Profit of Rs.11.00/- | K164: 11.00 | L164: 10.89% | M164: Successful | N164: 2014-10-27
A165: 13 | B165: 2014-11-11 | D165: Pennar Inds | E165: Buy | F165: 59.00 | G165: - | H165: 76 | I165: 76.00 | J165: Target Achieved | K165: 17.00 | L165: 28.81% | M165: Successful | N165: 2017-10-24
A166: 14 | B166: 2014-11-11 | D166: Snowman Logistics | E166: Buy | F166: 99.00 | G166: - | H166: 120 | I166: 120.00 | J166: Profit of Rs.21/- | K166: 21.00 | L166: 21.21% | M166: Successful | N166: 2014-11-17
A167: 15 | B167: 2014-11-13 | D167: Dharamsi Morarji Chem | E167: Buy | F167: 22.00 | G167: - | H167: 33.55 | I167: 32.00 | J167: Profit of Rs 11.55/- | K167: 11.55 | L167: 52.50% | M167: Successful | N167: 2015-07-03
A168: 16 | B168: 2014-12-03 | D168: Tatachem | E168: Buy | F168: 440.00 | G168: - | H168: 520 | I168: 520.00 | J168: Profit of Rs 80.00/- | K168: 80.00 | L168: 18.18% | M168: Successful | N168: 2015-07-23
A169: 17 | B169: 2014-12-03 | D169: Advanta | E169: Buy | F169: 360.00 | G169: - | H169: 427 | I169: 425.00 | J169: Profit of Rs.67.00/- | K169: 67.00 | L169: 18.61% | M169: Successful | N169: 2015-02-23
A170: 18 | B170: 2015-01-08 | D170: GDL | E170: Buy | F170: 360.00 | G170: - | H170: 455 | I170: 420.00 | J170: Profit of Rs.95.00/- | K170: 95.00 | L170: 26.39% | M170: Successful | N170: 2015-01-20
A171: 19 | B171: 2015-01-08 | D171: NRB Bearing | E171: Buy | F171: 130.00 | H171: 175.5 | I171: 165.00 | J171: Profit of Rs 45.50/- | K171: 45.50 | L171: 35.00% | M171: Successful | N171: 2017-12-19
A172: 20 | B172: 2015-02-05 | D172: GSFC | E172: Accu | F172: 98.00 | H172: 120 | I172: 120.00 | J172: Target Achieved | K172: 22.00 | L172: 22.45% | M172: Successful | N172: 2017-01-18
A173: 21 | B173: 2015-02-05 | D173: Sundrmfast | E173: Accu | F173: 196.00 | H173: 262 | I173: 255.00 | J173: Target Achieved | K173: 66.00 | L173: 33.67% | M173: Successful | N173: 2016-08-17
A174: 22 | B174: 2015-03-04 | D174: GPPL | E174: Accu | F174: 230-240 | I174: 280-285 | J174: Open
A175: 23 | B175: 2015-03-04 | D175: ORIENTCEM | E175: Accu | F175: 185.00 | H175: 224 | I175: 220-225 | J175: Target Achieved | K175: 39.00 | L175: =K175/F175 -> 21.08% | M175: Successful | N175: 2016-10-04
A176: 24 | B176: 2015-03-27 | D176: PFS | E176: Accu | F176: 49-50 | I176: 67.00 | J176: Open
A177: 25 | B177: 2015-03-30 | D177: Walchandnagar Ind Ltd | E177: Accu | F177: 183.50 | H177: 219 | I177: 218.00 | J177: Profit of Rs.35.50/- | K177: 35.50 | L177: =K177/F177 -> 19.35% | M177: Successful | N177: 2015-04-09
A178: 26 | B178: 2015-04-20 | D178: Kalpataru Power Transmission Ltd | E178: Accu | F178: =(227+237)/2 -> 232.00 | H178: 298 | I178: 298.00 | J178: Target Achieved | K178: 66.00 | L178: 28.45% | M178: Successful | N178: 2017-03-29
A179: 27 | B179: 2015-05-04 | D179: Mastek Ltd | E179: Buy | F179: 385.00 | H179: =212.5+331 -> 543.5 | I179: 510.00 | J179: Profit of Rs 158.50/- | K179: 158.50 | L179: 41.17% | M179: Successful | N179: 2015-08-19
A180: 28 | B180: 2015-05-04 | D180: Suprajit Eng | E180: Buy | F180: 115.50 | H180: 146 | I180: 142.00 | J180: Profit of Rs 30.50/- | K180: 30.50 | L180: 26.41% | M180: Successful | N180: 2015-07-17
A181: 29 | B181: 2015-05-27 | D181: TCI | E181: Buy | F181: 237.50 | H181: 279.5 | I181: 278.00 | J181: Target Achieved | K181: 42.00 | L181: 17.68% | M181: Successful | N181: 2015-08-06
A182: 30 | B182: 2015-06-19 | D182: HSIL | E182: Accu | F182: 340.00 | H182: 448 | I182: 448.00 | J182: Target Achieved | K182: 108.00 | L182: 31.76% | M182: Successful | N182: 2017-10-10
A183: 31 | B183: 2015-07-06 | D183: Capital First | E183: Accu | F183: 390.00 | H183: 460 | I183: 460.00 | J183: Target Achieved | K183: 70.00 | L183: 17.95% | M183: Successful | N183: 2016-04-18
A184: 32 | B184: 2015-07-10 | D184: Dolphin OffShore | E184: Accu | F184: 122.5 | H184: 61.00 | I184: 172.00 | J184: Loss of Rs.61.50/- | K184: -61.50 | L184: -50.20% | M184: Unsuccessful | N184: 2018-08-21
A185: 33 | B185: 2015-08-03 | D185: Allcargo logistics | E185: Accu | F185: 297.50 | H185: 350 | I185: 360.00 | J185: Profit of Rs 52.50/- | K185: 52.50 | L185: =K185/F185 -> 17.65% | M185: Successful | N185: 2015-08-16
A186: 34 | B186: 2015-08-03 | D186: Camline Fine | E186: Accu | F186: 115.50 | H186: 149 | I186: 140.00 | J186: Profit of Rs 33.50/- | K186: 33.50 | L186: 29.00% | M186: Successful | N186: 2017-01-05
A187: 35 | B187: 2015-09-04 | D187: TCI | E187: Accu | F187: 226.00 | H187: 292 | I187: 292.00 | J187: Target Achieved | K187: 66.00 | L187: 29.20% | M187: Successful | N187: 2015-10-09
A188: 36 | B188: 2015-09-07 | D188: Kalpataru Power Transmission Ltd | E188: Accu | F188: 232.50 | H188: 312.5 | I188: 310.00 | J188: Target Achieved | K188: 80.00 | L188: 34.41% | M188: Successful | N188: 2017-03-29
A189: 37 | B189: 2015-09-21 | D189: LLOYD ELECTRIC & ENG LTD | E189: Accu | F189: 196.50 | H189: 238 | I189: 238.00 | J189: Target Achieved | K189: 41.50 | L189: 21.12% | M189: Successful | N189: 2015-10-14
A190: 38 | B190: 2015-09-24 | D190: L&T Finance Holding | E190: Accu | F190: 65.00 | H190: 82 | I190: 82.00 | J190: Target Achieved | K190: 17.00 | L190: 26.15% | M190: Successful | N190: 2016-07-27
A191: 39 | B191: 2015-10-14 | D191: KEC International ltd | E191: Accu | F191: 144.00 | H191: 182.5 | I191: 181.00 | J191: Target Achieved | K191: 38.50 | L191: 26.74% | M191: Successful | N191: 2017-03-23
A192: 40 | B192: 2015-10-14 | D192: Gruh Finance | E192: Accu | F192: 264.00 | H192: 311 | I192: 311.00 | J192: Target Achieved | K192: 47.00 | L192: 17.80% | M192: Successful | N192: 2016-08-22
A193: 41 | B193: 2015-11-10 | D193: Pidilitind | E193: Buy | F193: 549.50 | H193: 630 | I193: 630.00 | J193: Target Achieved | K193: 80.50 | L193: 14.65% | M193: Successful | N193: 2016-02-19
A194: 42 | B194: 2015-12-04 | D194: Zensar Technology | E194: Accu | F194: 1027.50 | H194: 1315 | I194: 1250.00 | J194: Target Achieved | K194: =H194-F194 -> 287.50 | L194: 27.98% | M194: Successful | N194: 2018-05-24
A195: 43 | B195: 2015-12-29 | D195: Vinati Organics Ltd | E195: Accu | F195: 465.00 | H195: 540 | I195: 540.00 | J195: Target Achieved | K195: 75.00 | L195: =K195/F195 -> 16.13% | M195: Successful | N195: 2016-06-09
A196: 44 | B196: 2016-01-11 | D196: GSFC | E196: Buy | F196: 81.00 | H196: 110 | I196: 110.00 | J196: Target Achieved | K196: 29.00 | L196: 35.80% | M196: Successful | N196: 2017-01-10
A197: 45 | B197: 2016-01-13 | D197: SSWL | E197: Buy | F197: 417.50 | H197: 547 | I197: 535.00 | J197: Target Achieved | K197: 129.50 | L197: 31.02% | M197: Successful | N197: 2016-07-27
A198: 46 | B198: 2016-02-08 | D198: Persistent System Ltd | E198: Accu | F198: 650.00 | H198: 800 | I198: 800.00 | J198: Target Achieved | K198: 150.00 | L198: 23.08% | M198: Successful | N198: 2018-02-23
A199: 47 | B199: 2016-03-04 | D199: UPL | E199: Accu | F199: 437.50 | H199: 504.5 | I199: 522.00 | J199: Profit of Rs.67/- | K199: 67.00 | L199: 15.31% | M199: Successful | N199: 2016-04-20
A200: 48 | B200: 2016-03-09 | D200: Ashoka Buildcon Ltd | E200: Accu | F200: 189.50 | H200: 218 | I200: 218.00 | J200: Target Achieved | K200: 28.50 | L200: 15.04% | M200: Successful | N200: 2017-10-26
A201: 49 | B201: 2016-04-11 | D201: PTC INDIA FIN SERV LTD | E201: Accu | F201: 36-37 | I201: 60.00 | J201: Open
A202: 50 | B202: 2016-04-12 | D202: CAMLINFINE $ | E202: Accu | F202: 93.00 | H202: 149 | I202: 140.00 | J202: Profit of Rs 56/- | K202: 56.00 | L202: =K202/F202 -> 60.22% | M202: Successful | N202: 2017-01-05
A203: 51 | B203: 2016-04-12 | D203: Greaves Cotton Ltd. | E203: Accu | F203: 130.00 | H203: 150 | I203: 150-155 | J203: Target Achieved | K203: 20.00 | L203: 15.38% | M203: Successful | N203: 2016-07-13
A204: 52 | B204: 2016-04-13 | D204: DHFL | E204: Accu | F204: 196.00 | H204: 299 | I204: 299.00 | J204: Target Achieved | K204: 103.00 | L204: 52.55% | M204: Successful | N204: 2016-09-07
A205: 53 | B205: 2016-04-13 | D205: Magma | E205: Accu | F205: 88.00 | H205: 103 | I205: 103.00 | J205: Target Achieved | K205: 15.00 | L205: 17.05% | M205: Successful | N205: 2016-06-09
A206: 54 | B206: 2016-05-02 | D206: KEC International ltd $ | E206: Accu | F206: 127.50 | H206: 148 | I206: 148-150 | J206: Target Achieved | K206: 20.50 | L206: 16.08% | M206: Successful | N206: 2016-07-13
A207: 55 | B207: 2016-05-03 | D207: Mindtree | E207: Accu | F207: 675.00 | H207: 815 | I207: 790-800 | J207: Target Achieved | K207: 140.00 | L207: 20.74% | M207: Successful | N207: 2018-02-23
A208: 56 | B208: 2016-06-01 | D208: Atulauto | E208: Accu | F208: 495-505 | I208: 565-570 | J208: Open
A209: 57 | B209: 2016-06-06 | D209: TRITURBINE | E209: Accu | F209: 110.00 | H209: 126.5 | I209: 125.00 | J209: Profit of Rs.16.50/- | K209: 16.50 | L209: =K209/F209 -> 15.00% | M209: Successful | N209: 2016-07-01
A210: 58 | B210: 2016-06-17 | D210: Pennar Industries Ltd | E210: Accu | F210: 44.00 | H210: 69.5 | I210: 69.50 | J210: Profit of Rs.25.50/- | K210: 25.50 | L210: =K210/F210 -> 57.95% | M210: Successful | N210: 2017-08-30
A211: 59 | B211: 2016-06-28 | D211: EVEREADY INDS. IND. LTD. | E211: Accu | F211: 262.50 | H211: 340 | I211: 333.00 | J211: Profit of Rs.77.50/- | K211: 77.50 | L211: =K211/F211 -> 29.52% | M211: Successful | N211: 2017-10-09
A212: 60 | B212: 2016-06-28 | D212: FIEM INDUSTRIES LIMITED | E212: Accu | F212: 840.00 | H212: 1230 | I212: 1230.00 | J212: Target Achieved | K212: 390.00 | L212: =K212/F212 -> 46.43% | M212: Successful | N212: 2016-10-06
A213: 61 | B213: 2016-07-05 | D213: Bajaj Corp Ltd | E213: Accu | F213: 395 | H213: 468.50 | I213: 510.00 | J213: Part profit of Rs.73.50/- | K213: 73.50 | L213: =K213/F213 -> 19% | M213: Successful | N213: 2017-08-30
A214: 62 | B214: 2016-08-02 | D214: GPPL $ | E214: Buy | F214: 167-172 | I214: 198-200 | J214: Open
A215: 63 | B215: 2016-08-04 | D215: WONDERLA HOLIDAYS LTD | E215: Accu | F215: 395-405 | I215: 475.00 | J215: Open
A216: 64 | B216: 2016-08-11 | D216: CAMLINFINE | E216: Accu | F216: 86.50 | H216: 130 | I216: 130.00 | J216: Profit of Rs.43.50/- | K216: =H216-F216 -> 43.50 | L216: =K216/F216 -> 50.29% | M216: Successful | N216: 2017-12-22
A217: 65 | B217: 2016-08-18 | D217: GRANULES | E217: Accu | F217: 133.5 | H217: 126.50 | I217: 178.00 | J217: Exit | K217: -7.00 | L217: -5.24% | M217: Unsuccessful | N217: 2016-09-02
A218: 66 | B218: 2016-08-31 | D218: VA TECH WABAG | E218: Accu | F218: 560.00 | H218: 725 | I218: 725.00 | J218: Target Achieved | K218: 165.00 | L218: 29.46% | M218: Successful | N218: 2016-03-27
A219: 67 | B219: 2016-09-01 | D219: SKIPPER LIMITED | E219: Accu | F219: 160.50 | H219: 210 | I219: 210.00 | J219: Target Achieved | K219: 49.50 | L219: 30.84% | M219: Successful | N219: 2017-05-16
A220: 68 | B220: 2016-10-03 | D220: IFB Industries | E220: Accu | F220: 430.00 | H220: 596 | I220: 575.00 | J220: Profit of Rs.166/- | K220: 166.00 | L220: 38.60% | M220: Successful | N220: 2017-02-03
A221: 69 | B221: 2016-10-14 | D221: ASIANTILES | E221: Accu | F221: 280.00 | H221: 345 | I221: 345.00 | J221: Target Achieved | K221: 65.00 | L221: 23.21% | M221: Successful | N221: 2017-03-20
A222: 70 | B222: 2016-10-14 | D222: DEEPIND | E222: Accu | F222: 245.00 | H222: 325.5 | I222: 330.00 | J222: Profit of Rs.80.5/- | K222: 80.50 | L222: 32.86% | M222: Successful | N222: 2017-02-03
A223: 71 | B223: 2016-10-17 | D223: DCBBANK | E223: Accu | F223: 125.00 | H223: 160 | I223: 160.00 | J223: Target Achieved | K223: 35.00 | L223: 28.00% | M223: Successful | N223: 2017-03-09
A224: 72 | B224: 2016-10-17 | D224: ORIENTREF | E224: Accu | F224: 114.00 | H224: 145 | I224: 145.00 | J224: Target Achieved | K224: 31.00 | L224: =K224/F224 -> 27.19% | M224: Successful | N224: 2017-05-04
A225: 73 | B225: 2016-10-17 | D225: GANECOS | E225: Accu | F225: 212.00 | H225: 280 | I225: 276.00 | J225: Profit of Rs.68/- | K225: 68.00 | L225: =K225/F225 -> 32.08% | M225: Successful | N225: 2017-05-03
A226: 74 | B226: 2016-11-04 | D226: NBCC | E226: Accu | F226: 155.00 | H226: 210 | I226: 210.00 | J226: Profit of Rs.55/- | K226: 55.00 | L226: =K226/F226 -> 35.48% | M226: Successful | N226: 2017-07-28
A227: 75 | B227: 2016-12-06 | D227: PRECAM | E227: Accu | F227: 150.5 | H227: 72.50 | I227: 174.00 | J227: Loss of Rs.78/- | K227: -78.00 | L227: =K227/F227 -> -51.83% | M227: Unsuccessful | N227: 2018-08-21
A228: 76 | B228: 2016-12-08 | D228: INFRATEL | E228: Accu | F228: 380.00 | H228: 478 | I228: 468.00 | J228: Target Achieved | K228: 98.00 | L228: =K228/F228 -> 25.79% | M228: Successful | N228: 2017-10-17
A229: 77 | B229: 2016-12-30 | D229: GODREJPROP | E229: Accu | F229: 305.00 | H229: 375 | I229: 375.00 | J229: Target Achieved | K229: 70.00 | L229: 22.95% | M229: Successful | N229: 2017-02-02
A230: 78 | B230: 2017-01-04 | D230: DEEPAKNTR | E230: Accu | F230: 99.50 | H230: 158 | I230: 158.00 | J230: Target Achieved | K230: 58.50 | L230: 58.79% | M230: Successful | N230: 2017-06-12
A231: 79 | B231: 2017-02-20 | D231: SUBROS | E231: Accu | F231: 202.50 | H231: 234 | I231: 234.00 | J231: Target Achieved | K231: 31.50 | L231: 15.56% | M231: Successful | N231: 2017-04-11
A232: 80 | B232: 2017-02-20 | D232: RECLTD | E232: Accu | F232: 140.50 | H232: 220 | I232: 220.00 | J232: Target Achieved | K232: 79.50 | L232: 56.58% | M232: Successful | N232: 2017-05-09
A233: 81 | B233: 2017-03-24 | D233: VRLLOG | E233: Accu | F233: 300.50 | H233: 417.5 | I233: 420.00 | J233: Profit of Rs.117/- | K233: 117.00 | L233: 38.94% | M233: Successful | N233: 2017-12-01
A234: 82 | B234: 2017-03-24 | D234: FIEMIND | E234: Accu | F234: 850.00 | H234: 1042.5 | I234: 1023.00 | J234: Profit of Rs 192.50/- | K234: 192.50 | L234: 22.65% | M234: Successful | N234: 2017-04-05
A235: 83 | B235: 2017-04-05 | D235: RATNAMANI | E235: Accu | F235: 785.00 | H235: 930 | I235: 920.00 | J235: Profit of Rs.145/- | K235: 145.00 | L235: 18.47% | M235: Successful | N235: 2017-08-29
A236: 84 | B236: 2017-04-06 | D236: ZEEMEDIA | E236: Accu | F236: 39-41 | I236: 60.00 | J236: Open
A237: 85 | B237: 2017-04-12 | D237: DABUR | E237: Accu | F237: 289.50 | H237: 354 | I237: 360.00 | J237: Profit of Rs.64.5/- | K237: 64.50 | L237: =K237/F237 -> 22.28% | M237: Successful | N237: 2017-11-01
A238: 86 | B238: 2017-04-20 | D238: KPRMILL | E238: Accu | F238: 700.00 | H238: 840 | I238: 840.00 | J238: Profit of Rs.140/- | K238: 140.00 | L238: =K238/F238 -> 20.00% | M238: Successful | N238: 2017-06-07
A239: 87 | B239: 2017-05-22 | D239: GREAVESCOT | E239: Accu | F239: 153-158 | I239: 190.00 | J239: Open
A240: 88 | B240: 2017-06-01 | D240: ESSELPACK | E240: Accu | F240: 260 | H240: 311.00 | I240: 340.00 | J240: Part profit of Rs.51/- | K240: =H240-F240 -> 51.00 | L240: =K240/F240 -> 20% | M240: Successful | N240: 2017-11-17
A241: 89 | B241: 2017-06-15 | D241: KEI | E241: Accu | F241: 214.50 | H241: 262 | I241: 262.00 | J241: Profit of Rs.47.5/- | K241: =H241-F241 -> 47.50 | L241: 22.14% | M241: Successful | N241: 2017-08-30
A242: 90 | B242: 2017-07-17 | D242: MAYURUNIQ | E242: Accu | F242: 370.00 | H242: 447.5 | I242: 450.00 | J242: Target Achieved | K242: 77.50 | L242: 20.95% | M242: Successful | N242: 2017-10-27
A243: 91 | B243: 2017-07-27 | D243: RAMCOCEM | E243: Accu | F243: 657.50 | H243: 825 | I243: 820.00 | J243: Target Achieved | K243: 167.50 | L243: 25.48% | M243: Successful | N243: 2017-12-21
A244: 92 | B244: 2017-08-17 | D244: FINPIPE | E244: Accu | F244: 605.00 | H244: 750 | I244: 750.00 | J244: Profit of Rs.145/- | K244: 145.00 | L244: 23.97% | M244: Successful | N244: 2017-10-19
A245: 93 | B245: 2017-09-01 | D245: SHK | E245: Accu | F245: 255 | H245: 307.50 | I245: 320.00 | J245: Part profit of Rs.52.5/- | K245: 52.50 | L245: 21% | M245: Successful | N245: 2017-12-29
A246: 94 | B246: 2017-09-19 | D246: SKIPPER | E246: Accu | F246: 215.00 | H246: 258 | I246: 258.00 | J246: Target Achieved | K246: 43.00 | L246: 20.00% | M246: Successful | N246: 2017-11-01
A247: 95 | B247: 2017-09-20 | D247: CAMLINFINE | E247: Accu | F247: 75.00 | H247: 90 | I247: 90.00 | J247: Profit of Rs.15.00/- | K247: 15.00 | L247: 20.00% | M247: Successful | N247: 2017-10-11
A248: 96 | B248: 2017-10-03 | D248: GNA | E248: Accu | F248: 315.00 | H248: 392 | I248: 384.00 | J248: Profit of Rs.77/- | K248: 77.00 | L248: 24.44% | M248: Successful | N248: 2017-10-09
A249: 97 | B249: 2017-10-05 | D249: NOCIL | E249: Accu | F249: 145.00 | H249: 179 | I249: 180.00 | J249: Profit of Rs.34/- | K249: 34.00 | L249: 23.45% | M249: Successful | N249: 2017-10-17
A250: 98 | B250: 2017-10-06 | D250: CENTURYPLY | E250: Accu | F250: 256.00 | H250: 323 | I250: 320.00 | J250: Target Achieved | K250: 67.00 | L250: 26.17% | M250: Successful | N250: 2017-11-28
A251: 99 | B251: 2017-10-09 | D251: RECLTD | E251: Accu | F251: 152.5 | H251: 183.50 | I251: 210.00 | J251: Part Profit of Rs.31/- | K251: 31.00 | L251: 20% | M251: Successful | N251: 2017-11-03
A252: 100 | B252: 2017-10-09 | D252: EIHOTEL | E252: Accu | F252: 137.50 | H252: 184 | I252: 183.00 | J252: Profit of Rs.46.5/- | K252: 46.50 | L252: 33.82% | M252: Successful | N252: 2018-01-08
A253: 101 | B253: 2017-10-10 | D253: BOROSIL | E253: Accu | F253: 895.00 | H253: 1122.5 | I253: 1078.00 | J253: Profit of Rs.227.5/- | K253: 227.50 | L253: 25.42% | M253: Successful | N253: 2018-01-17
A254: 102 | B254: 2017-10-10 | D254: NRBBEARING | E254: Accu | F254: 125.50 | H254: 158 | I254: 155.00 | J254: Profit of Rs.32.5/- | K254: 32.50 | L254: 25.90% | M254: Successful | N254: 2017-11-28
A255: 103 | B255: 2017-10-12 | D255: CYIENT | E255: Accu | F255: 525.00 | H255: 629 | I255: 629.00 | J255: Target Achieved | K255: 104.00 | L255: 19.81% | M255: Successful | N255: 2018-01-19
A256: 104 | B256: 2017-11-07 | D256: HATSUN | E256: Accu | F256: 740.00 | H256: 892.5 | I256: 900.00 | J256: Profit of Rs.152.5/- | K256: 152.50 | L256: 20.61% | M256: Successful | N256: 2017-11-13
A257: 105 | B257: 2017-12-04 | D257: SANGHIIND | E257: Accu | F257: 118.50 | H257: 143.5 | I257: 145.00 | J257: Profit of Rs.25/- | K257: 25.00 | L257: 21.10% | M257: Successful | N257: 2017-12-28
A258: 106 | B258: 2017-12-05 | D258: ALLCARGO | E258: Accu | F258: 177.5 | H258: 215.00 | I258: 230.00 | J258: Part Profit of Rs.37.5/- | K258: 37.50 | L258: 21% | M258: Successful | N258: 2017-12-27
A259: 107 | B259: 2017-12-21 | D259: KAJARIACER | E259: Accu | F259: 710-720 | I259: 872.00 | J259: Open
A260: 108 | B260: 2017-12-29 | D260: GNA | E260: Accu | F260: 435.00 | H260: 542.5 | I260: 539.00 | J260: Target Achieved | K260: =H260-F260 -> 107.50 | L260: =K260/F260 -> 24.71% | M260: Successful | N260: 2018-04-16
A261: 109 | B261: 2017-12-29 | D261: ZENSARTECH | E261: Accu | F261: 885.00 | H261: 1090 | I261: 1084.00 | J261: Target Achieved | K261: 205.00 | L261: =K261/F261 -> 23.16% | M261: Successful | N261: 2018-04-23
A262: 110 | B262: 2018-02-07 | D262: GREAVESCOT | E262: Accu | F262: 130-132 | I262: 190.00 | J262: Open
A263: 111 | B263: 2018-02-27 | D263: MOLDTKPAC | E263: Accu | F263: 320-330 | I263: 398.00 | J263: Open
A264: 112 | B264: 2018-03-05 | D264: LICHSGFIN | E264: Accu | F264: 505-515 | I264: 672.00 | J264: Open
A265: 113 | B265: 2018-04-02 | D265: EVERESTIND | E265: Accu | F265: 492.5 | H265: 589.00 | I265: 613.00 | J265: Part Profit of Rs.37.5/- | K265: =H265-F265 -> 96.50 | L265: =K265/F265 -> 20% | M265: Successful | N265: 2018-08-21
A266: 114 | B266: 2018-04-04 | D266: GPPL | E266: Accu | F266: 140-143 | I266: 180.00 | J266: Open
A267: 115 | B267: 2018-04-19 | D267: MANPASAND | E267: Accu | F267: 430 | H267: 220.00 | I267: 537.00 | J267: Loss of Rs.210/- | K267: =H267-F267 -> -210.00 | L267: =K267/F267 -> -48.84% | M267: Unsuccessful | N267: 2018-06-01
A268: 116 | B268: 2018-04-30 | D268: HEIDELBERG | E268: Accu | F268: 154-158 | I268: 196.00 | J268: Open
A269: 117 | B269: 2018-05-17 | D269: PHILIPCARB | E269: Accu | F269: 230-240 | I269: 348.00 | J269: Open
A270: 118 | B270: 2018-06-07 | D270: KEC | E270: Accu | F270: 340-345 | I270: 439.00 | J270: Open
A271: 119 | B271: 2018-07-04 | D271: ASHOKLEY | E271: Accu | F271: 125-130 | I271: 170.00 | J271: Open
A272: 120 | B272: 2018-07-13 | D272: FCONSUMER | E272: Accu | F272: 46-47 | I272: 59.00 | J272: Open
A273: 121 | B273: 2018-07-25 | D273: ZEEMEDIA | E273: Accu | F273: 27-28 | I273: 44.00 | J273: Open
A274: 122 | B274: 2018-08-06 | D274: GABRIEL | E274: Accu | F274: 148-152 | I274: 182.00 | J274: Open
A275: 123 | B275: 2018-08-23 | D275: INDIANHUME | E275: Accu | F275: 280-290 | I275: 364.00 | J275: Open
A276: 124 | B276: 2018-08-29 | D276: GRINDWELL | E276: Accu | F276: 520-530 | I276: 635.00 | J276: Open
A277: 125 | B277: 2018-10-22 | D277: FINPIPE | E277: Accu | F277: 475.00 | H277: 574 | I277: 570.00 | J277: Target Achieved | K277: =H277-F277 -> 99.00 | L277: =K277/F277 -> 20.84% | M277: Successful | N277: 2018-10-30
A278: 126 | B278: 2018-10-23 | D278: JKPAPER | E278: Accu | F278: 158-162 | I278: 191.00 | J278: Open
A279: 127 | B279: 2018-10-24 | D279: GULFOILLUB | E279: Accu | F279: 700-715 | I279: 872.00 | J279: Open
A280: 128 | B280: 2018-10-25 | D280: GODREJCP | E280: Accu | F280: 700-715 | I280: 890.00 | J280: Open
A281: 129 | B281: 2018-10-25 | D281: DBCORP | E281: Accu | F281: 161-167 | I281: 209.00 | J281: Open
A282: 130 | B282: 2018-10-26 | D282: RITES | E282: Accu | F282: 240.00 | H282: 297 | I282: 297.00 | J282: Target Achieved | K282: =H282-F282 -> 57.00 | L282: =K282/F282 -> 23.75% | M282: Successful | N282: 2018-11-13
A283: 131 | B283: 2018-12-05 | D283: CCL | E283: Accu | F283: 260-270 | I283: 321.00 | J283: Open
A284: 132 | B284: 2018-12-05 | D284: VARROC | E284: Accu | F284: 710-720 | I284: 840.00 | J284: Open
A285: 133 | B285: 2018-12-05 | D285: BRIGADE | E285: Accu | F285: 197-208 | I285: 252.00 | J285: Open
F292: Reinitiated $
A294: Disclaimer:
A295: This document has been prepared by the Retail Research Desk of Asit C Mehta
A296: Investment Intermediates Ltd. and is meant for use of the recipient only
A297: and is not for circulation. This document is not to be reported or
A298: copied or made available to others. It should not be considered to be
A299: taken as an offer to sell or a solicitation to buy any security. The
... 4 more rows

Sheet Sheet2 (hidden)
A1: SYMBOL | B1: SERIES | C1: OPEN | D1: HIGH | E1: LOW | F1: CLOSE | G1: LAST | H1: PREVCLOSE | I1: TOTTRDQTY | J1: TOTTRDVAL | K1: TIMESTAMP | L1: TOTALTRADES | M1: ISIN | N1: ISIN
A2: 20MICRONS | B2: EQ | C2: 42.35 | D2: 43.35 | E2: 42 | F2: 42.05 | G2: 42 | H2: 42.35 | I2: 26485 | J2: 1125627.6 | K2: 2018-12-05 | L2: 359 | M2: INE144J01027
A3: 21STCENMGM | B3: EQ | C3: 23.7 | D3: 23.7 | E3: 23.05 | F3: 23.7 | G3: 23.7 | H3: 23.25 | I3: 11442 | J3: 270854.4 | K3: 2018-12-05 | L3: 30 | M3: INE253B01015
A4: 3IINFOTECH | B4: EQ | C4: 3.8 | D4: 3.85 | E4: 3.75 | F4: 3.75 | G4: 3.75 | H4: 3.8 | I4: 1509036 | J4: 5699668.25 | K4: 2018-12-05 | L4: 605 | M4: INE748C01020
A5: 3MINDIA | B5: EQ | C5: 22463 | D5: 22550 | E5: 22100 | F5: 22167.05 | G5: 22100 | H5: 22460.4 | I5: 1359 | J5: 30406523.75 | K5: 2018-12-05 | L5: 515 | M5: INE470A01017
A6: 5PAISA | B6: EQ | C6: 199.9 | D6: 199.9 | E6: 190 | F6: 190.55 | G6: 190 | H6: 192 | I6: 1302 | J6: 250060.4 | K6: 2018-12-05 | L6: 106 | M6: INE618L01018
A7: 63MOONS | B7: EQ | C7: 95.25 | D7: 101.7 | E7: 95.25 | F7: 97.15 | G7: 96.95 | H7: 97.7 | I7: 485827 | J7: 47940657.15 | K7: 2018-12-05 | L7: 8730 | M7: INE111B01023
A8: 8KMILES | B8: EQ | C8: 206 | D8: 206 | E8: 192.55 | F8: 192.55 | G8: 192.55 | H8: 202.65 | I8: 535995 | J8: 106718101.4 | K8: 2018-12-05 | L8: 5326 | M8: INE650K01021
A9: A2ZINFRA | B9: EQ | C9: 12.4 | D9: 12.75 | E9: 12.05 | F9: 12.6 | G9: 12.7 | H9: 12.75 | I9: 266701 | J9: 3299696.45 | K9: 2018-12-05 | L9: 768 | M9: INE619I01012
A10: AARTIDRUGS | B10: EQ | C10: 561.7 | D10: 563.45 | E10: 554.2 | F10: 560.6 | G10: 561 | H10: 565.1 | I10: 21949 | J10: 12264553.7 | K10: 2018-12-05 | L10: 1449 | M10: INE767A01016
A11: AARTIIND | B11: EQ | C11: 1454 | D11: 1472.9 | E11: 1450.9 | F11: 1466 | G11: 1470 | H11: 1468.4 | I11: 108730 | J11: 158601130.9 | K11: 2018-12-05 | L11: 5799 | M11: INE769A01020
A12: AARVEEDEN | B12: EQ | C12: 24.6 | D12: 25.35 | E12: 24.05 | F12: 24.8 | G12: 24.85 | H12: 24.6 | I12: 5443 | J12: 133838.85 | K12: 2018-12-05 | L12: 57 | M12: INE273D01019
A13: AAVAS | B13: EQ | C13: 764.05 | D13: 799.8 | E13: 761 | F13: 776.05 | G13: 777 | H13: 771.2 | I13: 14960 | J13: 11723511.35 | K13: 2018-12-05 | L13: 2295 | M13: INE216P01012
A14: ABAN | B14: EQ | C14: 75 | D14: 76.7 | E14: 72.6 | F14: 73.6 | G14: 74 | H14: 75.75 | I14: 295586 | J14: 21913510 | K14: 2018-12-05 | L14: 3666 | M14: INE421A01028
A15: ABB | B15: EQ | C15: 1381.95 | D15: 1382.15 | E15: 1362.55 | F15: 1372.7 | G15: 1372 | H15: 1382.05 | I15: 22409 | J15: 30741884.5 | K15: 2018-12-05 | L15: 2803 | M15: INE117A01022
A16: ABBOTINDIA | B16: EQ | C16: 7753 | D16: 7755.05 | E16: 7575.75 | F16: 7656.95 | G16: 7660 | H16: 7752.4 | I16: 3007 | J16: 23049930.85 | K16: 2018-12-05 | L16: 876 | M16: INE358A01014
A17: ABCAPITAL | B17: EQ | C17: 102 | D17: 102.4 | E17: 99.35 | F17: 99.85 | G17: 99.8 | H17: 102.5 | I17: 1233831 | J17: 123767519.7 | K17: 2018-12-05 | L17: 55559 | M17: INE674K01013
A18: ABFRL | B18: EQ | C18: 183 | D18: 186 | E18: 181.45 | F18: 183.6 | G18: 183.65 | H18: 184.55 | I18: 198192 | J18: 36453596.8 | K18: 2018-12-05 | L18: 3107 | M18: INE647O01011
A19: ACC | B19: EQ | C19: 1504 | D19: 1506.5 | E19: 1465.85 | F19: 1471.15 | G19: 1470 | H19: 1508.95 | I19: 514306 | J19: 761222016.6 | K19: 2018-12-05 | L19: 18984 | M19: INE012A01025
A20: ACCELYA | B20: EQ | C20: 983.75 | D20: 1011.35 | E20: 983.75 | F20: 992.3 | G20: 998 | H20: 998.65 | I20: 1801 | J20: 1793111.5 | K20: 2018-12-05 | L20: 327 | M20: INE793A01012
A21: ACE | B21: EQ | C21: 92.9 | D21: 92.9 | E21: 89.2 | F21: 90.4 | G21: 90.1 | H21: 92.4 | I21: 76076 | J21: 6880103.45 | K21: 2018-12-05 | L21: 2288 | M21: INE731H01025
A22: ADANIENT | B22: EQ | C22: 161.05 | D22: 164.95 | E22: 155.75 | F22: 157.4 | G22: 156.9 | H22: 162.75 | I22: 8601249 | J22: 1390176782 | K22: 2018-12-05 | L22: 28418 | M22: INE423A01024
A23: ADANIGAS | B23: EQ | C23: 95.15 | D23: 105.8 | E23: 94.2 | F23: 105.35 | G23: 105.8 | H23: 96.2 | I23: 6794511 | J23: 707219866 | K23: 2018-12-05 | L23: 39506 | M23: INE399L01023
A24: ADANIGREEN | B24: EQ | C24: 44.4 | D24: 47.35 | E24: 44.4 | F24: 46.8 | G24: 47 | H24: 45.1 | I24: 1337441 | J24: 62497134.35 | K24: 2018-12-05 | L24: 6398 | M24: INE364U01010
A25: ADANIPORTS | B25: EQ | C25: 375 | D25: 376.75 | E25: 372.7 | F25: 374.75 | G25: 374.2 | H25: 373.8 | I25: 4847267 | J25: 1816847907 | K25: 2018-12-05 | L25: 51154 | M25: INE742F01042
A26: ADANIPOWER | B26: EQ | C26: 55 | D26: 55.2 | E26: 53.5 | F26: 54.05 | G26: 54.3 | H26: 56.25 | I26: 17905386 | J26: 972335172.2 | K26: 2018-12-05 | L26: 27113 | M26: INE814H01011
A27: ADANITRANS | B27: EQ | C27: 215.6 | D27: 226.55 | E27: 214.8 | F27: 218 | G27: 217.85 | H27: 218.8 | I27: 463235 | J27: 101812130.2 | K27: 2018-12-05 | L27: 8955 | M27: INE931S01010
A28: ADFFOODS | B28: EQ | C28: 277.4 | D28: 277.4 | E28: 267.5 | F28: 270.3 | G28: 268.6 | H28: 279.9 | I28: 52395 | J28: 14261357.65 | K28: 2018-12-05 | L28: 2120 | M28: INE982B01019
A29: ADHUNIK | B29: EQ | C29: 2.7 | D29: 2.7 | E29: 2.65 | F29: 2.65 | G29: 2.65 | H29: 2.65 | I29: 2700 | J29: 7252.5 | K29: 2018-12-05 | L29: 9 | M29: INE400H01019
A30: ADHUNIKIND | B30: EQ | C30: 51.45 | D30: 52.45 | E30: 49.5 | F30: 50.6 | G30: 51.45 | H30: 51 | I30: 12058 | J30: 614854.9 | K30: 2018-12-05 | L30: 423 | M30: INE452L01012
A31: ADLABS | B31: EQ | C31: 9.6 | D31: 9.65 | E31: 9.25 | F31: 9.25 | G31: 9.25 | H31: 9.7 | I31: 432914 | J31: 4027237.1 | K31: 2018-12-05 | L31: 781 | M31: INE172N01012
A32: ADORWELD | B32: EQ | C32: 368.5 | D32: 370.9 | E32: 363.5 | F32: 369.3 | G32: 368 | H32: 369.45 | I32: 9410 | J32: 3470366.25 | K32: 2018-12-05 | L32: 260 | M32: INE045A01017
A33: ADROITINFO | B33: EQ | C33: 20.85 | D33: 20.85 | E33: 19.25 | F33: 20.25 | G33: 20.35 | H33: 19.95 | I33: 443 | J33: 8994.5 | K33: 2018-12-05 | L33: 16 | M33: INE737B01033
A34: ADSL | B34: EQ | C34: 13 | D34: 13.4 | E34: 12.9 | F34: 13.1 | G34: 13.05 | H34: 13.3 | I34: 8174 | J34: 107637 | K34: 2018-12-05 | L34: 35 | M34: INE102I01027
A35: ADVANIHOTR | B35: EQ | C35: 61.7 | D35: 62.8 | E35: 59.95 | F35: 60.85 | G35: 61 | H35: 60.9 | I35: 11265 | J35: 689447.15 | K35: 2018-12-05 | L35: 101 | M35: INE199C01026
A36: ADVENZYMES | B36: EQ | C36: 182 | D36: 182.45 | E36: 177.5 | F36: 178.3 | G36: 178.7 | H36: 182.8 | I36: 26824 | J36: 4812399.4 | K36: 2018-12-05 | L36: 1034 | M36: INE837H01020
A37: AEGISCHEM | B37: EQ | C37: 211.45 | D37: 213.75 | E37: 209 | F37: 212.2 | G37: 212.5 | H37: 214.1 | I37: 60042 | J37: 12683193.65 | K37: 2018-12-05 | L37: 2296 | M37: INE208C01025
A38: AGARIND | B38: EQ | C38: 177.5 | D38: 177.5 | E38: 170.15 | F38: 173.3 | G38: 172.6 | H38: 178.7 | I38: 369 | J38: 63854.9 | K38: 2018-12-05 | L38: 35 | M38: INE204E01012
A39: AGCNET | B39: EQ | C39: 68.9 | D39: 68.9 | E39: 67 | F39: 67 | G39: 67 | H39: 68.65 | I39: 1182 | J39: 79871.1 | K39: 2018-12-05 | L39: 50 | M39: INE676A01019
A40: AGLSL | B40: EQ | C40: 73.4 | D40: 73.4 | E40: 70 | F40: 71.05 | G40: 71.25 | H40: 71.65 | I40: 788 | J40: 56227.6 | K40: 2018-12-05 | L40: 38 | M40: INE517U01013
A41: AGRITECH | B41: EQ | C41: 66.55 | D41: 70.9 | E41: 66.55 | F41: 68.15 | G41: 68 | H41: 71.3 | I41: 12986 | J41: 889988.95 | K41: 2018-12-05 | L41: 329 | M41: INE449G01018
A42: AHLEAST | B42: EQ | C42: 254.2 | D42: 259.5 | E42: 235.55 | F42: 244.8 | G42: 245.55 | H42: 259.4 | I42: 2657 | J42: 653441.5 | K42: 2018-12-05 | L42: 303 | M42: INE926K01017
A43: AHLUCONT | B43: EQ | C43: 293.05 | D43: 299.75 | E43: 285.1 | F43: 291.3 | G43: 295 | H43: 294.05 | I43: 451 | J43: 132522.9 | K43: 2018-12-05 | L43: 51 | M43: INE758C01029
A44: AHLWEST | B44: EQ | C44: 300 | D44: 302 | E44: 299 | F44: 299.65 | G44: 299 | H44: 304.4 | I44: 55 | J44: 16546 | K44: 2018-12-05 | L44: 8 | M44: INE915K01010
A45: AIAENG | B45: EQ | C45: 1740.5 | D45: 1740.5 | E45: 1679.15 | F45: 1691.15 | G45: 1681.9 | H45: 1741.7 | I45: 14660 | J45: 25120702.8 | K45: 2018-12-05 | L45: 2857 | M45: INE212H01026
A46: AIFL | B46: EQ | C46: 26.05 | D46: 26.05 | E46: 26.05 | F46: 26.05 | G46: 26.05 | H46: 27.4 | I46: 14379 | J46: 374572.95 | K46: 2018-12-05 | L46: 100 | M46: INE428O01016
A47: AIONJSW | B47: EQ | C47: 35.65 | D47: 36.2 | E47: 34.55 | F47: 36 | G47: 35.75 | H47: 36.05 | I47: 44733 | J47: 1585806.9 | K47: 2018-12-05 | L47: 259 | M47: INE743C01021
A48: AJANTPHARM | B48: EQ | C48: 1134.45 | D48: 1147.45 | E48: 1078 | F48: 1098.2 | G48: 1100 | H48: 1135.7 | I48: 353209 | J48: 395736755.4 | K48: 2018-12-05 | L48: 15905 | M48: INE031B01049
A49: AJMERA | B49: EQ | C49: 149.95 | D49: 149.95 | E49: 144.3 | F49: 145 | G49: 145.45 | H49: 148.65 | I49: 18546 | J49: 2716647.45 | K49: 2018-12-05 | L49: 809 | M49: INE298G01027
A50: AKSHARCHEM | B50: EQ | C50: 435 | D50: 435.05 | E50: 425.05 | F50: 426.25 | G50: 429.2 | H50: 436 | I50: 1644 | J50: 703475.95 | K50: 2018-12-05 | L50: 111 | M50: INE542B01011
A51: AKSHOPTFBR | B51: EQ | C51: 25.25 | D51: 25.35 | E51: 24.6 | F51: 24.7 | G51: 24.6 | H51: 25.2 | I51: 402461 | J51: 9998940.85 | K51: 2018-12-05 | L51: 1369 | M51: INE523B01011
A52: AKZOINDIA | B52: EQ | C52: 1589 | D52: 1589 | E52: 1565.05 | F52: 1572.35 | G52: 1570 | H52: 1589.75 | I52: 3420 | J52: 5374646.85 | K52: 2018-12-05 | L52: 1188 | M52: INE133A01011
A53: ALANKIT | B53: EQ | C53: 19.55 | D53: 19.55 | E53: 18.8 | F53: 19.1 | G53: 19.15 | H53: 19.2 | I53: 298952 | J53: 5736274.9 | K53: 2018-12-05 | L53: 933 | M53: INE914E01040
A54: ALBERTDAVD | B54: EQ | C54: 392.05 | D54: 399.5 | E54: 383 | F54: 386.3 | G54: 384 | H54: 399.5 | I54: 6424 | J54: 2513105.65 | K54: 2018-12-05 | L54: 327 | M54: INE155C01010
A55: ALBK | B55: EQ | C55: 46.95 | D55: 47.45 | E55: 45.35 | F55: 45.7 | G55: 45.75 | H55: 47.35 | I55: 3382975 | J55: 156219516 | K55: 2018-12-05 | L55: 10028 | M55: INE428A01015
A56: ALCHEM | B56: BE | C56: 1.85 | D56: 1.85 | E56: 1.85 | F56: 1.85 | G56: 1.85 | H56: 1.9 | I56: 26736 | J56: 49461.6 | K56: 2018-12-05 | L56: 31 | M56: INE964B01033
A57: ALEMBICLTD | B57: EQ | C57: 43.75 | D57: 43.9 | E57: 40.6 | F57: 42.95 | G57: 43.2 | H57: 43.55 | I57: 239065 | J57: 10320759.3 | K57: 2018-12-05 | L57: 1324 | M57: INE426A01027
A58: ALICON | B58: EQ | C58: 630.5 | D58: 635 | E58: 621 | F58: 621.9 | G58: 621.2 | H58: 630.5 | I58: 896 | J58: 561584.15 | K58: 2018-12-05 | L58: 119 | M58: INE062D01024
A59: ALKALI | B59: EQ | C59: 57.05 | D59: 57.5 | E59: 56.1 | F59: 56.45 | G59: 56.5 | H59: 57.45 | I59: 1622 | J59: 91915.25 | K59: 2018-12-05 | L59: 47 | M59: INE773I01017
A60: ALKEM | B60: EQ | C60: 1891.05 | D60: 1935 | E60: 1891.05 | F60: 1916.15 | G60: 1901 | H60: 1907.75 | I60: 11232 | J60: 21412137.5 | K60: 2018-12-05 | L60: 1865 | M60: INE540L01014
A61: ALKYLAMINE | B61: EQ | C61: 747.9 | D61: 754.95 | E61: 742.55 | F61: 746.3 | G61: 746.25 | H61: 746.85 | I61: 1579 | J61: 1184157.35 | K61: 2018-12-05 | L61: 109 | M61: INE150B01021
A62: ALLCARGO | B62: EQ | C62: 107.2 | D62: 107.5 | E62: 104.6 | F62: 106.55 | G62: 106.55 | H62: 106.75 | I62: 799190 | J62: 85133655.55 | K62: 2018-12-05 | L62: 1978 | M62: INE418H01029
A63: ALLSEC | B63: EQ | C63: 214.75 | D63: 214.75 | E63: 206.1 | F63: 207.75 | G63: 207.55 | H63: 208.85 | I63: 5535 | J63: 1164348.25 | K63: 2018-12-05 | L63: 248 | M63: INE835G01018
A64: ALMONDZ | B64: EQ | C64: 23.5 | D64: 23.5 | E64: 22.05 | F64: 23.15 | G64: 23.2 | H64: 22.95 | I64: 602 | J64: 13779.05 | K64: 2018-12-05 | L64: 20 | M64: INE326B01027
A65: ALOKTEXT | B65: EQ | C65: 3.8 | D65: 3.8 | E65: 3.8 | F65: 3.8 | G65: 3.8 | H65: 3.65 | I65: 491815 | J65: 1868897 | K65: 2018-12-05 | L65: 334 | M65: INE270A01011
A66: ALPA | B66: EQ | C66: 24.55 | D66: 25 | E66: 24.3 | F66: 24.65 | G66: 24.35 | H66: 24.9 | I66: 5126 | J66: 125591.15 | K66: 2018-12-05 | L66: 63 | M66: INE385I01010
A67: ALPHAGEO | B67: EQ | C67: 479.55 | D67: 489.6 | E67: 473.95 | F67: 478.2 | G67: 479 | H67: 478.7 | I67: 3551 | J67: 1694213.1 | K67: 2018-12-05 | L67: 277 | M67: INE137C01018
A68: ALPSINDUS | B68: BE | C68: 3.35 | D68: 3.35 | E68: 3.35 | F68: 3.35 | G68: 3.35 | H68: 3.5 | I68: 319 | J68: 1068.65 | K68: 2018-12-05 | L68: 4 | M68: INE093B01015
A69: AMARAJABAT | B69: EQ | C69: 712.8 | D69: 714.95 | E69: 705.6 | F69: 709 | G69: 709 | H69: 713.75 | I69: 284802 | J69: 201831684.3 | K69: 2018-12-05 | L69: 15906 | M69: INE885A01032
A70: AMBER | B70: EQ | C70: 901.5 | D70: 920 | E70: 890 | F70: 901.45 | G70: 890 | H70: 914.45 | I70: 2142 | J70: 1947123.55 | K70: 2018-12-05 | L70: 239 | M70: INE371P01015
A71: AMBIKCO | B71: EQ | C71: 1180.95 | D71: 1204.45 | E71: 1180 | F71: 1187.35 | G71: 1194.7 | H71: 1180.9 | I71: 1867 | J71: 2227925.8 | K71: 2018-12-05 | L71: 191 | M71: INE540G01014
A72: AMBUJACEM | B72: EQ | C72: 218.8 | D72: 218.8 | E72: 215.35 | F72: 216.65 | G72: 216.05 | H72: 219 | I72: 1836318 | J72: 397793148.1 | K72: 2018-12-05 | L72: 21562 | M72: INE079A01024
A73: AMDIND | B73: EQ | C73: 20.4 | D73: 20.4 | E73: 18.6 | F73: 18.9 | G73: 19.2 | H73: 19.35 | I73: 864 | J73: 16463.75 | K73: 2018-12-05 | L73: 23 | M73: INE005I01014
A74: AMJLAND | B74: EQ | C74: 21.65 | D74: 21.7 | E74: 20.3 | F74: 21.3 | G74: 21.45 | H74: 21.8 | I74: 9754 | J74: 205893.95 | K74: 2018-12-05 | L74: 143 | M74: INE606A01024
A75: AMRUTANJAN | B75: EQ | C75: 249.5 | D75: 253.4 | E75: 247.15 | F75: 251.25 | G75: 253 | H75: 248.9 | I75: 5414 | J75: 1349807.3 | K75: 2018-12-05 | L75: 347 | M75: INE098F01031
A76: ANANTRAJ | B76: EQ | C76: 36 | D76: 36.1 | E76: 34.8 | F76: 35.25 | G76: 35.45 | H76: 36.1 | I76: 312807 | J76: 11040887.9 | K76: 2018-12-05 | L76: 1556 | M76: INE242C01024
A77: ANDHRABANK | B77: EQ | C77: 28.45 | D77: 28.45 | E77: 27.85 | F77: 27.95 | G77: 27.9 | H77: 28.15 | I77: 484069 | J77: 13578622.75 | K77: 2018-12-05 | L77: 1675 | M77: INE434A01013
A78: ANDHRACEMT | B78: EQ | C78: 5.9 | D78: 6 | E78: 5.8 | F78: 5.85 | G78: 5.9 | H78: 5.9 | I78: 53796 | J78: 318225.7 | K78: 2018-12-05 | L78: 149 | M78: INE666E01012
A79: ANDHRSUGAR | B79: EQ | C79: 339 | D79: 339 | E79: 331.1 | F79: 332.2 | G79: 331.6 | H79: 336.85 | I79: 7082 | J79: 2361586 | K79: 2018-12-05 | L79: 461 | M79: INE715B01013
A80: ANGIND | B80: BE | C80: 1.4 | D80: 1.5 | E80: 1.4 | F80: 1.5 | G80: 1.5 | H80: 1.45 | I80: 774 | J80: 1145.15 | K80: 2018-12-05 | L80: 11 | M80: INE017D01010
A81: ANIKINDS | B81: EQ | C81: 25.55 | D81: 25.55 | E81: 24.35 | F81: 24.9 | G81: 24.95 | H81: 26.05 | I81: 29260 | J81: 728886.85 | K81: 2018-12-05 | L81: 60 | M81: INE087B01017
A82: ANKITMETAL | B82: BE | C82: 0.5 | D82: 0.5 | E82: 0.45 | F82: 0.5 | G82: 0.5 | H82: 0.5 | I82: 98398 | J82: 48170.25 | K82: 2018-12-05 | L82: 29 | M82: INE106I01010
A83: ANSALAPI | B83: EQ | C83: 10.7 | D83: 10.7 | E83: 10.4 | F83: 10.45 | G83: 10.5 | H83: 10.75 | I83: 11207 | J83: 118096.95 | K83: 2018-12-05 | L83: 69 | M83: INE436A01026
A84: ANSALHSG | B84: EQ | C84: 9.9 | D84: 10.2 | E84: 9.85 | F84: 9.85 | G84: 9.85 | H84: 10.05 | I84: 20551 | J84: 203970.55 | K84: 2018-12-05 | L84: 68 | M84: INE880B01015
A85: ANTGRAPHIC | B85: BE | C85: 0.45 | D85: 0.5 | E85: 0.45 | F85: 0.5 | G85: 0.5 | H85: 0.5 | I85: 89328 | J85: 40619.7 | K85: 2018-12-05 | L85: 28 | M85: INE414B01021
A86: APARINDS | B86: EQ | C86: 616.6 | D86: 639 | E86: 610.55 | F86: 630.45 | G86: 634.6 | H86: 616.65 | I86: 6593 | J86: 4135477.25 | K86: 2018-12-05 | L86: 1024 | M86: INE372A01015
A87: APCL | B87: EQ | C87: 125.45 | D87: 131.8 | E87: 124 | F87: 129.45 | G87: 130 | H87: 125.45 | I87: 4268 | J87: 542639.55 | K87: 2018-12-05 | L87: 58 | M87: INE071F01012
A88: APCOTEXIND | B88: EQ | C88: 536 | D88: 549.95 | E88: 530 | F88: 535.65 | G88: 532.15 | H88: 537.85 | I88: 3784 | J88: 2045595.1 | K88: 2018-12-05 | L88: 391 | M88: INE116A01024
A89: APEX | B89: EQ | C89: 361 | D89: 368.55 | E89: 357 | F89: 360.65 | G89: 361.45 | H89: 360.55 | I89: 44100 | J89: 15910807.6 | K89: 2018-12-05 | L89: 1253 | M89: INE346W01013
A90: APLAPOLLO | B90: EQ | C90: 1340 | D90: 1341 | E90: 1305 | F90: 1309.25 | G90: 1307.05 | H90: 1326.1 | I90: 10773 | J90: 14146557.3 | K90: 2018-12-05 | L90: 1405 | M90: INE702C01019
A91: APLLTD | B91: EQ | C91: 610 | D91: 635 | E91: 610 | F91: 621.1 | G91: 619.15 | H91: 615.95 | I91: 81337 | J91: 50818685.95 | K91: 2018-12-05 | L91: 4739 | M91: INE901L01018
A92: APOLLO | B92: EQ | C92: 126.85 | D92: 128.45 | E92: 124 | F92: 124.95 | G92: 124.1 | H92: 125.55 | I92: 8095 | J92: 1017738.7 | K92: 2018-12-05 | L92: 380 | M92: INE713T01010
A93: APOLLOHOSP | B93: EQ | C93: 1235 | D93: 1269 | E93: 1214.75 | F93: 1231.2 | G93: 1236 | H93: 1243.55 | I93: 749896 | J93: 933752056.1 | K93: 2018-12-05 | L93: 39998 | M93: INE437A01024
A94: APOLLOTYRE | B94: EQ | C94: 232.8 | D94: 235.35 | E94: 226.1 | F94: 228.1 | G94: 229 | H94: 232.65 | I94: 2123955 | J94: 490102335.2 | K94: 2018-12-05 | L94: 21020 | M94: INE438A01022
A95: APOLSINHOT | B95: EQ | C95: 845 | D95: 845 | E95: 808.1 | F95: 813.9 | G95: 813.9 | H95: 832.05 | I95: 387 | J95: 316441.9 | K95: 2018-12-05 | L95: 76 | M95: INE451F01024
A96: APTECHT | B96: EQ | C96: 178 | D96: 180.65 | E96: 173.9 | F96: 175 | G96: 174.55 | H96: 179.4 | I96: 170264 | J96: 30134479.3 | K96: 2018-12-05 | L96: 3882 | M96: INE266F01018
A97: ARCHIDPLY | B97: EQ | C97: 38.55 | D97: 39 | E97: 37 | F97: 37.5 | G97: 37.7 | H97: 38.65 | I97: 17221 | J97: 655386.35 | K97: 2018-12-05 | L97: 351 | M97: INE877I01016
A98: ARCHIES | B98: EQ | C98: 27.95 | D98: 28.15 | E98: 27.4 | F98: 27.5 | G98: 27.45 | H98: 28.05 | I98: 27417 | J98: 760437.15 | K98: 2018-12-05 | L98: 297 | M98: INE731A01020
A99: ARCOTECH | B99: EQ | C99: 7.75 | D99: 7.95 | E99: 7.5 | F99: 7.5 | G99: 7.6 | H99: 7.75 | I99: 114985 | J99: 869210.7 | K99: 2018-12-05 | L99: 237 | M99: INE574I01035
A100: ARENTERP | B100: BE | C100: 14.25 | D100: 14.35 | E100: 13.1 | F100: 13.95 | G100: 13.1 | H100: 13.7 | I100: 1025 | J100: 14496.25 | K100: 2018-12-05 | L100: 6 | M100: INE610C01014
A101: ARIES | B101: EQ | C101: 95.15 | D101: 96.35 | E101: 94.5 | F101: 94.6 | G101: 94.85 | H101: 96.5 | I101: 10353 | J101: 986518.3 | K101: 2018-12-05 | L101: 186 | M101: INE298I01015
A102: ARIHANT | B102: EQ | C102: 29.25 | D102: 32.45 | E102: 29.25 | F102: 30 | G102: 29.5 | H102: 32.2 | I102: 2321 | J102: 71028.1 | K102: 2018-12-05 | L102: 24 | M102: INE413D01011
A103: ARIHANTSUP | B103: EQ | C103: 52.95 | D103: 54.2 | E103: 51.6 | F103: 53.25 | G103: 53.25 | H103: 52.95 | I103: 28118 | J103: 1494594.4 | K103: 2018-12-05 | L103: 1646 | M103: INE643K01018
A104: ARMANFIN | B104: EQ | C104: 388.2 | D104: 396 | E104: 387.5 | F104: 387.55 | G104: 387.5 | H104: 392.5 | I104: 2397 | J104: 938018.45 | K104: 2018-12-05 | L104: 81 | M104: INE109C01017
A105: AROGRANITE | B105: EQ | C105: 51.75 | D105: 52.4 | E105: 50 | F105: 51.5 | G105: 51.45 | H105: 51.65 | I105: 5984 | J105: 306214.75 | K105: 2018-12-05 | L105: 124 | M105: INE210C01013
A106: ARROWGREEN | B106: EQ | C106: 88.55 | D106: 89.95 | E106: 86.05 | F106: 87.3 | G106: 88 | H106: 88.55 | I106: 8199 | J106: 719866.6 | K106: 2018-12-05 | L106: 256 | M106: INE570D01018
A107: ARROWTEX | B107: EQ | C107: 24.3 | D107: 24.8 | E107: 24 | F107: 24.2 | G107: 24.1 | H107: 24.25 | I107: 3632 | J107: 87879.45 | K107: 2018-12-05 | L107: 48 | M107: INE933J01015
A108: ARSHIYA | B108: EQ | C108: 32.5 | D108: 35.6 | E108: 32.5 | F108: 34.75 | G108: 34.6 | H108: 34.9 | I108: 5587 | J108: 193262 | K108: 2018-12-05 | L108: 99 | M108: INE968D01022
A109: ARSSINFRA | B109: EQ | C109: 29.2 | D109: 29.25 | E109: 27.25 | F109: 28.35 | G109: 28.3 | H109: 28.5 | I109: 16763 | J109: 475890.95 | K109: 2018-12-05 | L109: 102 | M109: INE267I01010
A110: ARVIND | B110: EQ | C110: 101 | D110: 107.15 | E110: 100.3 | F110: 103.7 | G110: 103.7 | H110: 100.75 | I110: 20682971 | J110: 2173731235 | K110: 2018-12-05 | L110: 100545 | M110: INE034A01011
A111: ARVSMART | B111: EQ | C111: 106.15 | D111: 109 | E111: 106.1 | F111: 106.85 | G111: 106.5 | H111: 107.65 | I111: 7436 | J111: 798283.9 | K111: 2018-12-05 | L111: 188 | M111: INE034S01021
A112: ASAHIINDIA | B112: EQ | C112: 261.8 | D112: 265.4 | E112: 253.15 | F112: 256.05 | G112: 257.9 | H112: 261.25 | I112: 10300 | J112: 2655426.45 | K112: 2018-12-05 | L112: 1067 | M112: INE439A01020
A113: ASAHISONG | B113: EQ | C113: 213.05 | D113: 220.75 | E113: 210 | F113: 218.75 | G113: 216.75 | H113: 214.3 | I113: 1400 | J113: 303667.95 | K113: 2018-12-05 | L113: 85 | M113: INE228I01012
A114: ASAL | B114: EQ | C114: 57.95 | D114: 58.1 | E114: 56 | F114: 57.15 | G114: 57.7 | H114: 57.15 | I114: 17856 | J114: 1018889.6 | K114: 2018-12-05 | L114: 144 | M114: INE900C01027
A115: ASHAPURMIN | B115: EQ | C115: 28.2 | D115: 29.75 | E115: 28.2 | F115: 28.75 | G115: 29.1 | H115: 29 | I115: 32945 | J115: 952734.85 | K115: 2018-12-05 | L115: 319 | M115: INE348A01023
A116: ASHIANA | B116: EQ | C116: 120.75 | D116: 122.5 | E116: 120 | F116: 121.65 | G116: 121.8 | H116: 121.4 | I116: 15636 | J116: 1896992.45 | K116: 2018-12-05 | L116: 255 | M116: INE365D01021
A117: ASHIMASYN | B117: EQ | C117: 13 | D117: 13.25 | E117: 12.95 | F117: 13.2 | G117: 13.25 | H117: 13.2 | I117: 17520 | J117: 229865.95 | K117: 2018-12-05 | L117: 98 | M117: INE440A01010
A118: ASHOKA | B118: EQ | C118: 130.75 | D118: 130.75 | E118: 123.3 | F118: 124.85 | G118: 124.25 | H118: 128.95 | I118: 100447 | J118: 12735349.4 | K118: 2018-12-05 | L118: 3016 | M118: INE442H01029
A119: ASHOKLEY | B119: EQ | C119: 106.65 | D119: 106.9 | E119: 102.65 | F119: 103.6 | G119: 103.9 | H119: 107.3 | I119: 35663386 | J119: 3711740482 | K119: 2018-12-05 | L119: 153473 | M119: INE208A01029
A120: ASIANHOTNR | B120: EQ | C120: 146.55 | D120: 146.55 | E120: 143.65 | F120: 144.6 | G120: 143.65 | H120: 146.5 | I120: 203 | J120: 29735 | K120: 2018-12-05 | L120: 9 | M120: INE363A01022
A121: ASIANPAINT | B121: EQ | C121: 1328.5 | D121: 1343 | E121: 1323.6 | F121: 1329.5 | G121: 1328.2 | H121: 1329.45 | I121: 864628 | J121: 1150675415 | K121: 2018-12-05 | L121: 40092 | M121: INE021A01026
A122: ASIANTILES | B122: EQ | C122: 202.5 | D122: 202.5 | E122: 195.1 | F122: 198.8 | G122: 198.75 | H122: 203.5 | I122: 101625 | J122: 20116597.55 | K122: 2018-12-05 | L122: 3250 | M122: INE022I01019
A123: ASPINWALL | B123: EQ | C123: 178 | D123: 179.2 | E123: 170.05 | F123: 175.3 | G123: 179.2 | H123: 177.4 | I123: 825 | J123: 143316.25 | K123: 2018-12-05 | L123: 40 | M123: INE991I01015
A124: ASSAMCO | B124: EQ | C124: 2.7 | D124: 2.7 | E124: 2.55 | F124: 2.7 | G124: 2.7 | H124: 2.6 | I124: 2522924 | J124: 6802445.9 | K124: 2018-12-05 | L124: 449 | M124: INE442A01024
A125: ASTEC | B125: EQ | C125: 522 | D125: 537.95 | E125: 522 | F125: 528.4 | G125: 529.2 | H125: 522.75 | I125: 19449 | J125: 10337056.1 | K125: 2018-12-05 | L125: 846 | M125: INE563J01010
A126: ASTERDM | B126: EQ | C126: 149.2 | D126: 150.4 | E126: 146.2 | F126: 147.7 | G126: 148 | H126: 150.55 | I126: 51987 | J126: 7737234.4 | K126: 2018-12-05 | L126: 1090 | M126: INE914M01019
A127: ASTRAL | B127: EQ | C127: 1035.45 | D127: 1065 | E127: 1035.45 | F127: 1051.5 | G127: 1045.35 | H127: 1045.85 | I127: 106011 | J127: 111980421.7 | K127: 2018-12-05 | L127: 6589 | M127: INE006I01046
A128: ASTRAMICRO | B128: EQ | C128: 79.55 | D128: 80 | E128: 78.4 | F128: 78.5 | G128: 78.4 | H128: 79.8 | I128: 196478 | J128: 15486935.25 | K128: 2018-12-05 | L128: 1114 | M128: INE386C01029
A129: ASTRAZEN | B129: EQ | C129: 1364.5 | D129: 1392.45 | E129: 1343.35 | F129: 1348.8 | G129: 1348 | H129: 1364.2 | I129: 6930 | J129: 9487462.05 | K129: 2018-12-05 | L129: 1037 | M129: INE203A01020
A130: ASTRON | B130: EQ | C130: 115.4 | D130: 117.35 | E130: 111.8 | F130: 113.25 | G130: 113.55 | H130: 114.1 | I130: 329207 | J130: 37840029.4 | K130: 2018-12-05 | L130: 3625 | M130: INE646X01014
A131: ATFL | B131: EQ | C131: 578 | D131: 587 | E131: 578 | F131: 580 | G131: 578.1 | H131: 579.6 | I131: 3164 | J131: 1837007.5 | K131: 2018-12-05 | L131: 314 | M131: INE209A01019
A132: ATLANTA | B132: EQ | C132: 23.45 | D132: 23.95 | E132: 22.6 | F132: 23 | G132: 23.05 | H132: 23.6 | I132: 124400 | J132: 2905580.05 | K132: 2018-12-05 | L132: 3151 | M132: INE285H01022
A133: ATUL | B133: EQ | C133: 3500 | D133: 3524 | E133: 3450 | F133: 3465 | G133: 3465 | H133: 3515.2 | I133: 16529 | J133: 57473901.7 | K133: 2018-12-05 | L133: 3071 | M133: INE100A01010
A134: ATULAUTO | B134: EQ | C134: 319 | D134: 323.9 | E134: 319 | F134: 320.75 | G134: 320.3 | H134: 320.4 | I134: 5289 | J134: 1695780 | K134: 2018-12-05 | L134: 310 | M134: INE951D01028
A135: AUBANK | B135: EQ | C135: 600 | D135: 618 | E135: 600 | F135: 612.05 | G135: 613 | H135: 608.75 | I135: 395189 | J135: 241717868.3 | K135: 2018-12-05 | L135: 23338 | M135: INE949L01017
A136: AURIONPRO | B136: EQ | C136: 145.95 | D136: 146 | E136: 138 | F136: 140.05 | G136: 140 | H136: 142.75 | I136: 12986 | J136: 1825796.85 | K136: 2018-12-05 | L136: 319 | M136: INE132H01018
A137: AUROPHARMA | B137: EQ | C137: 821 | D137: 826.8 | E137: 792 | F137: 796.35 | G137: 795.8 | H137: 823.55 | I137: 3374742 | J137: 2728311319 | K137: 2018-12-05 | L137: 86592 | M137: INE406A01037
A138: AUSOMENT | B138: EQ | C138: 50.05 | D138: 50.05 | E138: 48.25 | F138: 49.55 | G138: 49.55 | H138: 49.8 | I138: 759 | J138: 37291.4 | K138: 2018-12-05 | L138: 51 | M138: INE218C01016
A139: AUTOAXLES | B139: EQ | C139: 1348 | D139: 1370 | E139: 1336.35 | F139: 1354.5 | G139: 1345 | H139: 1365.5 | I139: 7212 | J139: 9739421.55 | K139: 2018-12-05 | L139: 966 | M139: INE449A01011
A140: AUTOIND | B140: EQ | C140: 56 | D140: 56.1 | E140: 54.05 | F140: 54.4 | G140: 54.35 | H140: 56 | I140: 15298 | J140: 841650.7 | K140: 2018-12-05 | L140: 259 | M140: INE718H01014
A141: AUTOLITIND | B141: EQ | C141: 40.95 | D141: 44 | E141: 40.55 | F141: 41.55 | G141: 41.8 | H141: 41.45 | I141: 4541 | J141: 189648.15 | K141: 2018-12-05 | L141: 142 | M141: INE448A01013
A142: AVADHSUGAR | B142: EQ | C142: 387.4 | D142: 388.45 | E142: 378.7 | F142: 381.3 | G142: 383.8 | H142: 388.45 | I142: 8813 | J142: 3368897.5 | K142: 2018-12-05 | L142: 619 | M142: INE349W01017
A143: AVANTIFEED | B143: EQ | C143: 343.6 | D143: 354.4 | E143: 341.5 | F143: 349.35 | G143: 349.95 | H143: 344.7 | I143: 471509 | J143: 164724708.6 | K143: 2018-12-05 | L143: 16808 | M143: INE871C01038
A144: AVTNPL | B144: EQ | C144: 27 | D144: 27.55 | E144: 27 | F144: 27.3 | G144: 27.15 | H144: 27.3 | I144: 18035 | J144: 492942.8 | K144: 2018-12-05 | L144: 253 | M144: INE488D01021
A145: AXISBANK | B145: EQ | C145: 620.9 | D145: 623.95 | E145: 613.4 | F145: 614.95 | G145: 614.9 | H145: 623.25 | I145: 9728083 | J145: 6017456517 | K145: 2018-12-05 | L145: 101498 | M145: INE238A01034
A146: AXISCADES | B146: EQ | C146: 91.3 | D146: 91.7 | E146: 89 | F146: 89.9 | G146: 90.05 | H146: 91.75 | I146: 32899 | J146: 2962246.35 | K146: 2018-12-05 | L146: 756 | M146: INE555B01013
A147: AXISGOLD | B147: EQ | C147: 2728 | D147: 2742 | E147: 2720 | F147: 2720 | G147: 2720 | H147: 2728.1 | I147: 86 | J147: 234611.45 | K147: 2018-12-05 | L147: 22 | M147: INF846K01347
A148: AXISNIFTY | B148: EQ | C148: 1102.58 | D148: 1102.58 | E148: 1093.79 | F148: 1102 | G148: 1102 | H148: 1106 | I148: 92 | J148: 101343.53 | K148: 2018-12-05 | L148: 3 | M148: INF846K01ZL0
A149: AYMSYNTEX | B149: EQ | C149: 42.65 | D149: 43.9 | E149: 42.25 | F149: 43.3 | G149: 42.35 | H149: 42.65 | I149: 2599 | J149: 111577.95 | K149: 2018-12-05 | L149: 71 | M149: INE193B01039
A150: BAFNAPHARM | B150: EQ | C150: 12.65 | D150: 13.15 | E150: 12.5 | F150: 12.55 | G150: 12.65 | H150: 13 | I150: 9928 | J150: 126073.95 | K150: 2018-12-05 | L150: 92 | M150: INE878I01014
A151: BAGFILMS | B151: EQ | C151: 5 | D151: 5 | E151: 4.75 | F151: 4.75 | G151: 4.8 | H151: 4.95 | I151: 129230 | J151: 622978.45 | K151: 2018-12-05 | L151: 185 | M151: INE116D01028
A152: BAJAJ-AUTO | B152: EQ | C152: 2759 | D152: 2774.5 | E152: 2731.1 | F152: 2764.1 | G152: 2765 | H152: 2763.85 | I152: 178352 | J152: 490927290.1 | K152: 2018-12-05 | L152: 14329 | M152: INE917I01010
A153: BAJAJCORP | B153: EQ | C153: 351.15 | D153: 352.25 | E153: 348.1 | F153: 348.8 | G153: 348.95 | H153: 353.2 | I153: 10354 | J153: 3624563.85 | K153: 2018-12-05 | L153: 622 | M153: INE933K01021
A154: BAJAJELEC | B154: EQ | C154: 474.15 | D154: 475 | E154: 470.05 | F154: 472.8 | G154: 472.8 | H154: 476.5 | I154: 105575 | J154: 49900281.25 | K154: 2018-12-05 | L154: 4616 | M154: INE193E01025
A155: BAJAJFINSV | B155: EQ | C155: 6070 | D155: 6070 | E155: 5838.75 | F155: 5902.5 | G155: 5917 | H155: 6070.2 | I155: 159561 | J155: 946800933 | K155: 2018-12-05 | L155: 27726 | M155: INE918I01018
A156: BAJAJHIND | B156: EQ | C156: 9.85 | D156: 9.85 | E156: 9.55 | F156: 9.6 | G156: 9.6 | H156: 9.85 | I156: 1284584 | J156: 12411225.6 | K156: 2018-12-05 | L156: 1764 | M156: INE306A01021
A157: BAJAJHLDNG | B157: EQ | C157: 2973.8 | D157: 3038 | E157: 2936.1 | F157: 2969.45 | G157: 2958.95 | H157: 2980.6 | I157: 7823 | J157: 23102126.25 | K157: 2018-12-05 | L157: 1951 | M157: INE118A01012
A158: BAJFINANCE | B158: EQ | C158: 2539.9 | D158: 2539.9 | E158: 2470.3 | F158: 2494.1 | G158: 2508 | H158: 2543.55 | I158: 1327031 | J158: 3322939292 | K158: 2018-12-05 | L158: 62196 | M158: INE296A01024
A159: BALAJITELE | B159: EQ | C159: 95.3 | D159: 96.25 | E159: 93.9 | F159: 94.5 | G159: 94.6 | H159: 95.3 | I159: 11841 | J159: 1124366.35 | K159: 2018-12-05 | L159: 223 | M159: INE794B01026
A160: BALAMINES | B160: EQ | C160: 454.35 | D160: 461.7 | E160: 445.05 | F160: 452.45 | G160: 445.05 | H160: 458 | I160: 8268 | J160: 3769260.8 | K160: 2018-12-05 | L160: 644 | M160: INE050E01027
A161: BALKRISHNA | B161: EQ | C161: 55.5 | D161: 56.4 | E161: 52.3 | F161: 52.75 | G161: 53 | H161: 50.35 | I161: 126821 | J161: 6872041.9 | K161: 2018-12-05 | L161: 1759 | M161: INE875R01011
A162: BALKRISIND | B162: EQ | C162: 950 | D162: 963.6 | E162: 929.3 | F162: 932.95 | G162: 932 | H162: 951.5 | I162: 858727 | J162: 812575446.1 | K162: 2018-12-05 | L162: 27729 | M162: INE787D01026
A163: BALLARPUR | B163: EQ | C163: 5.9 | D163: 6.15 | E163: 5.6 | F163: 5.7 | G163: 5.65 | H163: 5.6 | I163: 2736625 | J163: 16148530.5 | K163: 2018-12-05 | L163: 1906 | M163: INE294A01037
A164: BALMLAWRIE | B164: EQ | C164: 189 | D164: 189 | E164: 181.1 | F164: 181.9 | G164: 181.5 | H164: 186.5 | I164: 61354 | J164: 11268599.5 | K164: 2018-12-05 | L164: 1844 | M164: INE164A01016
A165: BALPHARMA | B165: EQ | C165: 79.25 | D165: 80.1 | E165: 78.45 | F165: 78.9 | G165: 79.7 | H165: 80.1 | I165: 8864 | J165: 699353.2 | K165: 2018-12-05 | L165: 265 | M165: INE083D01012
A166: BALRAMCHIN | B166: EQ | C166: 101.6 | D166: 103.5 | E166: 100.8 | F166: 101.65 | G166: 101.6 | H166: 104.85 | I166: 1431964 | J166: 145770527.3 | K166: 2018-12-05 | L166: 11087 | M166: INE119A01028
A167: BANARBEADS | B167: EQ | C167: 48 | D167: 48 | E167: 47.15 | F167: 47.15 | G167: 47.15 | H167: 48 | I167: 154 | J167: 7264.5 | K167: 2018-12-05 | L167: 3 | M167: INE655B01011
A168: BANARISUG | B168: EQ | C168: 1628 | D168: 1628 | E168: 1540 | F168: 1550.25 | G168: 1540 | H168: 1594 | I168: 300 | J168: 468037.55 | K168: 2018-12-05 | L168: 39 | M168: INE459A01010
A169: BANCOINDIA | B169: EQ | C169: 169.95 | D169: 169.95 | E169: 166 | F169: 167.05 | G169: 167 | H169: 170.05 | I169: 21279 | J169: 3557918.3 | K169: 2018-12-05 | L169: 556 | M169: INE213C01025
A170: BANDHANBNK | B170: EQ | C170: 484.5 | D170: 486.6 | E170: 476 | F170: 478 | G170: 476.5 | H170: 487.15 | I170: 286779 | J170: 137876714.9 | K170: 2018-12-05 | L170: 20074 | M170: INE545U01014
A171: BANG | B171: EQ | C171: 55.1 | D171: 55.45 | E171: 52.2 | F171: 53.65 | G171: 52.25 | H171: 54.95 | I171: 19692 | J171: 1064585.55 | K171: 2018-12-05 | L171: 228 | M171: INE863I01016
A172: BANKBARODA | B172: EQ | C172: 106.8 | D172: 108.2 | E172: 106.05 | F172: 107.45 | G172: 107.65 | H172: 107.85 | I172: 13516608 | J172: 1446770125 | K172: 2018-12-05 | L172: 42320 | M172: INE028A01039
A173: BANKBEES | B173: EQ | C173: 2714.48 | D173: 2714.48 | E173: 2686.79 | F173: 2689.35 | G173: 2698.5 | H173: 2717.46 | I173: 43893 | J173: 118108995 | K173: 2018-12-05 | L173: 375 | M173: INF732E01078
A174: BANKINDIA | B174: EQ | C174: 85.05 | D174: 85.9 | E174: 82.65 | F174: 83.45 | G174: 83.2 | H174: 85.6 | I174: 8043908 | J174: 677944212.7 | K174: 2018-12-05 | L174: 22196 | M174: INE084A01016
A175: BANSWRAS | B175: EQ | C175: 84.7 | D175: 84.7 | E175: 82 | F175: 83.15 | G175: 82.5 | H175: 82.25 | I175: 1493 | J175: 124505.15 | K175: 2018-12-05 | L175: 58 | M175: INE629D01012
A176: BARTRONICS | B176: EQ | C176: 7.4 | D176: 7.45 | E176: 7.25 | F176: 7.25 | G176: 7.25 | H176: 7.3 | I176: 10176 | J176: 74513.6 | K176: 2018-12-05 | L176: 40 | M176: INE855F01034
A177: BASF | B177: EQ | C177: 1525.5 | D177: 1548 | E177: 1510.3 | F177: 1523.35 | G177: 1525.8 | H177: 1536.65 | I177: 4926 | J177: 7545532.55 | K177: 2018-12-05 | L177: 803 | M177: INE373A01013
A178: BASML | B178: EQ | C178: 203.05 | D178: 208.9 | E178: 199.5 | F178: 200.9 | G178: 201 | H178: 206.9 | I178: 643 | J178: 130962.25 | K178: 2018-12-05 | L178: 32 | M178: INE186H01014
A179: BATAINDIA | B179: EQ | C179: 1045 | D179: 1058.9 | E179: 1041.6 | F179: 1051.35 | G179: 1053 | H179: 1059.3 | I179: 607938 | J179: 638362529 | K179: 2018-12-05 | L179: 21639 | M179: INE176A01028
A180: BAYERCROP | B180: EQ | C180: 4312.05 | D180: 4312.05 | E180: 4252.65 | F180: 4295.5 | G180: 4285 | H180: 4312.5 | I180: 3239 | J180: 13858686.7 | K180: 2018-12-05 | L180: 1450 | M180: INE462A01022
A181: BBL | B181: EQ | C181: 1095.1 | D181: 1110 | E181: 1095 | F181: 1104.8 | G181: 1107.95 | H181: 1101.05 | I181: 2034 | J181: 2242680.1 | K181: 2018-12-05 | L181: 300 | M181: INE464A01028
A182: BBTC | B182: EQ | C182: 1345 | D182: 1346 | E182: 1322 | F182: 1327.3 | G182: 1322.6 | H182: 1353.2 | I182: 43111 | J182: 57552342.3 | K182: 2018-12-05 | L182: 2640 | M182: INE050A01025
A183: BCG | B183: EQ | C183: 2.9 | D183: 2.9 | E183: 2.75 | F183: 2.85 | G183: 2.9 | H183: 2.85 | I183: 382645 | J183: 1085750.9 | K183: 2018-12-05 | L183: 259 | M183: INE425B01027
A184: BDL | B184: EQ | C184: 280.3 | D184: 281.1 | E184: 275.6 | F184: 277.9 | G184: 279 | H184: 280.25 | I184: 8865 | J184: 2468312.85 | K184: 2018-12-05 | L184: 1351 | M184: INE171Z01018
A185: BEARDSELL | B185: EQ | C185: 25.45 | D185: 25.45 | E185: 24.25 | F185: 24.9 | G185: 24.9 | H185: 24.5 | I185: 2394 | J185: 59484.65 | K185: 2018-12-05 | L185: 28 | M185: INE520H01022
A186: BEDMUTHA | B186: BE | C186: 20.9 | D186: 22.25 | E186: 20.9 | F186: 22.25 | G186: 22.25 | H186: 21.65 | I186: 661 | J186: 13871.35 | K186: 2018-12-05 | L186: 9 | M186: INE844K01012
A187: BEL | B187: EQ | C187: 83.05 | D187: 83.9 | E187: 81 | F187: 82.7 | G187: 83.1 | H187: 83.9 | I187: 5501276 | J187: 453242957.1 | K187: 2018-12-05 | L187: 24583 | M187: INE263A01024
A188: BEML | B188: EQ | C188: 747.4 | D188: 757 | E188: 726.5 | F188: 731.7 | G188: 731.3 | H188: 757.25 | I188: 732635 | J188: 542034586.2 | K188: 2018-12-05 | L188: 18217 | M188: INE258A01016
A189: BEPL | B189: EQ | C189: 72.25 | D189: 73 | E189: 70.85 | F189: 71.3 | G189: 70.95 | H189: 73.4 | I189: 185381 | J189: 13325929.45 | K189: 2018-12-05 | L189: 2370 | M189: INE922A01025
A190: BERGEPAINT | B190: EQ | C190: 318 | D190: 320.75 | E190: 312.2 | F190: 315.5 | G190: 316.55 | H190: 316.95 | I190: 949861 | J190: 300395571.8 | K190: 2018-12-05 | L190: 8693 | M190: INE463A01038
A191: BFINVEST | B191: EQ | C191: 250 | D191: 251.45 | E191: 241.5 | F191: 242.9 | G191: 242.55 | H191: 251.8 | I191: 74229 | J191: 18165559.95 | K191: 2018-12-05 | L191: 1995 | M191: INE878K01010
A192: BFUTILITIE | B192: EQ | C192: 212 | D192: 214.3 | E192: 206.75 | F192: 209.5 | G192: 209.15 | H192: 213.6 | I192: 201037 | J192: 42275793.15 | K192: 2018-12-05 | L192: 3766 | M192: INE243D01012
A193: BGLOBAL | B193: BE | C193: 2.55 | D193: 2.65 | E193: 2.45 | F193: 2.45 | G193: 2.45 | H193: 2.55 | I193: 16518 | J193: 41377.15 | K193: 2018-12-05 | L193: 20 | M193: INE224M01013
A194: BGRENERGY | B194: EQ | C194: 60.2 | D194: 61.2 | E194: 59.65 | F194: 60.1 | G194: 59.95 | H194: 61.35 | I194: 43734 | J194: 2633973.05 | K194: 2018-12-05 | L194: 722 | M194: INE661I01014
A195: BHAGERIA | B195: EQ | C195: 281.65 | D195: 284.1 | E195: 277.3 | F195: 280.65 | G195: 282.7 | H195: 287.4 | I195: 8540 | J195: 2389467.25 | K195: 2018-12-05 | L195: 348 | M195: INE354C01027
A196: BHAGYANGR | B196: EQ | C196: 30.3 | D196: 30.3 | E196: 29.1 | F196: 29.15 | G196: 29.8 | H196: 29.8 | I196: 2187 | J196: 64208.2 | K196: 2018-12-05 | L196: 56 | M196: INE458B01036
A197: BHAGYAPROP | B197: EQ | C197: 25.3 | D197: 26.9 | E197: 25.3 | F197: 26.8 | G197: 26.8 | H197: 26 | I197: 8329 | J197: 219631.9 | K197: 2018-12-05 | L197: 27 | M197: INE363W01018
A198: BHANDARI | B198: EQ | C198: 1.95 | D198: 1.95 | E198: 1.85 | F198: 1.85 | G198: 1.85 | H198: 1.95 | I198: 191193 | J198: 361085.2 | K198: 2018-12-05 | L198: 131 | M198: INE474E01029
A199: BHARATFIN | B199: EQ | C199: 1022 | D199: 1028.15 | E199: 1006.3 | F199: 1013.3 | G199: 1013.25 | H199: 1031.05 | I199: 1743294 | J199: 1773952430 | K199: 2018-12-05 | L199: 23296 | M199: INE180K01011
A200: BHARATFORG | B200: EQ | C200: 560 | D200: 565 | E200: 525.55 | F200: 531.45 | G200: 530.25 | H200: 580.45 | I200: 10232588 | J200: 5505663786 | K200: 2018-12-05 | L200: 138644 | M200: INE465A01025
... 1439 more rows
